Workbook

Sheet Forklaring

Sheet Overblik
I19: Kommune | K19: Prognose for udgifter
K21: Mio. kr. | L21: MV2024 | M21: Prognose 2024 | N21: Forskel - Mer-/mindreforbrug | O21: Budget 2024
K22: A-dagpenge | L22: =Dagpenge!O26/1000000 -> 11200.4 | M22: =Dagpenge!P26/1000000 -> 10896.81855 | N22: =M22-L22 -> -303.5814452 | O22: =Dagpenge!M26/1000000 -> 10637.249 | T22: Vælg om midtvejsvurdering/aftale skal fordeles på baggrund af senest-kendte regnskab eller bloktilskudsandel.
I23: Hele landet | K23: Kontant- og uddannelseshjælp | L23: ='Kontant- og uddannelseshjælp'!O26/1000000 -> 8291.865911 | M23: ='Kontant- og uddannelseshjælp'!P26/1000000 -> 7553.627733 | N23: =M23-L23 -> -738.2381779 | O23: ='Kontant- og uddannelseshjælp'!M26/1000000 -> 8357.726
K24: Gammel FØP | L24: ='Gammel FØP'!O26/1000000 -> 14904.5 | M24: ='Gammel FØP'!P26/1000000 -> 14846.72275 | N24: -57.77725173 | O24: ='Gammel FØP'!M26/1000000 -> 15434.527
K25: Ny FØP | L25: ='Ny FØP'!O26/1000000 -> 20670.4 | M25: ='Ny FØP'!P26/1000000 -> 20644.84121 | N25: -25.55878541 | O25: ='Ny FØP'!M26/1000000 -> 19246.098
K26: Ledighedsydelse | L26: =Ledighedsydelse!O26/1000000 -> 2506.510682 | M26: =Ledighedsydelse!P26/1000000 -> 2413.895109 | N26: =M26-L26 -> -92.61557279 | O26: =Ledighedsydelse!M26/1000000 -> 2239.978
K27: Driftsudgifter til aktivering | L27: ='Driftsudgifter til aktivering'!O26/1000000 -> 4187.285359 | M27: ='Driftsudgifter til aktivering'!P26/1000000 -> 3730.621746 | N27: =M27-L27 -> -456.6636128 | O27: ='Driftsudgifter til aktivering'!M26/1000000 -> 4186.672 | T27: Bloktilskud
K28: Ressourceforløb | L28: =Ressourceforløb!O26/1000000 -> 2175.972776 | M28: =Ressourceforløb!P26/1000000 -> 2055.481486 | N28: =M28-L28 -> -120.4912901 | O28: =Ressourceforløb!M26/1000000 -> 2346.881
K29: Jobafklaring | L29: =Jobafklaring!O26/1000000 -> 2892.757203 | M29: =Jobafklaring!P26/1000000 -> 2944.668806 | N29: =M29-L29 -> 51.91160347 | O29: =Jobafklaring!M26/1000000 -> 2759.521
K30: Sygedagpenge | L30: =Sygedagpenge!O26/1000000 -> 9604.48865 | M30: =Sygedagpenge!P26/1000000 -> 9168.316378 | N30: -436.1722724 | O30: =Sygedagpenge!M26/1000000 -> 9415.03
K31: Fleksjob | L31: =Fleksjob!O26/1000000 -> 10343.46042 | M31: =Fleksjob!P26/1000000 -> 10408.4864 | N31: 65.02598384 | O31: =Fleksjob!M26/1000000 -> 10237.724
K32: Seniorpension | L32: =Seniorpension!O26/1000000 -> 4899.5 | M32: =Seniorpension!P26/1000000 -> 5138.27475 | N32: =M32-L32 -> 238.7747495 | O32: =Seniorpension!M26/1000000 -> 4965.515
K33: I alt | L33: =SUM(L22:L32) -> 91677.141 | M33: =SUM(M22:M32) -> 89801.75493 | N33: =SUM(N22:N32) -> -1875.386071 | O33: =SUM(O22:O32) -> 89826.921
H86: Hele landet
H87: Albertslund
H88: Allerød
H89: Assens
H90: Ballerup
H91: Billund
H92: Bornholm
H93: Brøndby
H94: Brønderslev
H95: Dragør
H96: Egedal
H97: Esbjerg
H98: Fanø
H99: Favrskov
H100: Faxe
H101: Fredensborg
H102: Fredericia
H103: Frederiksberg
H104: Frederikshavn
H105: Frederikssund
H106: Furesø
H107: Faaborg-Midtfyn
H108: Gentofte
H109: Gladsaxe
H110: Glostrup
H111: Greve
H112: Gribskov
H113: Guldborgsund
H114: Haderslev
H115: Halsnæs
H116: Hedensted
H117: Helsingør
H118: Herlev
H119: Herning
H120: Hillerød
H121: Hjørring
H122: Holbæk
H123: Holstebro
H124: Horsens
H125: Hvidovre
H126: Høje-Taastrup
H127: Hørsholm
H128: Ikast-Brande
H129: Ishøj
H130: Jammerbugt
H131: Kalundborg
H132: Kerteminde
H133: Kolding
H134: København
H135: Køge
H136: Langeland
H137: Lejre
H138: Lemvig
H139: Lolland
H140: Lyngby-Taarbæk
H141: Læsø
H142: Mariagerfjord
H143: Middelfart
H144: Morsø
H145: Norddjurs
H146: Nordfyns
H147: Nyborg
H148: Næstved
H149: Odder
H150: Odense
H151: Odsherred
H152: Randers
H153: Rebild
H154: Ringkøbing-Skjern
H155: Ringsted
H156: Roskilde
H157: Rudersdal
H158: Rødovre
H159: Samsø
H160: Silkeborg
H161: Skanderborg
H162: Skive
H163: Slagelse
H164: Solrød
H165: Sorø
H166: Stevns
H167: Struer
H168: Svendborg
H169: Syddjurs
H170: Sønderborg
H171: Thisted
H172: Tønder
H173: Tårnby
H174: Vallensbæk
H175: Varde
H176: Vejen
H177: Vejle
H178: Vesthimmerlands
H179: Viborg
H180: Vordingborg
H181: Ærø
H182: Aabenraa
H183: Aalborg
H184: Aarhus
Q187: Bloktilskud
Q188: Regnskab

Sheet Dagpenge
B1: Aktivitet | C1: B2024 | D1: ØA2024 | E1: MV2024 | H1: 2020 | J1: 2021 | L1: 2022 | N1: 2023 | P1: 2024 | S1: Budget 2024 | T1: MV2024 | U1: Prognose 2024 | V1: ØA2024
A2: Jan 2020 | G2: Jan 2020 | H2: =B2 -> 0 | I2: Jan 2021 | J2: =B14 -> 0 | K2: Jan 2022 | L2: =B26 -> 73038 | M2: Jan 2023 | N2: =B38 -> 73244 | O2: Jan 2024 | P2: =B50 -> 82607 | R2: Jan 2024 | S2: =$S$14*J20 -> 81448.99355 | T2: =J20*$T$14 -> 85761.01841 | U2: =IF(P2,P2,(SUM(IF(P2,P2,0))/SUM(IF(P2,J20,0))*J20)) -> 82607 | V2: =$V$14*J20 -> 88389.4362
A3: Feb 2020 | G3: Feb 2020 | H3: =B3 -> 0 | I3: Feb 2021 | J3: =B15 -> 0 | K3: Feb 2022 | L3: =B27 -> 70361 | M3: Feb 2023 | N3: =B39 -> 74168 | O3: Feb 2024 | P3: =B51 -> 82483 | R3: Feb 2024 | S3: 80472.93302 | T3: =J21*$T$14 -> 84733.28386 | U3: =IF(P3,P3,(SUM(IF(P2,P2,0)+IF(P3,P3,0))/SUM(IF(P2,J20,0)+IF(P3,J21,0))*J21)) -> 82483 | V3: 87330.20347
A4: Mar 2020 | G4: Mar 2020 | H4: 0 | I4: Mar 2021 | J4: 0 | K4: Mar 2022 | L4: 66142 | M4: Mar 2023 | N4: 71007 | O4: Mar 2024 | P4: 78848 | R4: Mar 2024 | S4: 76363.7906 | T4: 80406.59763 | U4: =IF(P4,P4,(SUM(IF(P2,P2,0)+IF(P3,P3,0)+IF(P4,P4,0))/SUM(IF(P2,J20,0)+IF(P3,J21,0)+IF(P4,J22,0))*J22)) -> 78848 | V4: 82870.91225
A5: Apr 2020 | G5: Apr 2020 | H5: 0 | I5: Apr 2021 | J5: 0 | K5: Apr 2022 | L5: 62230 | M5: Apr 2023 | N5: 68001 | O5: Apr 2024 | P5: 74707 | R5: Apr 2024 | S5: 72511.88717 | T5: 76350.76899 | U5: =IF(P5,P5,(SUM(IF(P2,P2,0)+IF(P3,P3,0)+IF(P4,P4,0)+IF(P5,P5,0))/SUM(IF(P2,J20,0)+IF(P3,J21,0)+IF(P4,J22,0)+IF(P5,J23,0))*J23)) -> 74707 | V5: 78690.7799
A6: Maj 2020 | G6: Maj 2020 | H6: 0 | I6: Maj 2021 | J6: 0 | K6: Maj 2022 | L6: 57427 | M6: Maj 2023 | N6: 65018 | O6: Maj 2024 | P6: 69577 | R6: Maj 2024 | S6: 68176.68623 | T6: 71786.05638 | U6: =IF(P6,P6,(SUM(IF(P2,P2,0)+IF(P3,P3,0)+IF(P4,P4,0)+IF(P5,P5,0)+IF(P6,P6,0))/SUM(IF(P2,J20,0)+IF(P3,J21,0)+IF(P4,J22,0)+IF(P5,J23,0)+IF(P6,J24,0))*J24)) -> 69577 | V6: 73986.16723
A7: Jun 2020 | G7: Jun 2020 | H7: 0 | I7: Jun 2021 | J7: 0 | K7: Jun 2022 | L7: 58096 | M7: Jun 2023 | N7: 66386 | O7: Jun 2024 | P7: 0 | R7: Jun 2024 | S7: 69310.87636 | T7: 72980.29213 | U7: =IF(P7,P7,(SUM(IF(P2,P2,0)+IF(P3,P3,0)+IF(P4,P4,0)+IF(P5,P5,0)+IF(P6,P6,0)+IF(P7,P7,0))/SUM(IF(P2,J20,0)+IF(P3,J21,0)+IF(P4,J22,0)+IF(P5,J23,0)+IF(P6,J24,0)+IF(P7,J25,0))*J25)) -> 71002.19648 | V7: 75217.00412
A8: Jul 2020 | G8: Jul 2020 | H8: 0 | I8: Jul 2021 | J8: 0 | K8: Jul 2022 | L8: 62238 | M8: Jul 2023 | N8: 70826 | O8: Jul 2024 | P8: 0 | R8: Jul 2024 | S8: 74089.28561 | T8: 78011.67713 | U8: =IF(P8,P8,(SUM(IF(P2,P2,0)+IF(P3,P3,0)+IF(P4,P4,0)+IF(P5,P5,0)+IF(P6,P6,0)+IF(P7,P7,0)+IF(P8,P8,0))/SUM(IF(P2,J20,0)+IF(P3,J21,0)+IF(P4,J22,0)+IF(P5,J23,0)+IF(P6,J24,0)+IF(P7,J25,0)+IF(P8,J26,0))*J26)) -> 75897.20821 | V8: 80402.59183
A9: Aug 2020 | G9: Aug 2020 | H9: 0 | I9: Aug 2021 | J9: 0 | K9: Aug 2022 | L9: 62796 | M9: Aug 2023 | N9: 72672 | O9: Aug 2024 | P9: 0 | R9: Aug 2024 | S9: 75427.81927 | T9: 79421.07465 | U9: =IF(P9,P9,(SUM(IF(P2,P2,0)+IF(P3,P3,0)+IF(P4,P4,0)+IF(P5,P5,0)+IF(P6,P6,0)+IF(P7,P7,0)+IF(P8,P8,0)+IF(P9,P9,0))/SUM(IF(P2,J20,0)+IF(P3,J21,0)+IF(P4,J22,0)+IF(P5,J23,0)+IF(P6,J24,0)+IF(P7,J25,0)+IF(P8,J26,0)+IF(P9,J27,0))*J27)) -> 77268.40469 | V9: 81855.1848
A10: Sep 2020 | G10: Sep 2020 | H10: 0 | I10: Sep 2021 | J10: 0 | K10: Sep 2022 | L10: 58132 | M10: Sep 2023 | N10: 67788 | O10: Sep 2024 | P10: 0 | R10: Sep 2024 | S10: 70111.54665 | T10: 73823.35105 | U10: =IF(P10,P10,(SUM(IF(P2,P2,0)+IF(P3,P3,0)+IF(P4,P4,0)+IF(P5,P5,0)+IF(P6,P6,0)+IF(P7,P7,0)+IF(P8,P8,0)+IF(P9,P9,0)+IF(P10,P10,0))/SUM(IF(P2,J20,0)+IF(P3,J21,0)+IF(P4,J22,0)+IF(P5,J23,0)+IF(P6,J24,0)+IF(P7,J25,0)+IF(P8,J26,0)+IF(P9,J27,0)+IF(P10,J28,0))*J28)) -> 71822.40469 | V10: 76085.90125
A11: Okt 2020 | G11: Okt 2020 | H11: 0 | I11: Okt 2021 | J11: 0 | K11: Okt 2022 | L11: 57839 | M11: Okt 2023 | N11: 67942 | O11: Okt 2024 | P11: 0 | R11: Okt 2024 | S11: 70034.15224 | T11: 73741.85926 | U11: =IF(P11,P11,(SUM(IF(P2,P2,0)+IF(P3,P3,0)+IF(P4,P4,0)+IF(P5,P5,0)+IF(P6,P6,0)+IF(P7,P7,0)+IF(P8,P8,0)+IF(P9,P9,0)+IF(P10,P10,0)+IF(P11,P11,0))/SUM(IF(P2,J20,0)+IF(P3,J21,0)+IF(P4,J22,0)+IF(P5,J23,0)+IF(P6,J24,0)+IF(P7,J25,0)+IF(P8,J26,0)+IF(P9,J27,0)+IF(P10,J28,0)+IF(P11,J29,0))*J29)) -> 71743.1217 | V11: 76001.91189
A12: Nov 2020 | G12: Nov 2020 | H12: 0 | I12: Nov 2021 | J12: 0 | K12: Nov 2022 | L12: 59254 | M12: Nov 2023 | N12: 68293 | O12: Nov 2024 | P12: 0 | R12: Nov 2024 | S12: 71017.45109 | T12: 74777.21535 | U12: =IF(P12,P12,(SUM(IF(P2,P2,0)+IF(P3,P3,0)+IF(P4,P4,0)+IF(P5,P5,0)+IF(P6,P6,0)+IF(P7,P7,0)+IF(P8,P8,0)+IF(P9,P9,0)+IF(P10,P10,0)+IF(P11,P11,0)+IF(P12,P12,0))/SUM(IF(P2,J20,0)+IF(P3,J21,0)+IF(P4,J22,0)+IF(P5,J23,0)+IF(P6,J24,0)+IF(P7,J25,0)+IF(P8,J26,0)+IF(P9,J27,0)+IF(P10,J28,0)+IF(P11,J29,0)+IF(P12,J30,0))*J30)) -> 72750.41496 | V12: 77068.99973
A13: Dec 2020 | G13: Dec 2020 | H13: 0 | I13: Dec 2021 | J13: 0 | K13: Dec 2022 | L13: 57625 | M13: Dec 2023 | N13: 65860 | O13: Dec 2024 | P13: 0 | R13: Dec 2024 | S13: 68755.75237 | T13: 72395.7791 | U13: =IF(P13,P13,(SUM(IF(P2,P2,0)+IF(P3,P3,0)+IF(P4,P4,0)+IF(P5,P5,0)+IF(P6,P6,0)+IF(P7,P7,0)+IF(P8,P8,0)+IF(P9,P9,0)+IF(P10,P10,0)+IF(P11,P11,0)+IF(P12,P12,0)+IF(P13,P13,0))/SUM(IF(P2,J20,0)+IF(P3,J21,0)+IF(P4,J22,0)+IF(P5,J23,0)+IF(P6,J24,0)+IF(P7,J25,0)+IF(P8,J26,0)+IF(P9,J27,0)+IF(P10,J28,0)+IF(P11,J29,0)+IF(P12,J30,0)+IF(P13,J31,0))*J31)) -> 70433.52639 | V13: 74614.57684
A14: Jan 2021 | G14: I alt 2020 | H14: =SUM(H2:H13) -> 0 | I14: I alt 2020 | J14: =SUM(J2:J13) -> 0 | K14: I alt 2022 | L14: =SUM(L2:L13) -> 745178 | M14: I alt 2023 | N14: =SUM(N2:N13) -> 831205 | O14: i alt 2024 | S14: =M26/(P21) -> 877721.1742 | T14: =O26/P21 -> 924188.974 | U14: =SUM(U2:U13) -> 899139.2771 | V14: =N26/(P21) -> 952513.6695
A15: Feb 2021
A16: Mar 2021
A17: Apr 2021
A18: Maj 2021 | I18: Fordeling 2022-2023 | L18: A-dagpenge
A19: Jun 2021
A20: Jul 2021 | I20: jan | J20: =(H2+J2+L2+N2)/($H$14+$J$14+$L$14+$N$14) -> 0.09279597661 | L20: Regnskab 2023 (kr.) | M20: Aktivitet 2023 | N20: Mdl. fuldtidspers. | O20: Enhedspris 2023 (24-pl) | P20: Enhedspris (måned)
A21: Aug 2021 | I21: feb | J21: 0.09168393722 | L21: =SUMIF('Regnskab 2023'!A2:K100,Overblik!I23,'Regnskab 2023'!C2:C100)*1000 -> 9759452000 | M21: =SUMIF('Aktivitet 2023'!A2:K100,Overblik!I23,'Aktivitet 2023'!B2:B100) -> 69255 | N21: =N14 -> 831205 | O21: =(((L21))/M21)*1.032 -> 145429.9973 | P21: =O21/12 -> 12119.16644
A22: Sep 2021 | I22: mar | J22: 0.08700233382
A23: Okt 2021 | I23: apr | J23: 0.08261380642 | L23: Prognose for udgifter og aktivitet
A24: Nov 2021 | I24: maj | J24: 0.0776746514
A25: Dec 2021 | I25: jun | J25: 0.07896685006 | M25: Budget 2024 | N25: ØA2024 | O25: MV2024 | P25: Prognose 2024
A26: Jan 2022 | B26: 73038 | I26: jul | J26: 0.0844109585 | L26: Udgifter (kr.) | M26: =SUMIF('Budget 2024'!A2:K100,Overblik!I23,'Budget 2024'!C2:C100)*1000 -> 10637249000 | N26: =IF(Overblik!T27="Bloktilskud",SUMIF('Bloktilskudsdel - ØA24'!A2:K100,Overblik!I23,'Bloktilskudsdel - ØA24'!C2:C100),SUMIF('Overførselsskøn 2024'!A2:K100,Overblik!I23,'Overførselsskøn 2024'!C2:C100))*1000 -> 1.15436717e+10 | O26: =IF(Overblik!T27="Bloktilskud",SUMIF('Bloktilskudsdel - MV24'!A2:K100,Overblik!I23,'Bloktilskudsdel - MV24'!C2:C100),SUMIF('Midtvejsvurdering 2024'!A2:K100,Overblik!I23,'Midtvejsvurdering 2024'!C2:C100))*1000 -> 11200400000 | P26: =U14*P21 -> 1.089681855e+10
A27: Feb 2022 | B27: 70361 | I27: aug | J27: 0.08593596861 | L27: Aktivitet* | M27: =M26/(P21) -> 877721.1742 | N27: =N26/(P21) -> 952513.6695 | O27: =O26/(P21) -> 924188.974 | P27: =U14 -> 899139.2771
A28: Mar 2022 | B28: 66142 | I28: sep | J28: 0.07987906492 | L28: * Aktiviteten er opgjort som de månedlige fuldtidspersoner i alt på et år.
A29: Apr 2022 | B29: 62230 | I29: okt | J29: 0.07979088838
A30: Maj 2022 | B30: 57427 | I30: nov | J30: 0.08091117451
A31: Jun 2022 | B31: 58096 | I31: dec | J31: 0.07833438955
A32: Jul 2022 | B32: 62238
A33: Aug 2022 | B33: 62796
A34: Sep 2022 | B34: 58132
A35: Okt 2022 | B35: 57839
A36: Nov 2022 | B36: 59254
A37: Dec 2022 | B37: 57625
A38: Jan 2023 | B38: 73244
A39: Feb 2023 | B39: 74168
A40: Mar 2023 | B40: 71007
A41: Apr 2023 | B41: 68001
A42: Maj 2023 | B42: 65018
A43: Jun 2023 | B43: 66386
A44: Jul 2023 | B44: 70826
A45: Aug 2023 | B45: 72672
A46: Sep 2023 | B46: 67788
A47: Okt 2023 | B47: 67942
A48: Nov 2023 | B48: 68293
A49: Dec 2023 | B49: 65860
A50: Jan 2024 | B50: 82607 | C50: =S2 -> 81448.99355 | D50: =V2 -> 88389.4362 | E50: =T2 -> 85761.01841
A51: Feb 2024 | B51: 82483 | C51: 80472.93302 | D51: 87330.20347 | E51: =T3 -> 84733.28386
A52: Mar 2024 | B52: 78848 | C52: 76363.7906 | D52: 82870.91225 | E52: 80406.59763
A53: Apr 2024 | B53: 74707 | C53: 72511.88717 | D53: 78690.7799 | E53: 76350.76899
A54: Maj 2024 | B54: 69577 | C54: 68176.68623 | D54: 73986.16723 | E54: 71786.05638
A55: Jun 2024 | C55: 69310.87636 | D55: 75217.00412 | E55: 72980.29213
A56: Jul 2024 | C56: 74089.28561 | D56: 80402.59183 | E56: 78011.67713
A57: Aug 2024 | C57: 75427.81927 | D57: 81855.1848 | E57: 79421.07465
A58: Sep 2024 | C58: 70111.54665 | D58: 76085.90125 | E58: 73823.35105
A59: Okt 2024 | C59: 70034.15224 | D59: 76001.91189 | E59: 73741.85926
A60: Nov 2024 | C60: 71017.45109 | D60: 77068.99973 | E60: 74777.21535
A61: Dec 2024 | C61: 68755.75237 | D61: 74614.57684 | E61: 72395.7791

Sheet Kontant- og uddannelseshjælp
B1: Aktivitet | C1: B2024 | D1: ØA2024 | E1: MV2024 | H1: 2020 | J1: 2021 | L1: 2022 | N1: 2023 | P1: 2024 | S1: Budget 2024 | T1: MV2024 | U1: Prognose 2024 | V1: ØA2024
A2: Jan 2020 | G2: Jan 2020 | H2: =B2 -> 0 | I2: Jan 2021 | J2: =B14 -> 0 | K2: Jan 2022 | L2: =B26 -> 82934 | M2: Jan 2023 | N2: =B38 -> 78176 | O2: Jan 2024 | P2: =B50 -> 74665 | R2: Jan 2024 | S2: =$S$14*J20 -> 82849.03768 | T2: =J20*$T$14 -> 82196.17529 | U2: =IF(P2,P2,(SUM(IF(P2,P2,0))/SUM(IF(P2,J20,0))*J20)) -> 74665 | V2: =$V$14*J20 -> 93488.12494
A3: Feb 2020 | G3: Feb 2020 | H3: =B3 -> 0 | I3: Feb 2021 | J3: =B15 -> 0 | K3: Feb 2022 | L3: =B27 -> 83005 | M3: Feb 2023 | N3: =B39 -> 78728 | O3: Feb 2024 | P3: =B51 -> 75413 | R3: Feb 2024 | S3: 83169.40855 | T3: =J21*$T$14 -> 82514.02159 | U3: =IF(P3,P3,(SUM(IF(P2,P2,0)+IF(P3,P3,0))/SUM(IF(P2,J20,0)+IF(P3,J21,0))*J21)) -> 75413 | V3: 93849.63634
A4: Mar 2020 | G4: Mar 2020 | H4: 0 | I4: Mar 2021 | J4: 0 | K4: Mar 2022 | L4: 82891 | M4: Mar 2023 | N4: 78873 | O4: Mar 2024 | P4: 75741 | R4: Mar 2024 | S4: 83185.34996 | T4: 82529.83737 | U4: =IF(P4,P4,(SUM(IF(P2,P2,0)+IF(P3,P3,0)+IF(P4,P4,0))/SUM(IF(P2,J20,0)+IF(P3,J21,0)+IF(P4,J22,0))*J22)) -> 75741 | V4: 93867.62487
A5: Apr 2020 | G5: Apr 2020 | H5: 0 | I5: Apr 2021 | J5: 0 | K5: Apr 2022 | L5: 82426 | M5: Apr 2023 | N5: 78555 | O5: Apr 2024 | P5: 74855 | R5: Apr 2024 | S5: 82782.70086 | T5: 82130.36121 | U5: =IF(P5,P5,(SUM(IF(P2,P2,0)+IF(P3,P3,0)+IF(P4,P4,0)+IF(P5,P5,0))/SUM(IF(P2,J20,0)+IF(P3,J21,0)+IF(P4,J22,0)+IF(P5,J23,0))*J23)) -> 74855 | V5: 93413.26945
A6: Maj 2020 | G6: Maj 2020 | H6: 0 | I6: Maj 2021 | J6: 0 | K6: Maj 2022 | L6: 81752 | M6: Maj 2023 | N6: 78028 | O6: Maj 2024 | P6: 73632 | R6: Maj 2024 | S6: 82165.09987 | T6: 81517.62701 | U6: =IF(P6,P6,(SUM(IF(P2,P2,0)+IF(P3,P3,0)+IF(P4,P4,0)+IF(P5,P5,0)+IF(P6,P6,0))/SUM(IF(P2,J20,0)+IF(P3,J21,0)+IF(P4,J22,0)+IF(P5,J23,0)+IF(P6,J24,0))*J24)) -> 73632 | V6: 92716.35903
A7: Jun 2020 | G7: Jun 2020 | H7: 0 | I7: Jun 2021 | J7: 0 | K7: Jun 2022 | L7: 80865 | M7: Jun 2023 | N7: 77245 | O7: Jun 2024 | P7: 0 | R7: Jun 2024 | S7: 81306.32082 | T7: 80665.61526 | U7: =IF(P7,P7,(SUM(IF(P2,P2,0)+IF(P3,P3,0)+IF(P4,P4,0)+IF(P5,P5,0)+IF(P6,P6,0)+IF(P7,P7,0))/SUM(IF(P2,J20,0)+IF(P3,J21,0)+IF(P4,J22,0)+IF(P5,J23,0)+IF(P6,J24,0)+IF(P7,J25,0))*J25)) -> 73483.82561 | V7: 91747.29957
A8: Jul 2020 | G8: Jul 2020 | H8: 0 | I8: Jul 2021 | J8: 0 | K8: Jul 2022 | L8: 78840 | M8: Jul 2023 | N8: 75390 | O8: Jul 2024 | P8: 0 | R8: Jul 2024 | S8: 79311.07369 | T8: 78686.09096 | U8: =IF(P8,P8,(SUM(IF(P2,P2,0)+IF(P3,P3,0)+IF(P4,P4,0)+IF(P5,P5,0)+IF(P6,P6,0)+IF(P7,P7,0)+IF(P8,P8,0))/SUM(IF(P2,J20,0)+IF(P3,J21,0)+IF(P4,J22,0)+IF(P5,J23,0)+IF(P6,J24,0)+IF(P7,J25,0)+IF(P8,J26,0))*J26)) -> 71680.54154 | V8: 89495.8321
A9: Aug 2020 | G9: Aug 2020 | H9: 0 | I9: Aug 2021 | J9: 0 | K9: Aug 2022 | L9: 77326 | M9: Aug 2023 | N9: 74054 | O9: Aug 2024 | P9: 0 | R9: Aug 2024 | S9: 77845.49267 | T9: 77232.05894 | U9: =IF(P9,P9,(SUM(IF(P2,P2,0)+IF(P3,P3,0)+IF(P4,P4,0)+IF(P5,P5,0)+IF(P6,P6,0)+IF(P7,P7,0)+IF(P8,P8,0)+IF(P9,P9,0))/SUM(IF(P2,J20,0)+IF(P3,J21,0)+IF(P4,J22,0)+IF(P5,J23,0)+IF(P6,J24,0)+IF(P7,J25,0)+IF(P8,J26,0)+IF(P9,J27,0))*J27)) -> 70355.96433 | V9: 87842.048
A10: Sep 2020 | G10: Sep 2020 | H10: 0 | I10: Sep 2021 | J10: 0 | K10: Sep 2022 | L10: 77026 | M10: Sep 2023 | N10: 74070 | O10: Sep 2024 | P10: 0 | R10: Sep 2024 | S10: 77699.44881 | T10: 77087.16592 | U10: =IF(P10,P10,(SUM(IF(P2,P2,0)+IF(P3,P3,0)+IF(P4,P4,0)+IF(P5,P5,0)+IF(P6,P6,0)+IF(P7,P7,0)+IF(P8,P8,0)+IF(P9,P9,0)+IF(P10,P10,0))/SUM(IF(P2,J20,0)+IF(P3,J21,0)+IF(P4,J22,0)+IF(P5,J23,0)+IF(P6,J24,0)+IF(P7,J25,0)+IF(P8,J26,0)+IF(P9,J27,0)+IF(P10,J28,0))*J28)) -> 70223.97137 | V10: 87677.24987
A11: Okt 2020 | G11: Okt 2020 | H11: 0 | I11: Okt 2021 | J11: 0 | K11: Okt 2022 | L11: 77302 | M11: Okt 2023 | N11: 74514 | O11: Okt 2024 | P11: 0 | R11: Okt 2024 | S11: 78069.70085 | T11: 77454.50033 | U11: =IF(P11,P11,(SUM(IF(P2,P2,0)+IF(P3,P3,0)+IF(P4,P4,0)+IF(P5,P5,0)+IF(P6,P6,0)+IF(P7,P7,0)+IF(P8,P8,0)+IF(P9,P9,0)+IF(P10,P10,0)+IF(P11,P11,0))/SUM(IF(P2,J20,0)+IF(P3,J21,0)+IF(P4,J22,0)+IF(P5,J23,0)+IF(P6,J24,0)+IF(P7,J25,0)+IF(P8,J26,0)+IF(P9,J27,0)+IF(P10,J28,0)+IF(P11,J29,0))*J29)) -> 70558.6014 | V11: 88095.04795
A12: Nov 2020 | G12: Nov 2020 | H12: 0 | I12: Nov 2021 | J12: 0 | K12: Nov 2022 | L12: 78083 | M12: Nov 2023 | N12: 75216 | O12: Nov 2024 | P12: 0 | R12: Nov 2024 | S12: 78832.31722 | T12: 78211.10717 | U12: =IF(P12,P12,(SUM(IF(P2,P2,0)+IF(P3,P3,0)+IF(P4,P4,0)+IF(P5,P5,0)+IF(P6,P6,0)+IF(P7,P7,0)+IF(P8,P8,0)+IF(P9,P9,0)+IF(P10,P10,0)+IF(P11,P11,0)+IF(P12,P12,0))/SUM(IF(P2,J20,0)+IF(P3,J21,0)+IF(P4,J22,0)+IF(P5,J23,0)+IF(P6,J24,0)+IF(P7,J25,0)+IF(P8,J26,0)+IF(P9,J27,0)+IF(P10,J28,0)+IF(P11,J29,0)+IF(P12,J30,0))*J30)) -> 71247.84632 | V12: 88955.59596
A13: Dec 2020 | G13: Dec 2020 | H13: 0 | I13: Dec 2021 | J13: 0 | K13: Dec 2022 | L13: 78054 | M13: Dec 2023 | N13: 75046 | O13: Dec 2024 | P13: 0 | R13: Dec 2024 | S13: 78729.98367 | T13: 78109.58002 | U13: =IF(P13,P13,(SUM(IF(P2,P2,0)+IF(P3,P3,0)+IF(P4,P4,0)+IF(P5,P5,0)+IF(P6,P6,0)+IF(P7,P7,0)+IF(P8,P8,0)+IF(P9,P9,0)+IF(P10,P10,0)+IF(P11,P11,0)+IF(P12,P12,0)+IF(P13,P13,0))/SUM(IF(P2,J20,0)+IF(P3,J21,0)+IF(P4,J22,0)+IF(P5,J23,0)+IF(P6,J24,0)+IF(P7,J25,0)+IF(P8,J26,0)+IF(P9,J27,0)+IF(P10,J28,0)+IF(P11,J29,0)+IF(P12,J30,0)+IF(P13,J31,0))*J31)) -> 71155.3583 | V13: 88840.12121
A14: Jan 2021 | G14: I alt 2020 | H14: =SUM(H2:H13) -> 0 | I14: I alt 2020 | J14: =SUM(J2:J13) -> 0 | K14: I alt 2022 | L14: =SUM(L2:L13) -> 960504 | M14: I alt 2023 | N14: =SUM(N2:N13) -> 917895 | O14: i alt 2024 | S14: =M26/(P21) -> 965945.9347 | T14: =O26/P21 -> 958334.1411 | U14: =SUM(U2:U13) -> 873012.1089 | V14: =N26/(P21) -> 1089988.209
A15: Feb 2021
A16: Mar 2021
A17: Apr 2021
A18: Maj 2021 | I18: Fordeling 2022-2023 | L18: Kontant- og uddannelseshjælp
A19: Jun 2021
A20: Jul 2021 | I20: Jan | J20: =(H2+J2+L2+N2)/($H$14+$J$14+$L$14+$N$14) -> 0.08576984975 | L20: Regnskab 2023 (kr.) | M20: Aktivitet 2023 | N20: Mdl. fuldtidspers. | O20: Enhedspris 2023 (24-pl) | P20: Enhedspris (måned)
A21: Aug 2021 | I21: feb | J21: 0.08610151517 | L21: =SUMIF('Regnskab 2023'!A2:K100,Overblik!I23,'Regnskab 2023'!B2:B100)*1000 -> 7692464000 | M21: =SUMIF('Aktivitet 2023'!A2:K100,Overblik!I23,'Aktivitet 2023'!C2:C100) -> 76459 | N21: =N14 -> 917895 | O21: =(((L21))/M21)*1.032 -> 103828.4943 | P21: =O21/12 -> 8652.374528
A22: Sep 2021 | I22: Mar | J22: 0.08611801859
A23: Okt 2021 | I23: Apr | J23: 0.08570117424 | L23: Prognose for udgifter og aktivitet
A24: Nov 2021 | I24: Maj | J24: 0.08506179997
A25: Dec 2021 | I25: Jun | J25: 0.08417274498 | M25: Budget 2024 | N25: ØA2024 | O25: MV2024 | P25: Prognose 2024
A26: Jan 2022 | B26: 82934 | I26: Jul | J26: 0.08210715615 | L26: Udgifter (kr.) | M26: =SUMIF('Budget 2024'!A2:K100,Overblik!I23,'Budget 2024'!B2:B100)*1000 -> 8357726000 | N26: =IF(Overblik!T27="Bloktilskud",SUMIF('Bloktilskudsdel - ØA24'!A2:K100,Overblik!I23,'Bloktilskudsdel - ØA24'!B2:B100),SUMIF('Overførselsskøn 2024'!A2:K100,Overblik!I23,'Overførselsskøn 2024'!B2:B100))*1000 -> 9430986217 | O26: =IF(Overblik!T27="Bloktilskud",SUMIF('Bloktilskudsdel - MV24'!A2:K100,Overblik!I23,'Bloktilskudsdel - MV24'!B2:B100),SUMIF('Midtvejsvurdering 2024'!A2:K100,Overblik!I23,'Midtvejsvurdering 2024'!B2:B100))*1000 -> 8291865911 | P26: =U14*P21 -> 7553627733
A27: Feb 2022 | B27: 83005 | I27: Aug | J27: 0.08058990662 | L27: Aktivitet* | M27: =M26/(P21) -> 965945.9347 | N27: =N26/(P21) -> 1089988.209 | O27: =O26/(P21) -> 958334.1411 | P27: =U14 -> 873012.1089
A28: Mar 2022 | B28: 82891 | I28: Sep | J28: 0.08043871403 | L28: * Aktiviteten er opgjort som de månedlige fuldtidspersoner i alt på et år.
A29: Apr 2022 | B29: 82426 | I29: Okt | J29: 0.08082201918
A30: Maj 2022 | B30: 81752 | I30: Nov | J30: 0.0816115213
A31: Jun 2022 | B31: 80865 | I31: Dec | J31: 0.08150558002
A32: Jul 2022 | B32: 78840
A33: Aug 2022 | B33: 77326
A34: Sep 2022 | B34: 77026
A35: Okt 2022 | B35: 77302
A36: Nov 2022 | B36: 78083
A37: Dec 2022 | B37: 78054
A38: Jan 2023 | B38: 78176
A39: Feb 2023 | B39: 78728
A40: Mar 2023 | B40: 78873
A41: Apr 2023 | B41: 78555
A42: Maj 2023 | B42: 78028
A43: Jun 2023 | B43: 77245
A44: Jul 2023 | B44: 75390
A45: Aug 2023 | B45: 74054
A46: Sep 2023 | B46: 74070
A47: Okt 2023 | B47: 74514
A48: Nov 2023 | B48: 75216
A49: Dec 2023 | B49: 75046
A50: Jan 2024 | B50: 74665 | C50: =S2 -> 82849.03768 | D50: =V2 -> 93488.12494 | E50: =T2 -> 82196.17529
A51: Feb 2024 | B51: 75413 | C51: 83169.40855 | D51: 93849.63634 | E51: =T3 -> 82514.02159
A52: Mar 2024 | B52: 75741 | C52: 83185.34996 | D52: 93867.62487 | E52: 82529.83737
A53: Apr 2024 | B53: 74855 | C53: 82782.70086 | D53: 93413.26945 | E53: 82130.36121
A54: Maj 2024 | B54: 73632 | C54: 82165.09987 | D54: 92716.35903 | E54: 81517.62701
A55: Jun 2024 | C55: 81306.32082 | D55: 91747.29957 | E55: 80665.61526
A56: Jul 2024 | C56: 79311.07369 | D56: 89495.8321 | E56: 78686.09096
A57: Aug 2024 | C57: 77845.49267 | D57: 87842.048 | E57: 77232.05894
A58: Sep 2024 | C58: 77699.44881 | D58: 87677.24987 | E58: 77087.16592
A59: Okt 2024 | C59: 78069.70085 | D59: 88095.04795 | E59: 77454.50033
A60: Nov 2024 | C60: 78832.31722 | D60: 88955.59596 | E60: 78211.10717
A61: Dec 2024 | C61: 78729.98367 | D61: 88840.12121 | E61: 78109.58002

Sheet Gammel FØP
B1: Aktivitet | C1: Budget 2024 | D1: ØA2024 | E1: MV2024 | H1: 2020 | J1: 2021 | L1: 2022 | N1: 2023 | P1: 2024 | S1: Budget 2024 | T1: MV2024 | U1: Prognose 2024 | V1: ØA2024
A2: Jan 2020 | G2: Jan 2020 | H2: =B2 -> 0 | I2: Jan 2021 | J2: =B14 -> 0 | K2: Jan 2022 | L2: =B26 -> 145394 | M2: Jan 2023 | N2: =B38 -> 139087 | O2: Jan 2024 | P2: =B50 -> 128878 | R2: Jan 2024 | S2: =$S$14*J20 -> 133350.8069 | T2: =$T$14*J20 -> 128771.4941 | U2: =IF(P2,P2,(SUM(IF(P2,P2,0))/SUM(IF(P2,J20,0))*J20)) -> 128878 | V2: =$V$14*J20 -> 123921.1256
A3: Feb 2020 | G3: Feb 2020 | H3: =B3 -> 0 | I3: Feb 2021 | J3: =B15 -> 0 | K3: Feb 2022 | L3: =B27 -> 145160 | M3: Feb 2023 | N3: =B39 -> 138204 | O3: Feb 2024 | P3: =B51 -> 128086 | R3: Feb 2024 | S3: 132827.2119 | T3: =$T$14*J21 -> 128265.8794 | U3: =IF(P3,P3,(SUM(IF(P2,P2,0)+IF(P3,P3,0))/SUM(IF(P2,J20,0)+IF(P3,J21,0))*J21)) -> 128086 | V3: 123434.5557
A4: Mar 2020 | G4: Mar 2020 | H4: 0 | I4: Mar 2021 | J4: 0 | K4: Mar 2022 | L4: 144967 | M4: Mar 2023 | N4: 137375 | O4: Mar 2024 | P4: 127332 | R4: Mar 2024 | S4: 132348.1481 | T4: 127803.2669 | U4: =IF(P4,P4,(SUM(IF(P2,P2,0)+IF(P3,P3,0)+IF(P4,P4,0))/SUM(IF(P2,J20,0)+IF(P3,J21,0)+IF(P4,J22,0))*J22)) -> 127332 | V4: 122989.3682
A5: Apr 2020 | G5: Apr 2020 | H5: 0 | I5: Apr 2021 | J5: 0 | K5: Apr 2022 | L5: 144718 | M5: Apr 2023 | N5: 136400 | O5: Apr 2024 | P5: 126485 | R5: Apr 2024 | S5: 131774.3967 | T5: 127249.2183 | U5: =IF(P5,P5,(SUM(IF(P2,P2,0)+IF(P3,P3,0)+IF(P4,P4,0)+IF(P5,P5,0))/SUM(IF(P2,J20,0)+IF(P3,J21,0)+IF(P4,J22,0)+IF(P5,J23,0))*J23)) -> 126485 | V5: 122456.1886
A6: Maj 2020 | G6: Maj 2020 | H6: 0 | I6: Maj 2021 | J6: 0 | K6: Maj 2022 | L6: 144546 | M6: Maj 2023 | N6: 135537 | O6: Maj 2024 | P6: 125613 | R6: Maj 2024 | S6: 131289.2392 | T6: 126780.7213 | U6: =IF(P6,P6,(SUM(IF(P2,P2,0)+IF(P3,P3,0)+IF(P4,P4,0)+IF(P5,P5,0)+IF(P6,P6,0))/SUM(IF(P2,J20,0)+IF(P3,J21,0)+IF(P4,J22,0)+IF(P5,J23,0)+IF(P6,J24,0))*J24)) -> 125613 | V6: 122005.3382
A7: Jun 2020 | G7: Jun 2020 | H7: 0 | I7: Jun 2021 | J7: 0 | K7: Jun 2022 | L7: 144358 | M7: Jun 2023 | N7: 134686 | O7: Jun 2024 | P7: 0 | R7: Jun 2024 | S7: 130802.2067 | T7: 126310.4137 | U7: =IF(P7,P7,(SUM(IF(P2,P2,0)+IF(P3,P3,0)+IF(P4,P4,0)+IF(P5,P5,0)+IF(P6,P6,0)+IF(P7,P7,0))/SUM(IF(P2,J20,0)+IF(P3,J21,0)+IF(P4,J22,0)+IF(P5,J23,0)+IF(P6,J24,0)+IF(P7,J25,0))*J25)) -> 125820.7717 | V7: 121552.7454
A8: Jul 2020 | G8: Jul 2020 | H8: 0 | I8: Jul 2021 | J8: 0 | K8: Jul 2022 | L8: 144155 | M8: Jul 2023 | N8: 133853 | O8: Jul 2024 | P8: 0 | R8: Jul 2024 | S8: 130316.5805 | T8: 125841.464 | U8: =IF(P8,P8,(SUM(IF(P2,P2,0)+IF(P3,P3,0)+IF(P4,P4,0)+IF(P5,P5,0)+IF(P6,P6,0)+IF(P7,P7,0)+IF(P8,P8,0))/SUM(IF(P2,J20,0)+IF(P3,J21,0)+IF(P4,J22,0)+IF(P5,J23,0)+IF(P6,J24,0)+IF(P7,J25,0)+IF(P8,J26,0))*J26)) -> 125353.6399 | V8: 121101.4594
A9: Aug 2020 | G9: Aug 2020 | H9: 0 | I9: Aug 2021 | J9: 0 | K9: Aug 2022 | L9: 143174 | M9: Aug 2023 | N9: 132924 | O9: Aug 2024 | P9: 0 | R9: Aug 2024 | S9: 129421.2657 | T9: 124976.8947 | U9: =IF(P9,P9,(SUM(IF(P2,P2,0)+IF(P3,P3,0)+IF(P4,P4,0)+IF(P5,P5,0)+IF(P6,P6,0)+IF(P7,P7,0)+IF(P8,P8,0)+IF(P9,P9,0))/SUM(IF(P2,J20,0)+IF(P3,J21,0)+IF(P4,J22,0)+IF(P5,J23,0)+IF(P6,J24,0)+IF(P7,J25,0)+IF(P8,J26,0)+IF(P9,J27,0))*J27)) -> 124492.4221 | V9: 120269.4554
A10: Sep 2020 | G10: Sep 2020 | H10: 0 | I10: Sep 2021 | J10: 0 | K10: Sep 2022 | L10: 142362 | M10: Sep 2023 | N10: 132062 | O10: Sep 2024 | P10: 0 | R10: Sep 2024 | S10: 128636.5762 | T10: 124219.1517 | U10: =IF(P10,P10,(SUM(IF(P2,P2,0)+IF(P3,P3,0)+IF(P4,P4,0)+IF(P5,P5,0)+IF(P6,P6,0)+IF(P7,P7,0)+IF(P8,P8,0)+IF(P9,P9,0)+IF(P10,P10,0))/SUM(IF(P2,J20,0)+IF(P3,J21,0)+IF(P4,J22,0)+IF(P5,J23,0)+IF(P6,J24,0)+IF(P7,J25,0)+IF(P8,J26,0)+IF(P9,J27,0)+IF(P10,J28,0))*J28)) -> 123737.6165 | V10: 119540.2539
A11: Okt 2020 | G11: Okt 2020 | H11: 0 | I11: Okt 2021 | J11: 0 | K11: Okt 2022 | L11: 141574 | M11: Okt 2023 | N11: 131188 | O11: Okt 2024 | P11: 0 | R11: Okt 2024 | S11: 127857.5118 | T11: 123466.8405 | U11: =IF(P11,P11,(SUM(IF(P2,P2,0)+IF(P3,P3,0)+IF(P4,P4,0)+IF(P5,P5,0)+IF(P6,P6,0)+IF(P7,P7,0)+IF(P8,P8,0)+IF(P9,P9,0)+IF(P10,P10,0)+IF(P11,P11,0))/SUM(IF(P2,J20,0)+IF(P3,J21,0)+IF(P4,J22,0)+IF(P5,J23,0)+IF(P6,J24,0)+IF(P7,J25,0)+IF(P8,J26,0)+IF(P9,J27,0)+IF(P10,J28,0)+IF(P11,J29,0))*J29)) -> 122988.2217 | V11: 118816.2797
A12: Nov 2020 | G12: Nov 2020 | H12: 0 | I12: Nov 2021 | J12: 0 | K12: Nov 2022 | L12: 140686 | M12: Nov 2023 | N12: 130438 | O12: Nov 2024 | P12: 0 | R12: Nov 2024 | S12: 127089.6973 | T12: 122725.3931 | U12: =IF(P12,P12,(SUM(IF(P2,P2,0)+IF(P3,P3,0)+IF(P4,P4,0)+IF(P5,P5,0)+IF(P6,P6,0)+IF(P7,P7,0)+IF(P8,P8,0)+IF(P9,P9,0)+IF(P10,P10,0)+IF(P11,P11,0)+IF(P12,P12,0))/SUM(IF(P2,J20,0)+IF(P3,J21,0)+IF(P4,J22,0)+IF(P5,J23,0)+IF(P6,J24,0)+IF(P7,J25,0)+IF(P8,J26,0)+IF(P9,J27,0)+IF(P10,J28,0)+IF(P11,J29,0)+IF(P12,J30,0))*J30)) -> 122249.6485 | V12: 118102.76
A13: Dec 2020 | G13: Dec 2020 | H13: 0 | I13: Dec 2021 | J13: 0 | K13: Dec 2022 | L13: 139820 | M13: Dec 2023 | N13: 129620 | O13: Dec 2024 | P13: 0 | R13: Dec 2024 | S13: 126300.3203 | T13: 121963.1236 | U13: =IF(P13,P13,(SUM(IF(P2,P2,0)+IF(P3,P3,0)+IF(P4,P4,0)+IF(P5,P5,0)+IF(P6,P6,0)+IF(P7,P7,0)+IF(P8,P8,0)+IF(P9,P9,0)+IF(P10,P10,0)+IF(P11,P11,0)+IF(P12,P12,0)+IF(P13,P13,0))/SUM(IF(P2,J20,0)+IF(P3,J21,0)+IF(P4,J22,0)+IF(P5,J23,0)+IF(P6,J24,0)+IF(P7,J25,0)+IF(P8,J26,0)+IF(P9,J27,0)+IF(P10,J28,0)+IF(P11,J29,0)+IF(P12,J30,0)+IF(P13,J31,0))*J31)) -> 121490.3339 | V13: 117369.2024
A14: Jan 2021 | G14: I alt 2020 | H14: =SUM(H2:H13) -> 0 | I14: I alt 2020 | J14: =SUM(J2:J13) -> 0 | K14: I alt 2022 | L14: =SUM(L2:L13) -> 1720914 | M14: I alt 2023 | N14: =SUM(N2:N13) -> 1611374 | O14: i alt 2024 | S14: =M26/(P21) -> 1562013.961 | T14: =O26/P21 -> 1508373.861 | U14: =SUM(U2:U13) -> 1502526.654 | V14: =N26/(P21) -> 1451558.733
A15: Feb 2021
A16: Mar 2021
A17: Apr 2021
A18: Maj 2021 | I18: Fordeling 2022-2023 | L18: Førtidspension
A19: Jun 2021
A20: Jul 2021 | I20: Jan | J20: =(H2+J2+L2+N2)/($H$14+$J$14+$L$14+$N$14) -> 0.08537107237 | L20: Regnskab 2023 (kr.) | M20: Aktivitet 2023 | N20: Mdl. fuldtidspers. | O20: Enhedspris 2023 (24-pl) | P20: Enhedspris (måned)
A21: Aug 2021 | I21: feb | J21: 0.08503586725 | L21: =SUMIF('Regnskab 2023'!A2:K100,Overblik!I23,'Regnskab 2023'!E2:E100)*1000 -> 15427725000 | M21: =SUMIF('Aktivitet 2023'!A2:K100,Overblik!I23,'Aktivitet 2023'!I2:I100) -> 134274 | N21: =N14 -> 1611374 | O21: =((((L21*1.032))/M21)) -> 118574.0516 | P21: =O21/12 -> 9881.170964
A22: Sep 2021 | I22: Mar | J22: 0.08472917107
A23: Okt 2021 | I23: Apr | J23: 0.08436185588 | L23: Prognose for udgifter og aktivitet
A24: Nov 2021 | I24: Maj | J24: 0.08405125847
A25: Dec 2021 | I25: Jun | J25: 0.08373946069 | M25: Budget 2024 | N25: ØA2024 | O25: MV2024 | P25: Prognose 2024
A26: Jan 2022 | B26: 145394 | I26: Jul | J26: 0.0834285632 | L26: Udgifter (kr.) | M26: =SUMIF('Budget 2024'!A2:K100,Overblik!I23,'Budget 2024'!E2:E100)*1000 -> 15434527000 | N26: =IF(Overblik!T27="Bloktilskud",SUMIF('Bloktilskudsdel - ØA24'!A2:K100,Overblik!I23,'Bloktilskudsdel - ØA24'!E2:E100),SUMIF('Overførselsskøn 2024'!A2:K100,Overblik!I23,'Overførselsskøn 2024'!E2:E100))*1000 -> 1.43431e+10 | O26: =IF(Overblik!T27="Bloktilskud",SUMIF('Bloktilskudsdel - MV24'!A2:K100,Overblik!I23,'Bloktilskudsdel - MV24'!E2:E100),SUMIF('Midtvejsvurdering 2024'!A2:K100,Overblik!I23,'Midtvejsvurdering 2024'!E2:E100))*1000 -> 1.49045e+10 | P26: =U14*P21 -> 1.484672275e+10
A27: Feb 2022 | B27: 145160 | I27: Aug | J27: 0.08285538345 | L27: Aktivitet* | M27: =M26/(P21) -> 1562013.961 | N27: =N26/(P21) -> 1451558.733 | O27: =O26/(P21) -> 1508373.861 | P27: =U14 -> 1502526.654
A28: Mar 2022 | B28: 144967 | I28: Sep | J28: 0.08235302591 | L28: * Aktiviteten er opgjort som de månedlige fuldtidspersoner i alt på et år.
A29: Apr 2022 | B29: 144718 | I29: Okt | J29: 0.0818542695
A30: Maj 2022 | B30: 144546 | I30: Nov | J30: 0.08136271535
A31: Jun 2022 | B31: 144358 | I31: Dec | J31: 0.08085735687
A32: Jul 2022 | B32: 144155
A33: Aug 2022 | B33: 143174
A34: Sep 2022 | B34: 142362
A35: Okt 2022 | B35: 141574
A36: Nov 2022 | B36: 140686
A37: Dec 2022 | B37: 139820
A38: Jan 2023 | B38: 139087
A39: Feb 2023 | B39: 138204
A40: Mar 2023 | B40: 137375
A41: Apr 2023 | B41: 136400
A42: Maj 2023 | B42: 135537
A43: Jun 2023 | B43: 134686
A44: Jul 2023 | B44: 133853
A45: Aug 2023 | B45: 132924
A46: Sep 2023 | B46: 132062
A47: Okt 2023 | B47: 131188
A48: Nov 2023 | B48: 130438
A49: Dec 2023 | B49: 129620
A50: Jan 2024 | B50: 128878 | C50: =S2 -> 133350.8069 | D50: =V2 -> 123921.1256 | E50: =T2 -> 128771.4941
A51: Feb 2024 | B51: 128086 | C51: 132827.2119 | D51: 123434.5557 | E51: =T3 -> 128265.8794
A52: Mar 2024 | B52: 127332 | C52: 132348.1481 | D52: 122989.3682 | E52: 127803.2669
A53: Apr 2024 | B53: 126485 | C53: 131774.3967 | D53: 122456.1886 | E53: 127249.2183
A54: Maj 2024 | B54: 125613 | C54: 131289.2392 | D54: 122005.3382 | E54: 126780.7213
A55: Jun 2024 | C55: 130802.2067 | D55: 121552.7454 | E55: 126310.4137
A56: Jul 2024 | C56: 130316.5805 | D56: 121101.4594 | E56: 125841.464
A57: Aug 2024 | C57: 129421.2657 | D57: 120269.4554 | E57: 124976.8947
A58: Sep 2024 | C58: 128636.5762 | D58: 119540.2539 | E58: 124219.1517
A59: Okt 2024 | C59: 127857.5118 | D59: 118816.2797 | E59: 123466.8405
A60: Nov 2024 | C60: 127089.6973 | D60: 118102.76 | E60: 122725.3931
A61: Dec 2024 | C61: 126300.3203 | D61: 117369.2024 | E61: 121963.1236

Sheet Ny FØP
B1: Aktivitet | C1: Budget 2024 | D1: ØA2024 | E1: MV2024 | H1: 2020 | J1: 2021 | L1: 2022 | N1: 2023 | P1: 2024 | S1: Budget 2024 | T1: MV2024 | U1: Prognose 2024 | V1: ØA2024
A2: Jan 2020 | G2: Jan 2020 | H2: =B2 -> 0 | I2: Jan 2021 | J2: =B14 -> 0 | K2: Jan 2022 | L2: =B26 -> 81449 | M2: Jan 2023 | N2: =B38 -> 97933 | O2: Jan 2024 | P2: =B50 -> 115694 | R2: Jan 2024 | S2: =$S$14*J20 -> 107166.2892 | T2: =$T$14*J20 -> 115097.0999 | U2: =IF(P2,P2,(SUM(IF(P2,P2,0))/SUM(IF(P2,J20,0))*J20)) -> 115694 | V2: =$V$14*J20 -> 109286.1174
A3: Feb 2020 | G3: Feb 2020 | H3: =B3 -> 0 | I3: Feb 2021 | J3: =B15 -> 0 | K3: Feb 2022 | L3: =B27 -> 82615 | M3: Feb 2023 | N3: =B39 -> 99341 | O3: Feb 2024 | P3: =B51 -> 117097 | R3: Feb 2024 | S3: 108704.0468 | T3: =$T$14*J21 -> 116748.6588 | U3: =IF(P3,P3,(SUM(IF(P2,P2,0)+IF(P3,P3,0))/SUM(IF(P2,J20,0)+IF(P3,J21,0))*J21)) -> 117097 | V3: 110854.2929
A4: Mar 2020 | G4: Mar 2020 | H4: 0 | I4: Mar 2021 | J4: 0 | K4: Mar 2022 | L4: 83782 | M4: Mar 2023 | N4: 100669 | O4: Mar 2024 | P4: 118451 | R4: Mar 2024 | S4: 110194.6082 | T4: 118349.5288 | U4: =IF(P4,P4,(SUM(IF(P2,P2,0)+IF(P3,P3,0)+IF(P4,P4,0))/SUM(IF(P2,J20,0)+IF(P3,J21,0)+IF(P4,J22,0))*J22)) -> 118451 | V4: 112374.3387
A5: Apr 2020 | G5: Apr 2020 | H5: 0 | I5: Apr 2021 | J5: 0 | K5: Apr 2022 | L5: 85145 | M5: Apr 2023 | N5: 102533 | O5: Apr 2024 | P5: 119585 | R5: Apr 2024 | S5: 112122.4806 | T5: 120420.0729 | U5: =IF(P5,P5,(SUM(IF(P2,P2,0)+IF(P3,P3,0)+IF(P4,P4,0)+IF(P5,P5,0))/SUM(IF(P2,J20,0)+IF(P3,J21,0)+IF(P4,J22,0)+IF(P5,J23,0))*J23)) -> 119585 | V5: 114340.3459
A6: Maj 2020 | G6: Maj 2020 | H6: 0 | I6: Maj 2021 | J6: 0 | K6: Maj 2022 | L6: 86353 | M6: Maj 2023 | N6: 103685 | O6: Maj 2024 | P6: 120990 | R6: Maj 2024 | S6: 113532.3905 | T6: 121934.3227 | U6: =IF(P6,P6,(SUM(IF(P2,P2,0)+IF(P3,P3,0)+IF(P4,P4,0)+IF(P5,P5,0)+IF(P6,P6,0))/SUM(IF(P2,J20,0)+IF(P3,J21,0)+IF(P4,J22,0)+IF(P5,J23,0)+IF(P6,J24,0))*J24)) -> 120990 | V6: 115778.1448
A7: Jun 2020 | G7: Jun 2020 | H7: 0 | I7: Jun 2021 | J7: 0 | K7: Jun 2022 | L7: 87750 | M7: Jun 2023 | N7: 105222 | O7: Jun 2024 | P7: 0 | R7: Jun 2024 | S7: 115285.219 | T7: 123816.8688 | U7: =IF(P7,P7,(SUM(IF(P2,P2,0)+IF(P3,P3,0)+IF(P4,P4,0)+IF(P5,P5,0)+IF(P6,P6,0)+IF(P7,P7,0))/SUM(IF(P2,J20,0)+IF(P3,J21,0)+IF(P4,J22,0)+IF(P5,J23,0)+IF(P6,J24,0)+IF(P7,J25,0))*J25)) -> 123663.7702 | V7: 117565.6456
A8: Jul 2020 | G8: Jul 2020 | H8: 0 | I8: Jul 2021 | J8: 0 | K8: Jul 2022 | L8: 89554 | M8: Jul 2023 | N8: 106984 | O8: Jul 2024 | P8: 0 | R8: Jul 2024 | S8: 117415.6166 | T8: 126104.9259 | U8: =IF(P8,P8,(SUM(IF(P2,P2,0)+IF(P3,P3,0)+IF(P4,P4,0)+IF(P5,P5,0)+IF(P6,P6,0)+IF(P7,P7,0)+IF(P8,P8,0))/SUM(IF(P2,J20,0)+IF(P3,J21,0)+IF(P4,J22,0)+IF(P5,J23,0)+IF(P6,J24,0)+IF(P7,J25,0)+IF(P8,J26,0))*J26)) -> 125948.9982 | V8: 119738.1841
A9: Aug 2020 | G9: Aug 2020 | H9: 0 | I9: Aug 2021 | J9: 0 | K9: Aug 2022 | L9: 90263 | M9: Aug 2023 | N9: 107930 | O9: Aug 2024 | P9: 0 | R9: Aug 2024 | S9: 118404.3458 | T9: 127166.8256 | U9: =IF(P9,P9,(SUM(IF(P2,P2,0)+IF(P3,P3,0)+IF(P4,P4,0)+IF(P5,P5,0)+IF(P6,P6,0)+IF(P7,P7,0)+IF(P8,P8,0)+IF(P9,P9,0))/SUM(IF(P2,J20,0)+IF(P3,J21,0)+IF(P4,J22,0)+IF(P5,J23,0)+IF(P6,J24,0)+IF(P7,J25,0)+IF(P8,J26,0)+IF(P9,J27,0))*J27)) -> 127009.5849 | V9: 120746.471
A10: Sep 2020 | G10: Sep 2020 | H10: 0 | I10: Sep 2021 | J10: 0 | K10: Sep 2022 | L10: 91367 | M10: Sep 2023 | N10: 109103 | O10: Sep 2024 | P10: 0 | R10: Sep 2024 | S10: 119764.6698 | T10: 128627.82 | U10: =IF(P10,P10,(SUM(IF(P2,P2,0)+IF(P3,P3,0)+IF(P4,P4,0)+IF(P5,P5,0)+IF(P6,P6,0)+IF(P7,P7,0)+IF(P8,P8,0)+IF(P9,P9,0)+IF(P10,P10,0))/SUM(IF(P2,J20,0)+IF(P3,J21,0)+IF(P4,J22,0)+IF(P5,J23,0)+IF(P6,J24,0)+IF(P7,J25,0)+IF(P8,J26,0)+IF(P9,J27,0)+IF(P10,J28,0))*J28)) -> 128468.7728 | V10: 122133.7032
A11: Okt 2020 | G11: Okt 2020 | H11: 0 | I11: Okt 2021 | J11: 0 | K11: Okt 2022 | L11: 93002 | M11: Okt 2023 | N11: 110716 | O11: Okt 2024 | P11: 0 | R11: Okt 2024 | S11: 121705.088 | T11: 130711.8384 | U11: =IF(P11,P11,(SUM(IF(P2,P2,0)+IF(P3,P3,0)+IF(P4,P4,0)+IF(P5,P5,0)+IF(P6,P6,0)+IF(P7,P7,0)+IF(P8,P8,0)+IF(P9,P9,0)+IF(P10,P10,0)+IF(P11,P11,0))/SUM(IF(P2,J20,0)+IF(P3,J21,0)+IF(P4,J22,0)+IF(P5,J23,0)+IF(P6,J24,0)+IF(P7,J25,0)+IF(P8,J26,0)+IF(P9,J27,0)+IF(P10,J28,0)+IF(P11,J29,0))*J29)) -> 130550.2142 | V11: 124112.5043
A12: Nov 2020 | G12: Nov 2020 | H12: 0 | I12: Nov 2021 | J12: 0 | K12: Nov 2022 | L12: 94486 | M12: Nov 2023 | N12: 112170 | O12: Nov 2024 | P12: 0 | R12: Nov 2024 | S12: 123460.3063 | T12: 132596.9511 | U12: =IF(P12,P12,(SUM(IF(P2,P2,0)+IF(P3,P3,0)+IF(P4,P4,0)+IF(P5,P5,0)+IF(P6,P6,0)+IF(P7,P7,0)+IF(P8,P8,0)+IF(P9,P9,0)+IF(P10,P10,0)+IF(P11,P11,0)+IF(P12,P12,0))/SUM(IF(P2,J20,0)+IF(P3,J21,0)+IF(P4,J22,0)+IF(P5,J23,0)+IF(P6,J24,0)+IF(P7,J25,0)+IF(P8,J26,0)+IF(P9,J27,0)+IF(P10,J28,0)+IF(P11,J29,0)+IF(P12,J30,0))*J30)) -> 132432.996 | V12: 125902.4421
A13: Dec 2020 | G13: Dec 2020 | H13: 0 | I13: Dec 2021 | J13: 0 | K13: Dec 2022 | L13: 96036 | M13: Dec 2023 | N13: 113737 | O13: Dec 2024 | P13: 0 | R13: Dec 2024 | S13: 125322.4626 | T13: 134596.9157 | U13: =IF(P13,P13,(SUM(IF(P2,P2,0)+IF(P3,P3,0)+IF(P4,P4,0)+IF(P5,P5,0)+IF(P6,P6,0)+IF(P7,P7,0)+IF(P8,P8,0)+IF(P9,P9,0)+IF(P10,P10,0)+IF(P11,P11,0)+IF(P12,P12,0)+IF(P13,P13,0))/SUM(IF(P2,J20,0)+IF(P3,J21,0)+IF(P4,J22,0)+IF(P5,J23,0)+IF(P6,J24,0)+IF(P7,J25,0)+IF(P8,J26,0)+IF(P9,J27,0)+IF(P10,J28,0)+IF(P11,J29,0)+IF(P12,J30,0)+IF(P13,J31,0))*J31)) -> 134430.4877 | V13: 127801.4332
A14: Jan 2021 | G14: I alt 2020 | H14: =SUM(H2:H13) -> 0 | I14: I alt 2020 | J14: =SUM(J2:J13) -> 0 | K14: I alt 2022 | L14: =SUM(L2:L13) -> 1061802 | M14: I alt 2023 | N14: =SUM(N2:N13) -> 1270023 | O14: i alt 2024 | S14: =M26/(P21) -> 1393077.523 | T14: =O26/P21 -> 1496171.829 | U14: =SUM(U2:U13) -> 1494321.824 | V14: =N26/(P21) -> 1420633.623
A15: Feb 2021
A16: Mar 2021
A17: Apr 2021
A18: Maj 2021 | I18: Fordeling 2022-2023 | L18: Førtidspension
A19: Jun 2021
A20: Jul 2021 | I20: Jan | J20: =(H2+J2+L2+N2)/($H$14+$J$14+$L$14+$N$14) -> 0.07692772828 | L20: Regnskab 2023 (kr.) | M20: Aktivitet 2023 | N20: Mdl. fuldtidspers. | O20: Enhedspris 2023 (24-pl) | P20: Enhedspris (måned)
A21: Aug 2021 | I21: feb | J21: 0.0780315847 | L21: =SUMIF('Regnskab 2023'!A2:K100,Overblik!I23,'Regnskab 2023'!F2:F100)*1000 -> 17003217000 | M21: =SUMIF('Aktivitet 2023'!A2:K100,Overblik!I23,'Aktivitet 2023'!J2:J100) -> 105843 | N21: =N14 -> 1270023 | O21: =((((L21*1.032))/M21)) -> 165786.3056 | P21: =O21/12 -> 13815.52547
A22: Sep 2021 | I22: Mar | J22: 0.07910156208
A23: Okt 2021 | I23: Apr | J23: 0.08048545667 | L23: Prognose for udgifter og aktivitet
A24: Nov 2021 | I24: Maj | J24: 0.08149753948
A25: Dec 2021 | I25: Jun | J25: 0.08275578142 | M25: Budget 2024 | N25: ØA2024 | O25: MV2024 | P25: Prognose 2024
A26: Jan 2022 | B26: 81449 | I26: Jul | J26: 0.0842850557 | L26: Udgifter (kr.) | M26: =SUMIF('Budget 2024'!A2:K100,Overblik!I23,'Budget 2024'!F2:F100)*1000 -> 19246098000 | N26: =IF(Overblik!T27="Bloktilskud",SUMIF('Bloktilskudsdel - ØA24'!A2:K100,Overblik!I23,'Bloktilskudsdel - ØA24'!F2:F100),SUMIF('Overførselsskøn 2024'!A2:K100,Overblik!I23,'Overførselsskøn 2024'!F2:F100))*1000 -> 19626800000 | O26: =IF(Overblik!T27="Bloktilskud",SUMIF('Bloktilskudsdel - MV24'!A2:K100,Overblik!I23,'Bloktilskudsdel - MV24'!F2:F100),SUMIF('Midtvejsvurdering 2024'!A2:K100,Overblik!I23,'Midtvejsvurdering 2024'!F2:F100))*1000 -> 20670400000 | P26: =U14*P21 -> 2.064484121e+10
A27: Feb 2022 | B27: 82615 | I27: Aug | J27: 0.08499480021 | L27: Aktivitet* | M27: =M26/(P21) -> 1393077.523 | N27: =N26/(P21) -> 1420633.623 | O27: =O26/(P21) -> 1496171.829 | P27: =U14 -> 1494321.824
A28: Mar 2022 | B28: 83782 | I28: Sep | J28: 0.08597128858 | L28: * Aktiviteten er opgjort som de månedlige fuldtidspersoner i alt på et år.
A29: Apr 2022 | B29: 85145 | I29: Okt | J29: 0.08736418899
A30: Maj 2022 | B30: 86353 | I30: Nov | J30: 0.08862414632
A31: Jun 2022 | B31: 87750 | I31: Dec | J31: 0.08996086756
A32: Jul 2022 | B32: 89554
A33: Aug 2022 | B33: 90263
A34: Sep 2022 | B34: 91367
A35: Okt 2022 | B35: 93002
A36: Nov 2022 | B36: 94486
A37: Dec 2022 | B37: 96036
A38: Jan 2023 | B38: 97933
A39: Feb 2023 | B39: 99341
A40: Mar 2023 | B40: 100669
A41: Apr 2023 | B41: 102533
A42: Maj 2023 | B42: 103685
A43: Jun 2023 | B43: 105222
A44: Jul 2023 | B44: 106984
A45: Aug 2023 | B45: 107930
A46: Sep 2023 | B46: 109103
A47: Okt 2023 | B47: 110716
A48: Nov 2023 | B48: 112170
A49: Dec 2023 | B49: 113737
A50: Jan 2024 | B50: 115694 | C50: =S2 -> 107166.2892 | D50: =V2 -> 109286.1174 | E50: =T2 -> 115097.0999
A51: Feb 2024 | B51: 117097 | C51: 108704.0468 | D51: 110854.2929 | E51: =T3 -> 116748.6588
A52: Mar 2024 | B52: 118451 | C52: 110194.6082 | D52: 112374.3387 | E52: 118349.5288
A53: Apr 2024 | B53: 119585 | C53: 112122.4806 | D53: 114340.3459 | E53: 120420.0729
A54: Maj 2024 | B54: 120990 | C54: 113532.3905 | D54: 115778.1448 | E54: 121934.3227
A55: Jun 2024 | C55: 115285.219 | D55: 117565.6456 | E55: 123816.8688
A56: Jul 2024 | C56: 117415.6166 | D56: 119738.1841 | E56: 126104.9259
A57: Aug 2024 | C57: 118404.3458 | D57: 120746.471 | E57: 127166.8256
A58: Sep 2024 | C58: 119764.6698 | D58: 122133.7032 | E58: 128627.82
A59: Okt 2024 | C59: 121705.088 | D59: 124112.5043 | E59: 130711.8384
A60: Nov 2024 | C60: 123460.3063 | D60: 125902.4421 | E60: 132596.9511
A61: Dec 2024 | C61: 125322.4626 | D61: 127801.4332 | E61: 134596.9157

Sheet Ledighedsydelse
B1: Aktivitet | C1: B2024 | D1: ØA2024 | E1: MV2024 | H1: 2020 | J1: 2021 | L1: 2022 | N1: 2023 | P1: 2024 | S1: Budget 2024 | T1: MV2024 | U1: Prognose 2024 | V1: ØA2024
A2: Jan 2020 | G2: Jan 2020 | H2: =B2 -> 0 | I2: Jan 2021 | J2: =B14 -> 0 | K2: Jan 2022 | L2: =B26 -> 13942 | M2: Jan 2023 | N2: =B38 -> 14569 | O2: Jan 2024 | P2: =B50 -> 15210 | R2: Jan 2024 | S2: =$S$14*J20 -> 14222.65766 | T2: =$T$14*J20 -> 15914.99709 | U2: =IF(P2,P2,(SUM(IF(P2,P2,0))/SUM(IF(P2,J20,0))*J20)) -> 15210 | V2: =$V$14*J20 -> 15816.87535
A3: Feb 2020 | G3: Feb 2020 | H3: =B3 -> 0 | I3: Feb 2021 | J3: =B15 -> 0 | K3: Feb 2022 | L3: =B27 -> 13686 | M3: Feb 2023 | N3: =B39 -> 14545 | O3: Feb 2024 | P3: =B51 -> 15223 | R3: Feb 2024 | S3: 14082.9802 | T3: =$T$14*J21 -> 15758.69955 | U3: =IF(P3,P3,(SUM(IF(P2,P2,0)+IF(P3,P3,0))/SUM(IF(P2,J20,0)+IF(P3,J21,0))*J21)) -> 15223 | V3: 15661.54144
A4: Mar 2020 | G4: Mar 2020 | H4: 0 | I4: Mar 2021 | J4: 0 | K4: Mar 2022 | L4: 13500 | M4: Mar 2023 | N4: 14589 | O4: Mar 2024 | P4: 15210 | R4: Mar 2024 | S4: 14012.14377 | T4: 15679.43437 | U4: =IF(P4,P4,(SUM(IF(P2,P2,0)+IF(P3,P3,0)+IF(P4,P4,0))/SUM(IF(P2,J20,0)+IF(P3,J21,0)+IF(P4,J22,0))*J22)) -> 15210 | V4: 15582.76496
A5: Apr 2020 | G5: Apr 2020 | H5: 0 | I5: Apr 2021 | J5: 0 | K5: Apr 2022 | L5: 13278 | M5: Apr 2023 | N5: 14453 | O5: Apr 2024 | P5: 14968 | R5: Apr 2024 | S5: 13833.55616 | T5: 15479.5968 | U5: =IF(P5,P5,(SUM(IF(P2,P2,0)+IF(P3,P3,0)+IF(P4,P4,0)+IF(P5,P5,0))/SUM(IF(P2,J20,0)+IF(P3,J21,0)+IF(P4,J22,0)+IF(P5,J23,0))*J23)) -> 14968 | V5: 15384.15946
A6: Maj 2020 | G6: Maj 2020 | H6: 0 | I6: Maj 2021 | J6: 0 | K6: Maj 2022 | L6: 13164 | M6: Maj 2023 | N6: 14296 | O6: Maj 2024 | P6: 14662 | R6: Maj 2024 | S6: 13698.36833 | T6: 15328.32311 | U6: =IF(P6,P6,(SUM(IF(P2,P2,0)+IF(P3,P3,0)+IF(P4,P4,0)+IF(P5,P5,0)+IF(P6,P6,0))/SUM(IF(P2,J20,0)+IF(P3,J21,0)+IF(P4,J22,0)+IF(P5,J23,0)+IF(P6,J24,0))*J24)) -> 14662 | V6: 15233.81842
A7: Jun 2020 | G7: Jun 2020 | H7: 0 | I7: Jun 2021 | J7: 0 | K7: Jun 2022 | L7: 13013 | M7: Jun 2023 | N7: 14090 | O7: Jun 2024 | P7: 0 | R7: Jun 2024 | S7: 13520.27956 | T7: 15129.04375 | U7: =IF(P7,P7,(SUM(IF(P2,P2,0)+IF(P3,P3,0)+IF(P4,P4,0)+IF(P5,P5,0)+IF(P6,P6,0)+IF(P7,P7,0))/SUM(IF(P2,J20,0)+IF(P3,J21,0)+IF(P4,J22,0)+IF(P5,J23,0)+IF(P6,J24,0)+IF(P7,J25,0))*J25)) -> 14570.02556 | V7: 15035.76769
A8: Jul 2020 | G8: Jul 2020 | H8: 0 | I8: Jul 2021 | J8: 0 | K8: Jul 2022 | L8: 13615 | M8: Jul 2023 | N8: 14926 | O8: Jul 2024 | P8: 0 | R8: Jul 2024 | S8: 14237.62311 | T8: 15931.74326 | U8: =IF(P8,P8,(SUM(IF(P2,P2,0)+IF(P3,P3,0)+IF(P4,P4,0)+IF(P5,P5,0)+IF(P6,P6,0)+IF(P7,P7,0)+IF(P8,P8,0))/SUM(IF(P2,J20,0)+IF(P3,J21,0)+IF(P4,J22,0)+IF(P5,J23,0)+IF(P6,J24,0)+IF(P7,J25,0)+IF(P8,J26,0))*J26)) -> 15343.06533 | V8: 15833.51827
A9: Aug 2020 | G9: Aug 2020 | H9: 0 | I9: Aug 2021 | J9: 0 | K9: Aug 2022 | L9: 13260 | M9: Aug 2023 | N9: 14586 | O9: Aug 2024 | P9: 0 | R9: Aug 2024 | S9: 13890.92369 | T9: 15543.79043 | U9: =IF(P9,P9,(SUM(IF(P2,P2,0)+IF(P3,P3,0)+IF(P4,P4,0)+IF(P5,P5,0)+IF(P6,P6,0)+IF(P7,P7,0)+IF(P8,P8,0)+IF(P9,P9,0))/SUM(IF(P2,J20,0)+IF(P3,J21,0)+IF(P4,J22,0)+IF(P5,J23,0)+IF(P6,J24,0)+IF(P7,J25,0)+IF(P8,J26,0)+IF(P9,J27,0))*J27)) -> 14969.44736 | V9: 15447.95731
A10: Sep 2020 | G10: Sep 2020 | H10: 0 | I10: Sep 2021 | J10: 0 | K10: Sep 2022 | L10: 13166 | M10: Sep 2023 | N10: 14420 | O10: Sep 2024 | P10: 0 | R10: Sep 2024 | S10: 13761.22319 | T10: 15398.657 | U10: =IF(P10,P10,(SUM(IF(P2,P2,0)+IF(P3,P3,0)+IF(P4,P4,0)+IF(P5,P5,0)+IF(P6,P6,0)+IF(P7,P7,0)+IF(P8,P8,0)+IF(P9,P9,0)+IF(P10,P10,0))/SUM(IF(P2,J20,0)+IF(P3,J21,0)+IF(P4,J22,0)+IF(P5,J23,0)+IF(P6,J24,0)+IF(P7,J25,0)+IF(P8,J26,0)+IF(P9,J27,0)+IF(P10,J28,0))*J28)) -> 14829.67661 | V10: 15303.71868
A11: Okt 2020 | G11: Okt 2020 | H11: 0 | I11: Okt 2021 | J11: 0 | K11: Okt 2022 | L11: 13383 | M11: Okt 2023 | N11: 14476 | O11: Okt 2024 | P11: 0 | R11: Okt 2024 | S11: 13897.40871 | T11: 15551.04711 | U11: =IF(P11,P11,(SUM(IF(P2,P2,0)+IF(P3,P3,0)+IF(P4,P4,0)+IF(P5,P5,0)+IF(P6,P6,0)+IF(P7,P7,0)+IF(P8,P8,0)+IF(P9,P9,0)+IF(P10,P10,0)+IF(P11,P11,0))/SUM(IF(P2,J20,0)+IF(P3,J21,0)+IF(P4,J22,0)+IF(P5,J23,0)+IF(P6,J24,0)+IF(P7,J25,0)+IF(P8,J26,0)+IF(P9,J27,0)+IF(P10,J28,0)+IF(P11,J29,0))*J29)) -> 14976.4359 | V11: 15455.16924
A12: Nov 2020 | G12: Nov 2020 | H12: 0 | I12: Nov 2021 | J12: 0 | K12: Nov 2022 | L12: 13588 | M12: Nov 2023 | N12: 14587 | O12: Nov 2024 | P12: 0 | R12: Nov 2024 | S12: 14055.04471 | T12: 15727.44004 | U12: =IF(P12,P12,(SUM(IF(P2,P2,0)+IF(P3,P3,0)+IF(P4,P4,0)+IF(P5,P5,0)+IF(P6,P6,0)+IF(P7,P7,0)+IF(P8,P8,0)+IF(P9,P9,0)+IF(P10,P10,0)+IF(P11,P11,0)+IF(P12,P12,0))/SUM(IF(P2,J20,0)+IF(P3,J21,0)+IF(P4,J22,0)+IF(P5,J23,0)+IF(P6,J24,0)+IF(P7,J25,0)+IF(P8,J26,0)+IF(P9,J27,0)+IF(P10,J28,0)+IF(P11,J29,0)+IF(P12,J30,0))*J30)) -> 15146.31112 | V12: 15630.47466
A13: Dec 2020 | G13: Dec 2020 | H13: 0 | I13: Dec 2021 | J13: 0 | K13: Dec 2022 | L13: 14042 | M13: Dec 2023 | N13: 14835 | O13: Dec 2024 | P13: 0 | R13: Dec 2024 | S13: 14405.23606 | T13: 16119.30031 | U13: =IF(P13,P13,(SUM(IF(P2,P2,0)+IF(P3,P3,0)+IF(P4,P4,0)+IF(P5,P5,0)+IF(P6,P6,0)+IF(P7,P7,0)+IF(P8,P8,0)+IF(P9,P9,0)+IF(P10,P10,0)+IF(P11,P11,0)+IF(P12,P12,0)+IF(P13,P13,0))/SUM(IF(P2,J20,0)+IF(P3,J21,0)+IF(P4,J22,0)+IF(P5,J23,0)+IF(P6,J24,0)+IF(P7,J25,0)+IF(P8,J26,0)+IF(P9,J27,0)+IF(P10,J28,0)+IF(P11,J29,0)+IF(P12,J30,0)+IF(P13,J31,0))*J31)) -> 15523.69214 | V13: 16019.91896
A14: Jan 2021 | G14: I alt 2020 | H14: =SUM(H2:H13) -> 0 | I14: I alt 2020 | J14: =SUM(J2:J13) -> 0 | K14: I alt 2022 | L14: =SUM(L2:L13) -> 161637 | M14: I alt 2023 | N14: =SUM(N2:N13) -> 174372 | O14: i alt 2024 | S14: =M26/(P21) -> 167617.4452 | T14: =O26/P21 -> 187562.0728 | U14: =SUM(U2:U13) -> 180631.654 | V14: =N26/(P21) -> 186405.6844
A15: Feb 2021
A16: Mar 2021
A17: Apr 2021
A18: Maj 2021 | I18: Fordeling 2022-2023 | L18: Ledighedsydelse
A19: Jun 2021
A20: Jul 2021 | I20: jan | J20: =(H2+J2+L2+N2)/($H$14+$J$14+$L$14+$N$14) -> 0.08485189385 | L20: Regnskab 2023 (kr.) | M20: Aktivitet 2023 | N20: Mdl. fuldtidspers. | O20: Enhedspris 2023 (24-pl) | P20: Enhedspris (måned)
A21: Aug 2021 | I21: feb | J21: 0.08401858284 | L21: =SUMIF('Regnskab 2023'!A2:K100,Overblik!I23,'Regnskab 2023'!D2:D100)*1000 -> 2257677000 | M21: =SUMIF('Aktivitet 2023'!A2:K100,Overblik!I23,'Aktivitet 2023'!G2:G100) -> 14529 | N21: =N14 -> 174372 | O21: =(((L21))/M21)*1.032 -> 160363.5945 | P21: =O21/12 -> 13363.63287
A22: Sep 2021 | I22: mar | J22: 0.08359597511
A23: Okt 2021 | I23: apr | J23: 0.08253052746 | L23: Prognose for udgifter og aktivitet
A24: Nov 2021 | I24: maj | J24: 0.08172400144
A25: Dec 2021 | I25: jun | J25: 0.0806615299 | M25: Budget 2024 | N25: ØA2024 | O25: MV2024 | P25: Prognose 2024
A26: Jan 2022 | B26: 13942 | I26: jul | J26: 0.08494117717 | L26: Udgifter (kr.) | M26: =SUMIF('Budget 2024'!A2:K100,Overblik!I23,'Budget 2024'!D2:D100)*1000 -> 2239978000 | N26: =IF(Overblik!T27="Bloktilskud",SUMIF('Bloktilskudsdel - ØA24'!A2:K100,Overblik!I23,'Bloktilskudsdel - ØA24'!D2:D100),SUMIF('Overførselsskøn 2024'!A2:K100,Overblik!I23,'Overførselsskøn 2024'!D2:D100))*1000 -> 2491057132 | O26: =IF(Overblik!T27="Bloktilskud",SUMIF('Bloktilskudsdel - MV24'!A2:K100,Overblik!I23,'Bloktilskudsdel - MV24'!D2:D100),SUMIF('Midtvejsvurdering 2024'!A2:K100,Overblik!I23,'Midtvejsvurdering 2024'!D2:D100))*1000 -> 2506510682 | P26: =U14*P21 -> 2413895109
A27: Feb 2022 | B27: 13686 | I27: aug | J27: 0.08287278019 | L27: Aktivitet* | M27: =M26/(P21) -> 167617.4452 | N27: =N26/(P21) -> 186405.6844 | O27: =O26/(P21) -> 187562.0728 | P27: =U14 -> 180631.654
A28: Mar 2022 | B28: 13500 | I28: sep | J28: 0.0820989914 | L28: * Aktiviteten er opgjort som de månedlige fuldtidspersoner i alt på et år.
A29: Apr 2022 | B29: 13278 | I29: okt | J29: 0.08291146963
A30: Maj 2022 | B30: 13164 | I30: nov | J30: 0.08385192063
A31: Jun 2022 | B31: 13013 | I31: dec | J31: 0.08594115039
A32: Jul 2022 | B32: 13615
A33: Aug 2022 | B33: 13260
A34: Sep 2022 | B34: 13166
A35: Okt 2022 | B35: 13383
A36: Nov 2022 | B36: 13588
A37: Dec 2022 | B37: 14042
A38: Jan 2023 | B38: 14569
A39: Feb 2023 | B39: 14545
A40: Mar 2023 | B40: 14589
A41: Apr 2023 | B41: 14453
A42: Maj 2023 | B42: 14296
A43: Jun 2023 | B43: 14090
A44: Jul 2023 | B44: 14926
A45: Aug 2023 | B45: 14586
A46: Sep 2023 | B46: 14420
A47: Okt 2023 | B47: 14476
A48: Nov 2023 | B48: 14587
A49: Dec 2023 | B49: 14835
A50: Jan 2024 | B50: 15210 | C50: =S2 -> 14222.65766 | D50: =V2 -> 15816.87535 | E50: =T2 -> 15914.99709
A51: Feb 2024 | B51: 15223 | C51: 14082.9802 | D51: 15661.54144 | E51: =T3 -> 15758.69955
A52: Mar 2024 | B52: 15210 | C52: 14012.14377 | D52: 15582.76496 | E52: 15679.43437
A53: Apr 2024 | B53: 14968 | C53: 13833.55616 | D53: 15384.15946 | E53: 15479.5968
A54: Maj 2024 | B54: 14662 | C54: 13698.36833 | D54: 15233.81842 | E54: 15328.32311
A55: Jun 2024 | C55: 13520.27956 | D55: 15035.76769 | E55: 15129.04375
A56: Jul 2024 | C56: 14237.62311 | D56: 15833.51827 | E56: 15931.74326
A57: Aug 2024 | C57: 13890.92369 | D57: 15447.95731 | E57: 15543.79043
A58: Sep 2024 | C58: 13761.22319 | D58: 15303.71868 | E58: 15398.657
A59: Okt 2024 | C59: 13897.40871 | D59: 15455.16924 | E59: 15551.04711
A60: Nov 2024 | C60: 14055.04471 | D60: 15630.47466 | E60: 15727.44004
A61: Dec 2024 | C61: 14405.23606 | D61: 16019.91896 | E61: 16119.30031

Sheet Driftsudgifter til aktivering
B1: Aktivitet | C1: B2024 | D1: ØA2024 | E1: MV2024 | H1: 2020 | J1: 2021 | L1: 2022 | N1: 2023 | P1: 2024 | S1: Budget 2024 | T1: MV2024 | U1: Prognose 2024 | V1: ØA2024
A2: Jan 2020 | G2: Jan 2020 | H2: =B2 -> 0 | I2: Jan 2021 | J2: =B14 -> 0 | K2: Jan 2022 | L2: =B26 -> 19755 | M2: Jan 2023 | N2: =B38 -> 19599 | O2: Jan 2024 | P2: =B50 -> 16548 | R2: Jan 2024 | S2: =$S$14*J20 -> 18852.40524 | T2: =J20*$T$14 -> 18855.16717 | U2: =IF(P2,P2,(SUM(IF(P2,P2,0))/SUM(IF(P2,J20,0))*J20)) -> 16548 | V2: =$V$14*J20 -> 18364.92297
A3: Feb 2020 | G3: Feb 2020 | H3: =B3 -> 0 | I3: Feb 2021 | J3: =B15 -> 0 | K3: Feb 2022 | L3: =B27 -> 20370 | M3: Feb 2023 | N3: =B39 -> 20884 | O3: Feb 2024 | P3: =B51 -> 17652 | R3: Feb 2024 | S3: 19762.59404 | T3: =J21*$T$14 -> 19765.48932 | U3: =IF(P3,P3,(SUM(IF(P2,P2,0)+IF(P3,P3,0))/SUM(IF(P2,J20,0)+IF(P3,J21,0))*J21)) -> 17652 | V3: 19251.57626
A4: Mar 2020 | G4: Mar 2020 | H4: 0 | I4: Mar 2021 | J4: 0 | K4: Mar 2022 | L4: 20984 | M4: Mar 2023 | N4: 21266 | O4: Mar 2024 | P4: 17806 | R4: Mar 2024 | S4: 20239.72459 | T4: 20242.68977 | U4: =IF(P4,P4,(SUM(IF(P2,P2,0)+IF(P3,P3,0)+IF(P4,P4,0))/SUM(IF(P2,J20,0)+IF(P3,J21,0)+IF(P4,J22,0))*J22)) -> 17806 | V4: 19716.36925
A5: Apr 2020 | G5: Apr 2020 | H5: 0 | I5: Apr 2021 | J5: 0 | K5: Apr 2022 | L5: 20293 | M5: Apr 2023 | N5: 19308 | O5: Apr 2024 | P5: 17342 | R5: Apr 2024 | S5: 18970.72979 | T5: 18973.50905 | U5: =IF(P5,P5,(SUM(IF(P2,P2,0)+IF(P3,P3,0)+IF(P4,P4,0)+IF(P5,P5,0))/SUM(IF(P2,J20,0)+IF(P3,J21,0)+IF(P4,J22,0)+IF(P5,J23,0))*J23)) -> 17342 | V5: 18480.1879
A6: Maj 2020 | G6: Maj 2020 | H6: 0 | I6: Maj 2021 | J6: 0 | K6: Maj 2022 | L6: 20629 | M6: Maj 2023 | N6: 18489 | O6: Maj 2024 | P6: 0 | R6: Maj 2024 | S6: 18739.35021 | T6: 18742.09558 | U6: =IF(P6,P6,(SUM(IF(P2,P2,0)+IF(P3,P3,0)+IF(P4,P4,0)+IF(P5,P5,0)+IF(P6,P6,0))/SUM(IF(P2,J20,0)+IF(P3,J21,0)+IF(P4,J22,0)+IF(P5,J23,0)+IF(P6,J24,0))*J24)) -> 16698.09037 | V6: 18254.7913
A7: Jun 2020 | G7: Jun 2020 | H7: 0 | I7: Jun 2021 | J7: 0 | K7: Jun 2022 | L7: 19711 | M7: Jun 2023 | N7: 17206 | O7: Jun 2024 | P7: 0 | R7: Jun 2024 | S7: 17684.96835 | T7: 17687.55925 | U7: =IF(P7,P7,(SUM(IF(P2,P2,0)+IF(P3,P3,0)+IF(P4,P4,0)+IF(P5,P5,0)+IF(P6,P6,0)+IF(P7,P7,0))/SUM(IF(P2,J20,0)+IF(P3,J21,0)+IF(P4,J22,0)+IF(P5,J23,0)+IF(P6,J24,0)+IF(P7,J25,0))*J25)) -> 15758.56134 | V7: 17227.67346
A8: Jul 2020 | G8: Jul 2020 | H8: 0 | I8: Jul 2021 | J8: 0 | K8: Jul 2022 | L8: 16337 | M8: Jul 2023 | N8: 13637 | O8: Jul 2024 | P8: 0 | R8: Jul 2024 | S8: 14358.94686 | T8: 14361.05049 | U8: =IF(P8,P8,(SUM(IF(P2,P2,0)+IF(P3,P3,0)+IF(P4,P4,0)+IF(P5,P5,0)+IF(P6,P6,0)+IF(P7,P7,0)+IF(P8,P8,0))/SUM(IF(P2,J20,0)+IF(P3,J21,0)+IF(P4,J22,0)+IF(P5,J23,0)+IF(P6,J24,0)+IF(P7,J25,0)+IF(P8,J26,0))*J26)) -> 12794.84025 | V8: 13987.65566
A9: Aug 2020 | G9: Aug 2020 | H9: 0 | I9: Aug 2021 | J9: 0 | K9: Aug 2022 | L9: 17857 | M9: Aug 2023 | N9: 14947 | O9: Aug 2024 | P9: 0 | R9: Aug 2024 | S9: 15714.64912 | T9: 15716.95136 | U9: =IF(P9,P9,(SUM(IF(P2,P2,0)+IF(P3,P3,0)+IF(P4,P4,0)+IF(P5,P5,0)+IF(P6,P6,0)+IF(P7,P7,0)+IF(P8,P8,0)+IF(P9,P9,0))/SUM(IF(P2,J20,0)+IF(P3,J21,0)+IF(P4,J22,0)+IF(P5,J23,0)+IF(P6,J24,0)+IF(P7,J25,0)+IF(P8,J26,0)+IF(P9,J27,0))*J27)) -> 14002.86714 | V9: 15308.30241
A10: Sep 2020 | G10: Sep 2020 | H10: 0 | I10: Sep 2021 | J10: 0 | K10: Sep 2022 | L10: 20035 | M10: Sep 2023 | N10: 17454 | O10: Sep 2024 | P10: 0 | R10: Sep 2024 | S10: 17958.98308 | T10: 17961.61412 | U10: =IF(P10,P10,(SUM(IF(P2,P2,0)+IF(P3,P3,0)+IF(P4,P4,0)+IF(P5,P5,0)+IF(P6,P6,0)+IF(P7,P7,0)+IF(P8,P8,0)+IF(P9,P9,0)+IF(P10,P10,0))/SUM(IF(P2,J20,0)+IF(P3,J21,0)+IF(P4,J22,0)+IF(P5,J23,0)+IF(P6,J24,0)+IF(P7,J25,0)+IF(P8,J26,0)+IF(P9,J27,0)+IF(P10,J28,0))*J28)) -> 16002.7279 | V10: 17494.60276
A11: Okt 2020 | G11: Okt 2020 | H11: 0 | I11: Okt 2021 | J11: 0 | K11: Okt 2022 | L11: 20676 | M11: Okt 2023 | N11: 18345 | O11: Okt 2024 | P11: 0 | R11: Okt 2024 | S11: 18692.88268 | T11: 18695.62124 | U11: =IF(P11,P11,(SUM(IF(P2,P2,0)+IF(P3,P3,0)+IF(P4,P4,0)+IF(P5,P5,0)+IF(P6,P6,0)+IF(P7,P7,0)+IF(P8,P8,0)+IF(P9,P9,0)+IF(P10,P10,0)+IF(P11,P11,0))/SUM(IF(P2,J20,0)+IF(P3,J21,0)+IF(P4,J22,0)+IF(P5,J23,0)+IF(P6,J24,0)+IF(P7,J25,0)+IF(P8,J26,0)+IF(P9,J27,0)+IF(P10,J28,0)+IF(P11,J29,0))*J29)) -> 16656.68451 | V11: 18209.52531
A12: Nov 2020 | G12: Nov 2020 | H12: 0 | I12: Nov 2021 | J12: 0 | K12: Nov 2022 | L12: 21479 | M12: Nov 2023 | N12: 18686 | O12: Nov 2024 | P12: 0 | R12: Nov 2024 | S12: 19240.91215 | T12: 19243.73099 | U12: =IF(P12,P12,(SUM(IF(P2,P2,0)+IF(P3,P3,0)+IF(P4,P4,0)+IF(P5,P5,0)+IF(P6,P6,0)+IF(P7,P7,0)+IF(P8,P8,0)+IF(P9,P9,0)+IF(P10,P10,0)+IF(P11,P11,0)+IF(P12,P12,0))/SUM(IF(P2,J20,0)+IF(P3,J21,0)+IF(P4,J22,0)+IF(P5,J23,0)+IF(P6,J24,0)+IF(P7,J25,0)+IF(P8,J26,0)+IF(P9,J27,0)+IF(P10,J28,0)+IF(P11,J29,0)+IF(P12,J30,0))*J30)) -> 17145.01764 | V12: 18743.38393
A13: Dec 2020 | G13: Dec 2020 | H13: 0 | I13: Dec 2021 | J13: 0 | K13: Dec 2022 | L13: 20425 | M13: Dec 2023 | N13: 17029 | O13: Dec 2024 | P13: 0 | R13: Dec 2024 | S13: 17942.21644 | T13: 17944.84503 | U13: =IF(P13,P13,(SUM(IF(P2,P2,0)+IF(P3,P3,0)+IF(P4,P4,0)+IF(P5,P5,0)+IF(P6,P6,0)+IF(P7,P7,0)+IF(P8,P8,0)+IF(P9,P9,0)+IF(P10,P10,0)+IF(P11,P11,0)+IF(P12,P12,0)+IF(P13,P13,0))/SUM(IF(P2,J20,0)+IF(P3,J21,0)+IF(P4,J22,0)+IF(P5,J23,0)+IF(P6,J24,0)+IF(P7,J25,0)+IF(P8,J26,0)+IF(P9,J27,0)+IF(P10,J28,0)+IF(P11,J29,0)+IF(P12,J30,0)+IF(P13,J31,0))*J31)) -> 15987.78764 | V13: 17478.26968
A14: Jan 2021 | G14: I alt 2020 | H14: =SUM(H2:H13) -> 0 | I14: I alt 2020 | J14: =SUM(J2:J13) -> 0 | K14: I alt 2022 | L14: =SUM(L2:L13) -> 238551 | M14: I alt 2023 | N14: =SUM(N2:N13) -> 216850 | O14: i alt 2024 | S14: =M26/(P21) -> 218158.3626 | T14: =O26/P21 -> 218190.3234 | U14: =SUM(U2:U13) -> 194394.5768 | V14: =N26/(P21) -> 212517.2609
A15: Feb 2021
A16: Mar 2021
A17: Apr 2021
A18: Maj 2021 | I18: Fordeling 2022-2023 | L18: Driftsudgifter til aktivering mv.
A19: Jun 2021
A20: Jul 2021 | I20: Jan | J20: =(H2+J2+L2+N2)/($H$14+$J$14+$L$14+$N$14) -> 0.08641614753 | L20: Regnskab 2023 (kr.) | M20: Aktivitet 2023 | N20: Mdl. fuldtidspers. | O20: Enhedspris 2023 (24-pl) | P20: Enhedspris (måned)
A21: Aug 2021 | I21: feb | J21: 0.09058829471 | L21: =SUMIF('Regnskab 2023'!A2:K100,Overblik!I23,'Regnskab 2023'!I2:I100)*1000 -> 4028543000 | M21: =SUMIF('Aktivitet 2023'!A2:K100,Overblik!I23,'Aktivitet 2023'!K2:K100) -> 18053 | N21: =N14 -> 216850 | O21: =(((L21))/M21)*1.032 -> 230291.7175 | P21: =O21/12 -> 19190.97646
A22: Sep 2021 | I22: Mar | J22: 0.09277537818
A23: Okt 2021 | I23: Apr | J23: 0.08695852666 | L23: Prognose for udgifter og aktivitet
A24: Nov 2021 | I24: Maj | J24: 0.08589792293
A25: Dec 2021 | I25: Jun | J25: 0.0810648198 | M25: Budget 2024 | N25: ØA2024 | O25: MV2024 | P25: Prognose 2024
A26: Jan 2022 | B26: 19755 | I26: Jul | J26: 0.06581891564 | L26: Udgifter (kr.) | M26: =SUMIF('Budget 2024'!A2:K100,Overblik!I23,'Budget 2024'!I2:I100)*1000 -> 4186672000 | N26: =IF(Overblik!T27="Bloktilskud",SUMIF('Bloktilskudsdel - ØA24'!A2:K100,Overblik!I23,'Bloktilskudsdel - ØA24'!I2:I100),SUMIF('Overførselsskøn 2024'!A2:K100,Overblik!I23,'Overførselsskøn 2024'!I2:I100))*1000 -> 4078413750 | O26: =IF(Overblik!T27="Bloktilskud",SUMIF('Bloktilskudsdel - MV24'!A2:K100,Overblik!I23,'Bloktilskudsdel - MV24'!I2:I100),SUMIF('Midtvejsvurdering 2024'!A2:K100,Overblik!I23,'Midtvejsvurdering 2024'!I2:I100))*1000 -> 4187285359 | P26: =U14*P21 -> 3730621746
A27: Feb 2022 | B27: 20370 | I27: Aug | J27: 0.07203321908 | L27: Aktivitet* | M27: =M26/(P21) -> 218158.3626 | N27: =N26/(P21) -> 212517.2609 | O27: =O26/(P21) -> 218190.3234 | P27: =U14 -> 194394.5768
A28: Mar 2022 | B28: 20984 | I28: Sep | J28: 0.08232085569 | L28: * Aktiviteten er opgjort som de månedlige fuldtidspersoner i alt på et år.
A29: Apr 2022 | B29: 20293 | I29: Okt | J29: 0.08568492384
A30: Maj 2022 | B30: 20629 | I30: Nov | J30: 0.08819699561
A31: Jun 2022 | B31: 19711 | I31: Dec | J31: 0.08224400034
A32: Jul 2022 | B32: 16337
A33: Aug 2022 | B33: 17857
A34: Sep 2022 | B34: 20035
A35: Okt 2022 | B35: 20676
A36: Nov 2022 | B36: 21479
A37: Dec 2022 | B37: 20425
A38: Jan 2023 | B38: 19599
A39: Feb 2023 | B39: 20884
A40: Mar 2023 | B40: 21266
A41: Apr 2023 | B41: 19308
A42: Maj 2023 | B42: 18489
A43: Jun 2023 | B43: 17206
A44: Jul 2023 | B44: 13637
A45: Aug 2023 | B45: 14947
A46: Sep 2023 | B46: 17454
A47: Okt 2023 | B47: 18345
A48: Nov 2023 | B48: 18686
A49: Dec 2023 | B49: 17029
A50: Jan 2024 | B50: 16548 | C50: =S2 -> 18852.40524 | D50: =V2 -> 18364.92297 | E50: =T2 -> 18855.16717
A51: Feb 2024 | B51: 17652 | C51: 19762.59404 | D51: 19251.57626 | E51: =T3 -> 19765.48932
A52: Mar 2024 | B52: 17806 | C52: 20239.72459 | D52: 19716.36925 | E52: 20242.68977
A53: Apr 2024 | B53: 17342 | C53: 18970.72979 | D53: 18480.1879 | E53: 18973.50905
A54: Maj 2024 | C54: 18739.35021 | D54: 18254.7913 | E54: 18742.09558
A55: Jun 2024 | C55: 17684.96835 | D55: 17227.67346 | E55: 17687.55925
A56: Jul 2024 | C56: 14358.94686 | D56: 13987.65566 | E56: 14361.05049
A57: Aug 2024 | C57: 15714.64912 | D57: 15308.30241 | E57: 15716.95136
A58: Sep 2024 | C58: 17958.98308 | D58: 17494.60276 | E58: 17961.61412
A59: Okt 2024 | C59: 18692.88268 | D59: 18209.52531 | E59: 18695.62124
A60: Nov 2024 | C60: 19240.91215 | D60: 18743.38393 | E60: 19243.73099
A61: Dec 2024 | C61: 17942.21644 | D61: 17478.26968 | E61: 17944.84503

Sheet Ressourceforløb
B1: Aktivitet | C1: B2024 | D1: ØA2024 | E1: MV2024 | H1: 2020 | J1: 2021 | L1: 2022 | N1: 2023 | P1: 2024 | S1: Budget 2024 | T1: MV2024 | U1: Prognose 2024 | V1: ØA2024
A2: Jan 2020 | G2: Jan 2020 | H2: =B2 -> 0 | I2: Jan 2021 | J2: =B14 -> 0 | K2: Jan 2022 | L2: =B26 -> 21320 | M2: Jan 2023 | N2: =B38 -> 18560 | O2: Jan 2024 | P2: =B50 -> 16175 | R2: Jan 2024 | S2: =$S$14*J20 -> 18649.10225 | T2: =$T$14*J20 -> 17291.00828 | U2: =IF(P2,P2,(SUM(IF(P2,P2,0))/SUM(IF(P2,J20,0))*J20)) -> 16175 | V2: =$V$14*J20 -> 18507.88966
A3: Feb 2020 | G3: Feb 2020 | H3: =B3 -> 0 | I3: Feb 2021 | J3: =B15 -> 0 | K3: Feb 2022 | L3: =B27 -> 21203 | M3: Feb 2023 | N3: =B39 -> 18283 | O3: Feb 2024 | P3: =B51 -> 16096 | R3: Feb 2024 | S3: 18464.85586 | T3: =$T$14*J21 -> 17120.17936 | U3: =IF(P3,P3,(SUM(IF(P2,P2,0)+IF(P3,P3,0))/SUM(IF(P2,J20,0)+IF(P3,J21,0))*J21)) -> 16096 | V3: 18325.03839
A4: Mar 2020 | G4: Mar 2020 | H4: 0 | I4: Mar 2021 | J4: 0 | K4: Mar 2022 | L4: 21029 | M4: Mar 2023 | N4: 18060 | O4: Mar 2024 | P4: 16000 | R4: Mar 2024 | S4: 18279.20657 | T4: 16948.04971 | U4: =IF(P4,P4,(SUM(IF(P2,P2,0)+IF(P3,P3,0)+IF(P4,P4,0))/SUM(IF(P2,J20,0)+IF(P3,J21,0)+IF(P4,J22,0))*J22)) -> 16000 | V4: 18140.79485
A5: Apr 2020 | G5: Apr 2020 | H5: 0 | I5: Apr 2021 | J5: 0 | K5: Apr 2022 | L5: 20831 | M5: Apr 2023 | N5: 17764 | O5: Apr 2024 | P5: 15913 | R5: Apr 2024 | S5: 18048.19713 | T5: 16733.8632 | U5: =IF(P5,P5,(SUM(IF(P2,P2,0)+IF(P3,P3,0)+IF(P4,P4,0)+IF(P5,P5,0))/SUM(IF(P2,J20,0)+IF(P3,J21,0)+IF(P4,J22,0)+IF(P5,J23,0))*J23)) -> 15913 | V5: 17911.53464
A6: Maj 2020 | G6: Maj 2020 | H6: 0 | I6: Maj 2021 | J6: 0 | K6: Maj 2022 | L6: 20675 | M6: Maj 2023 | N6: 17586 | O6: Maj 2024 | P6: 15809 | R6: Maj 2024 | S6: 17892.00856 | T6: 16589.04884 | U6: =IF(P6,P6,(SUM(IF(P2,P2,0)+IF(P3,P3,0)+IF(P4,P4,0)+IF(P5,P5,0)+IF(P6,P6,0))/SUM(IF(P2,J20,0)+IF(P3,J21,0)+IF(P4,J22,0)+IF(P5,J23,0)+IF(P6,J24,0))*J24)) -> 15809 | V6: 17756.52874
A7: Jun 2020 | G7: Jun 2020 | H7: 0 | I7: Jun 2021 | J7: 0 | K7: Jun 2022 | L7: 20471 | M7: Jun 2023 | N7: 17416 | O7: Jun 2024 | P7: 0 | R7: Jun 2024 | S7: 17717.11477 | T7: 16426.89144 | U7: =IF(P7,P7,(SUM(IF(P2,P2,0)+IF(P3,P3,0)+IF(P4,P4,0)+IF(P5,P5,0)+IF(P6,P6,0)+IF(P7,P7,0))/SUM(IF(P2,J20,0)+IF(P3,J21,0)+IF(P4,J22,0)+IF(P5,J23,0)+IF(P6,J24,0)+IF(P7,J25,0))*J25)) -> 15517.2765 | V7: 17582.95926
A8: Jul 2020 | G8: Jul 2020 | H8: 0 | I8: Jul 2021 | J8: 0 | K8: Jul 2022 | L8: 20161 | M8: Jul 2023 | N8: 17143 | O8: Jul 2024 | P8: 0 | R8: Jul 2024 | S8: 17444.48622 | T8: 16174.11667 | U8: =IF(P8,P8,(SUM(IF(P2,P2,0)+IF(P3,P3,0)+IF(P4,P4,0)+IF(P5,P5,0)+IF(P6,P6,0)+IF(P7,P7,0)+IF(P8,P8,0))/SUM(IF(P2,J20,0)+IF(P3,J21,0)+IF(P4,J22,0)+IF(P5,J23,0)+IF(P6,J24,0)+IF(P7,J25,0)+IF(P8,J26,0))*J26)) -> 15278.49876 | V8: 17312.39508
A9: Aug 2020 | G9: Aug 2020 | H9: 0 | I9: Aug 2021 | J9: 0 | K9: Aug 2022 | L9: 20013 | M9: Aug 2023 | N9: 16933 | O9: Aug 2024 | P9: 0 | R9: Aug 2024 | S9: 17277.07452 | T9: 16018.89649 | U9: =IF(P9,P9,(SUM(IF(P2,P2,0)+IF(P3,P3,0)+IF(P4,P4,0)+IF(P5,P5,0)+IF(P6,P6,0)+IF(P7,P7,0)+IF(P8,P8,0)+IF(P9,P9,0))/SUM(IF(P2,J20,0)+IF(P3,J21,0)+IF(P4,J22,0)+IF(P5,J23,0)+IF(P6,J24,0)+IF(P7,J25,0)+IF(P8,J26,0)+IF(P9,J27,0))*J27)) -> 15131.87367 | V9: 17146.25103
A10: Sep 2020 | G10: Sep 2020 | H10: 0 | I10: Sep 2021 | J10: 0 | K10: Sep 2022 | L10: 19782 | M10: Sep 2023 | N10: 16787 | O10: Sep 2024 | P10: 0 | R10: Sep 2024 | S10: 17100.77784 | T10: 15855.43836 | U10: =IF(P10,P10,(SUM(IF(P2,P2,0)+IF(P3,P3,0)+IF(P4,P4,0)+IF(P5,P5,0)+IF(P6,P6,0)+IF(P7,P7,0)+IF(P8,P8,0)+IF(P9,P9,0)+IF(P10,P10,0))/SUM(IF(P2,J20,0)+IF(P3,J21,0)+IF(P4,J22,0)+IF(P5,J23,0)+IF(P6,J24,0)+IF(P7,J25,0)+IF(P8,J26,0)+IF(P9,J27,0)+IF(P10,J28,0))*J28)) -> 14977.46679 | V10: 16971.28929
A11: Okt 2020 | G11: Okt 2020 | H11: 0 | I11: Okt 2021 | J11: 0 | K11: Okt 2022 | L11: 19473 | M11: Okt 2023 | N11: 16638 | O11: Okt 2024 | P11: 0 | R11: Okt 2024 | S11: 16886.6031 | T11: 15656.86058 | U11: =IF(P11,P11,(SUM(IF(P2,P2,0)+IF(P3,P3,0)+IF(P4,P4,0)+IF(P5,P5,0)+IF(P6,P6,0)+IF(P7,P7,0)+IF(P8,P8,0)+IF(P9,P9,0)+IF(P10,P10,0)+IF(P11,P11,0))/SUM(IF(P2,J20,0)+IF(P3,J21,0)+IF(P4,J22,0)+IF(P5,J23,0)+IF(P6,J24,0)+IF(P7,J25,0)+IF(P8,J26,0)+IF(P9,J27,0)+IF(P10,J28,0)+IF(P11,J29,0))*J29)) -> 14789.88497 | V11: 16758.73629
A12: Nov 2020 | G12: Nov 2020 | H12: 0 | I12: Nov 2021 | J12: 0 | K12: Nov 2022 | L12: 19179 | M12: Nov 2023 | N12: 16498 | O12: Nov 2024 | P12: 0 | R12: Nov 2024 | S12: 16683.65148 | T12: 15468.68862 | U12: =IF(P12,P12,(SUM(IF(P2,P2,0)+IF(P3,P3,0)+IF(P4,P4,0)+IF(P5,P5,0)+IF(P6,P6,0)+IF(P7,P7,0)+IF(P8,P8,0)+IF(P9,P9,0)+IF(P10,P10,0)+IF(P11,P11,0)+IF(P12,P12,0))/SUM(IF(P2,J20,0)+IF(P3,J21,0)+IF(P4,J22,0)+IF(P5,J23,0)+IF(P6,J24,0)+IF(P7,J25,0)+IF(P8,J26,0)+IF(P9,J27,0)+IF(P10,J28,0)+IF(P11,J29,0)+IF(P12,J30,0))*J30)) -> 14612.13276 | V12: 16557.32145
A13: Dec 2020 | G13: Dec 2020 | H13: 0 | I13: Dec 2021 | J13: 0 | K13: Dec 2022 | L13: 18865 | M13: Dec 2023 | N13: 16358 | O13: Dec 2024 | P13: 0 | R13: Dec 2024 | S13: 16471.34726 | T13: 15271.84515 | U13: =IF(P13,P13,(SUM(IF(P2,P2,0)+IF(P3,P3,0)+IF(P4,P4,0)+IF(P5,P5,0)+IF(P6,P6,0)+IF(P7,P7,0)+IF(P8,P8,0)+IF(P9,P9,0)+IF(P10,P10,0)+IF(P11,P11,0)+IF(P12,P12,0)+IF(P13,P13,0))/SUM(IF(P2,J20,0)+IF(P3,J21,0)+IF(P4,J22,0)+IF(P5,J23,0)+IF(P6,J24,0)+IF(P7,J25,0)+IF(P8,J26,0)+IF(P9,J27,0)+IF(P10,J28,0)+IF(P11,J29,0)+IF(P12,J30,0)+IF(P13,J31,0))*J31)) -> 14426.1892 | V13: 16346.62481
A14: Jan 2021 | G14: I alt 2020 | H14: =SUM(H2:H13) -> 0 | I14: I alt 2020 | J14: =SUM(J2:J13) -> 0 | K14: I alt 2022 | L14: =SUM(L2:L13) -> 243002 | M14: I alt 2023 | N14: =SUM(N2:N13) -> 208026 | O14: i alt 2024 | S14: =M26/(P21) -> 210914.4256 | T14: =O26/P21 -> 195554.8867 | U14: =SUM(U2:U13) -> 184726.3227 | V14: =N26/(P21) -> 209317.3635
A15: Feb 2021
A16: Mar 2021
A17: Apr 2021
A18: Maj 2021 | I18: Fordeling 2022-2023 | L18: Ressourceforløb
A19: Jun 2021
A20: Jul 2021 | I20: Jan | J20: =(H2+J2+L2+N2)/($H$14+$J$14+$L$14+$N$14) -> 0.08842023112 | L20: Regnskab 2023 (kr.) | M20: Aktivitet 2023 | N20: Mdl. fuldtidspers. | O20: Enhedspris 2023 (24-pl) | P20: Enhedspris (måned)
A21: Aug 2021 | I21: feb | J21: 0.08754667116 | L21: =SUMIF('Regnskab 2023'!A2:K100,Overblik!I23,'Regnskab 2023'!G2:G100)*1000 -> 2242772000 | M21: =SUMIF('Aktivitet 2023'!A2:K100,Overblik!I23,'Aktivitet 2023'!F2:F100) -> 17334 | N21: =N14 -> 208026 | O21: =(((L21))/M21)*1.032 -> 133526.0588 | P21: =O21/12 -> 11127.17157
A22: Sep 2021 | I22: Mar | J22: 0.08666645973
A23: Okt 2021 | I23: Apr | J23: 0.08557118405 | L23: Prognose for udgifter og aktivitet
A24: Nov 2021 | I24: Maj | J24: 0.08483065353
A25: Dec 2021 | I25: Jun | J25: 0.08400143672 | M25: Budget 2024 | N25: ØA2024 | O25: MV2024 | P25: Prognose 2024
A26: Jan 2022 | B26: 21320 | I26: Jul | J26: 0.08270883404 | L26: Udgifter (kr.) | M26: =SUMIF('Budget 2024'!A2:K100,Overblik!I23,'Budget 2024'!G2:G100)*1000 -> 2346881000 | N26: =IF(Overblik!T27="Bloktilskud",SUMIF('Bloktilskudsdel - ØA24'!A2:K100,Overblik!I23,'Bloktilskudsdel - ØA24'!G2:G100),SUMIF('Overførselsskøn 2024'!A2:K100,Overblik!I23,'Overførselsskøn 2024'!G2:G100))*1000 -> 2329110216 | O26: =IF(Overblik!T27="Bloktilskud",SUMIF('Bloktilskudsdel - MV24'!A2:K100,Overblik!I23,'Bloktilskudsdel - MV24'!G2:G100),SUMIF('Midtvejsvurdering 2024'!A2:K100,Overblik!I23,'Midtvejsvurdering 2024'!G2:G100))*1000 -> 2175972776 | P26: =U14*P21 -> 2055481486
A27: Feb 2022 | B27: 21203 | I27: Aug | J27: 0.08191509175 | L27: Aktivitet* | M27: =M26/(P21) -> 210914.4256 | N27: =N26/(P21) -> 209317.3635 | O27: =O26/(P21) -> 195554.8867 | P27: =U14 -> 184726.3227
A28: Mar 2022 | B28: 21029 | I28: Sep | J28: 0.08107922346 | L28: * Aktiviteten er opgjort som de månedlige fuldtidspersoner i alt på et år.
A29: Apr 2022 | B29: 20831 | I29: Okt | J29: 0.08006376544
A30: Maj 2022 | B30: 20675 | I30: Nov | J30: 0.0791015192
A31: Jun 2022 | B31: 20471 | I31: Dec | J31: 0.0780949298
A32: Jul 2022 | B32: 20161
A33: Aug 2022 | B33: 20013
A34: Sep 2022 | B34: 19782
A35: Okt 2022 | B35: 19473
A36: Nov 2022 | B36: 19179
A37: Dec 2022 | B37: 18865
A38: Jan 2023 | B38: 18560
A39: Feb 2023 | B39: 18283
A40: Mar 2023 | B40: 18060
A41: Apr 2023 | B41: 17764
A42: Maj 2023 | B42: 17586
A43: Jun 2023 | B43: 17416
A44: Jul 2023 | B44: 17143
A45: Aug 2023 | B45: 16933
A46: Sep 2023 | B46: 16787
A47: Okt 2023 | B47: 16638
A48: Nov 2023 | B48: 16498
A49: Dec 2023 | B49: 16358
A50: Jan 2024 | B50: 16175 | C50: =S2 -> 18649.10225 | D50: =V2 -> 18507.88966 | E50: =T2 -> 17291.00828
A51: Feb 2024 | B51: 16096 | C51: 18464.85586 | D51: 18325.03839 | E51: =T3 -> 17120.17936
A52: Mar 2024 | B52: 16000 | C52: 18279.20657 | D52: 18140.79485 | E52: 16948.04971
A53: Apr 2024 | B53: 15913 | C53: 18048.19713 | D53: 17911.53464 | E53: 16733.8632
A54: Maj 2024 | B54: 15809 | C54: 17892.00856 | D54: 17756.52874 | E54: 16589.04884
A55: Jun 2024 | C55: 17717.11477 | D55: 17582.95926 | E55: 16426.89144
A56: Jul 2024 | C56: 17444.48622 | D56: 17312.39508 | E56: 16174.11667
A57: Aug 2024 | C57: 17277.07452 | D57: 17146.25103 | E57: 16018.89649
A58: Sep 2024 | C58: 17100.77784 | D58: 16971.28929 | E58: 15855.43836
A59: Okt 2024 | C59: 16886.6031 | D59: 16758.73629 | E59: 15656.86058
A60: Nov 2024 | C60: 16683.65148 | D60: 16557.32145 | E60: 15468.68862
A61: Dec 2024 | C61: 16471.34726 | D61: 16346.62481 | E61: 15271.84515

Sheet Jobafklaring
B1: Aktivitet | C1: B2024 | D1: ØA2024 | E1: MV2024 | H1: 2020 | J1: 2021 | L1: 2022 | N1: 2023 | P1: 2024 | S1: Budget 2024 | T1: MV2024 | U1: Prognose 2024 | V1: ØA2024
A2: Jan 2020 | G2: Jan 2020 | H2: =B2 -> 0 | I2: Jan 2021 | J2: =B14 -> 0 | K2: Jan 2022 | L2: =B26 -> 21765 | M2: Jan 2023 | N2: =B38 -> 24032 | O2: Jan 2024 | P2: =B50 -> 24426 | R2: Jan 2024 | S2: =$S$14*J20 -> 21921.0323 | T2: =$T$14*J20 -> 22979.43161 | U2: =IF(P2,P2,(SUM(IF(P2,P2,0))/SUM(IF(P2,J20,0))*J20)) -> 24426 | V2: =$V$14*J20 -> 21512.57533
A3: Feb 2020 | G3: Feb 2020 | H3: =B3 -> 0 | I3: Feb 2021 | J3: =B15 -> 0 | K3: Feb 2022 | L3: =B27 -> 21765 | M3: Feb 2023 | N3: =B39 -> 23861 | O3: Feb 2024 | P3: =B51 -> 24155 | R3: Feb 2024 | S3: 21839.18204 | T3: =$T$14*J21 -> 22893.62942 | U3: =IF(P3,P3,(SUM(IF(P2,P2,0)+IF(P3,P3,0))/SUM(IF(P2,J20,0)+IF(P3,J21,0))*J21)) -> 24155 | V3: 21432.25019
A4: Mar 2020 | G4: Mar 2020 | H4: 0 | I4: Mar 2021 | J4: 0 | K4: Mar 2022 | L4: 21821 | M4: Mar 2023 | N4: 24097 | O4: Mar 2024 | P4: 24096 | R4: Mar 2024 | S4: 21978.94974 | T4: 23040.14544 | U4: =IF(P4,P4,(SUM(IF(P2,P2,0)+IF(P3,P3,0)+IF(P4,P4,0))/SUM(IF(P2,J20,0)+IF(P3,J21,0)+IF(P4,J22,0))*J22)) -> 24096 | V4: 21569.41359
A5: Apr 2020 | G5: Apr 2020 | H5: =B5 -> 0 | I5: Apr 2021 | J5: 0 | K5: Apr 2022 | L5: 22180 | M5: Apr 2023 | N5: 24189 | O5: Apr 2024 | P5: 23296 | R5: Apr 2024 | S5: 22194.82383 | T5: 23266.44244 | U5: =IF(P5,P5,(SUM(IF(P2,P2,0)+IF(P3,P3,0)+IF(P4,P4,0)+IF(P5,P5,0))/SUM(IF(P2,J20,0)+IF(P3,J21,0)+IF(P4,J22,0)+IF(P5,J23,0))*J23)) -> 23296 | V5: 21781.26527
A6: Maj 2020 | G6: Maj 2020 | H6: 0 | I6: Maj 2021 | J6: 0 | K6: Maj 2022 | L6: 22430 | M6: Maj 2023 | N6: 24374 | O6: Maj 2024 | P6: 21767 | R6: Maj 2024 | S6: 22403.03941 | T6: 23484.71116 | U6: =IF(P6,P6,(SUM(IF(P2,P2,0)+IF(P3,P3,0)+IF(P4,P4,0)+IF(P5,P5,0)+IF(P6,P6,0))/SUM(IF(P2,J20,0)+IF(P3,J21,0)+IF(P4,J22,0)+IF(P5,J23,0)+IF(P6,J24,0))*J24)) -> 21767 | V6: 21985.60115
A7: Jun 2020 | G7: Jun 2020 | H7: 0 | I7: Jun 2021 | J7: 0 | K7: Jun 2022 | L7: 22704 | M7: Jun 2023 | N7: 24373 | O7: Jun 2024 | P7: 0 | R7: Jun 2024 | S7: 22533.71264 | T7: 23621.6936 | U7: =IF(P7,P7,(SUM(IF(P2,P2,0)+IF(P3,P3,0)+IF(P4,P4,0)+IF(P5,P5,0)+IF(P6,P6,0)+IF(P7,P7,0))/SUM(IF(P2,J20,0)+IF(P3,J21,0)+IF(P4,J22,0)+IF(P5,J23,0)+IF(P6,J24,0)+IF(P7,J25,0))*J25)) -> 24045.59367 | V7: 22113.83953
A8: Jul 2020 | G8: Jul 2020 | H8: 0 | I8: Jul 2021 | J8: 0 | K8: Jul 2022 | L8: 22416 | M8: Jul 2023 | N8: 23813 | O8: Jul 2024 | P8: 0 | R8: Jul 2024 | S8: 22127.81192 | T8: 23196.19503 | U8: =IF(P8,P8,(SUM(IF(P2,P2,0)+IF(P3,P3,0)+IF(P4,P4,0)+IF(P5,P5,0)+IF(P6,P6,0)+IF(P7,P7,0)+IF(P8,P8,0))/SUM(IF(P2,J20,0)+IF(P3,J21,0)+IF(P4,J22,0)+IF(P5,J23,0)+IF(P6,J24,0)+IF(P7,J25,0)+IF(P8,J26,0))*J26)) -> 23612.45937 | V8: 21715.502
A9: Aug 2020 | G9: Aug 2020 | H9: 0 | I9: Aug 2021 | J9: 0 | K9: Aug 2022 | L9: 22920 | M9: Aug 2023 | N9: 24101 | O9: Aug 2024 | P9: 0 | R9: Aug 2024 | S9: 22506.90787 | T9: 23593.59464 | U9: =IF(P9,P9,(SUM(IF(P2,P2,0)+IF(P3,P3,0)+IF(P4,P4,0)+IF(P5,P5,0)+IF(P6,P6,0)+IF(P7,P7,0)+IF(P8,P8,0)+IF(P9,P9,0))/SUM(IF(P2,J20,0)+IF(P3,J21,0)+IF(P4,J22,0)+IF(P5,J23,0)+IF(P6,J24,0)+IF(P7,J25,0)+IF(P8,J26,0)+IF(P9,J27,0))*J27)) -> 24016.99046 | V9: 22087.53422
A10: Sep 2020 | G10: Sep 2020 | H10: 0 | I10: Sep 2021 | J10: 0 | K10: Sep 2022 | L10: 23185 | M10: Sep 2023 | N10: 24043 | O10: Sep 2024 | P10: 0 | R10: Sep 2024 | S10: 22605.98977 | T10: 23697.46044 | U10: =IF(P10,P10,(SUM(IF(P2,P2,0)+IF(P3,P3,0)+IF(P4,P4,0)+IF(P5,P5,0)+IF(P6,P6,0)+IF(P7,P7,0)+IF(P8,P8,0)+IF(P9,P9,0)+IF(P10,P10,0))/SUM(IF(P2,J20,0)+IF(P3,J21,0)+IF(P4,J22,0)+IF(P5,J23,0)+IF(P6,J24,0)+IF(P7,J25,0)+IF(P8,J26,0)+IF(P9,J27,0)+IF(P10,J28,0))*J28)) -> 24122.72018 | V10: 22184.76991
A11: Okt 2020 | G11: Okt 2020 | H11: 0 | I11: Okt 2021 | J11: 0 | K11: Okt 2022 | L11: 23364 | M11: Okt 2023 | N11: 24143 | O11: Okt 2024 | P11: 0 | R11: Okt 2024 | S11: 22739.53494 | T11: 23837.45349 | U11: =IF(P11,P11,(SUM(IF(P2,P2,0)+IF(P3,P3,0)+IF(P4,P4,0)+IF(P5,P5,0)+IF(P6,P6,0)+IF(P7,P7,0)+IF(P8,P8,0)+IF(P9,P9,0)+IF(P10,P10,0)+IF(P11,P11,0))/SUM(IF(P2,J20,0)+IF(P3,J21,0)+IF(P4,J22,0)+IF(P5,J23,0)+IF(P6,J24,0)+IF(P7,J25,0)+IF(P8,J26,0)+IF(P9,J27,0)+IF(P10,J28,0)+IF(P11,J29,0))*J29)) -> 24265.22545 | V11: 22315.82672
A12: Nov 2020 | G12: Nov 2020 | H12: 0 | I12: Nov 2021 | J12: 0 | K12: Nov 2022 | L12: 23709 | M12: Nov 2023 | N12: 24393 | O12: Nov 2024 | P12: 0 | R12: Nov 2024 | S12: 23024.33556 | T12: 24136.00496 | U12: =IF(P12,P12,(SUM(IF(P2,P2,0)+IF(P3,P3,0)+IF(P4,P4,0)+IF(P5,P5,0)+IF(P6,P6,0)+IF(P7,P7,0)+IF(P8,P8,0)+IF(P9,P9,0)+IF(P10,P10,0)+IF(P11,P11,0)+IF(P12,P12,0))/SUM(IF(P2,J20,0)+IF(P3,J21,0)+IF(P4,J22,0)+IF(P5,J23,0)+IF(P6,J24,0)+IF(P7,J25,0)+IF(P8,J26,0)+IF(P9,J27,0)+IF(P10,J28,0)+IF(P11,J29,0)+IF(P12,J30,0))*J30)) -> 24569.13454 | V12: 22595.32062
A13: Dec 2020 | G13: Dec 2020 | H13: 0 | I13: Dec 2021 | J13: 0 | K13: Dec 2022 | L13: 23731 | M13: Dec 2023 | N13: 24392 | O13: Dec 2024 | P13: 0 | R13: Dec 2024 | S13: 23034.38735 | T13: 24146.54207 | U13: =IF(P13,P13,(SUM(IF(P2,P2,0)+IF(P3,P3,0)+IF(P4,P4,0)+IF(P5,P5,0)+IF(P6,P6,0)+IF(P7,P7,0)+IF(P8,P8,0)+IF(P9,P9,0)+IF(P10,P10,0)+IF(P11,P11,0)+IF(P12,P12,0)+IF(P13,P13,0))/SUM(IF(P2,J20,0)+IF(P3,J21,0)+IF(P4,J22,0)+IF(P5,J23,0)+IF(P6,J24,0)+IF(P7,J25,0)+IF(P8,J26,0)+IF(P9,J27,0)+IF(P10,J28,0)+IF(P11,J29,0)+IF(P12,J30,0)+IF(P13,J31,0))*J31)) -> 24579.86075 | V13: 22605.18511
A14: Jan 2021 | G14: I alt 2020 | H14: =SUM(H2:H13) -> 0 | I14: I alt 2020 | J14: =SUM(J2:J13) -> 0 | K14: I alt 2022 | L14: =SUM(L2:L13) -> 271990 | M14: I alt 2023 | N14: =SUM(N2:N13) -> 289811 | O14: i alt 2024 | S14: =M26/(P21) -> 268909.7074 | T14: =O26/P21 -> 281893.3043 | U14: =SUM(U2:U13) -> 286951.9844 | V14: =N26/(P21) -> 263899.0836
A15: Feb 2021
A16: Mar 2021
A17: Apr 2021
A18: Maj 2021 | I18: Fordeling 2022-2023 | L18: Jobafklaringsforløb
A19: Jun 2021
A20: Jul 2021 | I20: Jan | J20: =(H2+J2+L2+N2)/($H$14+$J$14+$L$14+$N$14) -> 0.08151818882 | L20: Regnskab 2022 (kr.) | M20: Aktivitet 2022 | N20: Mdl. fuldtidspers. | O20: Enhedspris 2022 (24-pl) | P20: Enhedspris (måned)
A21: Aug 2021 | I21: feb | J21: 0.08121381058 | L21: =SUMIF('Regnskab 2023'!A2:K100,Overblik!I23,'Regnskab 2023'!H2:H100)*1000 -> 2882039000 | M21: =SUMIF('Aktivitet 2023'!A2:K100,Overblik!I23,'Aktivitet 2023'!E2:E100) -> 24153 | N21: =N14 -> 289811 | O21: =(((L21))/M21)*1.032 -> 123142.6427 | P21: =O21/12 -> 10261.88689
A22: Sep 2021 | I22: Mar | J22: 0.08173356758
A23: Okt 2021 | I23: Apr | J23: 0.08253634294 | L23: Prognose for udgifter og aktivitet
A24: Nov 2021 | I24: Maj | J24: 0.08331063846
A25: Dec 2021 | I25: Jun | J25: 0.08379657566 | M25: Budget 2024 | N25: ØA2024 | O25: MV2024 | P25: Prognose 2024
A26: Jan 2022 | B26: 21765 | I26: Jul | J26: 0.08228714438 | L26: Udgifter (kr.) | M26: =SUMIF('Budget 2024'!A2:K100,Overblik!I23,'Budget 2024'!H2:H100)*1000 -> 2759521000 | N26: =IF(Overblik!T27="Bloktilskud",SUMIF('Bloktilskudsdel - ØA24'!A2:K100,Overblik!I23,'Bloktilskudsdel - ØA24'!H2:H100),SUMIF('Overførselsskøn 2024'!A2:K100,Overblik!I23,'Overførselsskøn 2024'!H2:H100))*1000 -> 2708102546 | O26: =IF(Overblik!T27="Bloktilskud",SUMIF('Bloktilskudsdel - MV24'!A2:K100,Overblik!I23,'Bloktilskudsdel - MV24'!H2:H100),SUMIF('Midtvejsvurdering 2024'!A2:K100,Overblik!I23,'Midtvejsvurdering 2024'!H2:H100))*1000 -> 2892757203 | P26: =U14*P21 -> 2944668806
A27: Feb 2022 | B27: 21765 | I27: Aug | J27: 0.08369689623 | L27: Aktivitet* | M27: =M26/(P21) -> 268909.7074 | N27: =N26/(P21) -> 263899.0836 | O27: =O26/(P21) -> 281893.3043 | P27: =U14 -> 286951.9844
A28: Mar 2022 | B28: 21821 | I28: Sep | J28: 0.0840653541 | L28: * Aktiviteten er opgjort som de månedlige fuldtidspersoner i alt på et år.
A29: Apr 2022 | B29: 22180 | I29: Okt | J29: 0.08456197123
A30: Maj 2022 | B30: 22430 | I30: Nov | J30: 0.08562106511
A31: Jun 2022 | B31: 22704 | I31: Dec | J31: 0.08565844489
A32: Jul 2022 | B32: 22416
A33: Aug 2022 | B33: 22920
A34: Sep 2022 | B34: 23185
A35: Okt 2022 | B35: 23364
A36: Nov 2022 | B36: 23709
A37: Dec 2022 | B37: 23731
A38: Jan 2023 | B38: 24032
A39: Feb 2023 | B39: 23861
A40: Mar 2023 | B40: 24097
A41: Apr 2023 | B41: 24189
A42: Maj 2023 | B42: 24374
A43: Jun 2023 | B43: 24373
A44: Jul 2023 | B44: 23813
A45: Aug 2023 | B45: 24101
A46: Sep 2023 | B46: 24043
A47: Okt 2023 | B47: 24143
A48: Nov 2023 | B48: 24393
A49: Dec 2023 | B49: 24392
A50: Jan 2024 | B50: 24426 | C50: =S2 -> 21921.0323 | D50: =V2 -> 21512.57533 | E50: =T2 -> 22979.43161
A51: Feb 2024 | B51: 24155 | C51: 21839.18204 | D51: 21432.25019 | E51: =T3 -> 22893.62942
A52: Mar 2024 | B52: 24096 | C52: 21978.94974 | D52: 21569.41359 | E52: 23040.14544
A53: Apr 2024 | B53: 23296 | C53: 22194.82383 | D53: 21781.26527 | E53: 23266.44244
A54: Maj 2024 | B54: 21767 | C54: 22403.03941 | D54: 21985.60115 | E54: 23484.71116
A55: Jun 2024 | C55: 22533.71264 | D55: 22113.83953 | E55: 23621.6936
A56: Jul 2024 | C56: 22127.81192 | D56: 21715.502 | E56: 23196.19503
A57: Aug 2024 | C57: 22506.90787 | D57: 22087.53422 | E57: 23593.59464
A58: Sep 2024 | C58: 22605.98977 | D58: 22184.76991 | E58: 23697.46044
A59: Okt 2024 | C59: 22739.53494 | D59: 22315.82672 | E59: 23837.45349
A60: Nov 2024 | C60: 23024.33556 | D60: 22595.32062 | E60: 24136.00496
A61: Dec 2024 | C61: 23034.38735 | D61: 22605.18511 | E61: 24146.54207

Sheet Sygedagpenge
B1: Aktivitet | C1: B2024 | D1: ØA2024 | E1: MV2024 | H1: 2020 | J1: 2021 | L1: 2022 | N1: 2023 | P1: 2024 | S1: Budget 2024 | T1: MV2024 | U1: Prognose 2024 | V1: ØA2024
A2: Jan 2020 | G2: Jan 2020 | H2: =B2 -> 0 | I2: Jan 2021 | J2: =B14 -> 0 | K2: Jan 2022 | L2: =B26 -> 141791 | M2: Jan 2023 | N2: =B38 -> 89467 | O2: Jan 2024 | P2: =B50 -> 90533 | R2: Jan 2024 | S2: =$S$14*J20 -> 91749.54765 | T2: =$T$14*J20 -> 93595.82381 | U2: =IF(P2,P2,(SUM(IF(P2,P2,0))/SUM(IF(P2,J20,0))*J20)) -> 90533 | V2: =$V$14*J20 -> 93462.95468
A3: Feb 2020 | G3: Feb 2020 | H3: =B3 -> 0 | I3: Feb 2021 | J3: =B15 -> 0 | K3: Feb 2022 | L3: =B27 -> 137661 | M3: Feb 2023 | N3: =B39 -> 89685 | O3: Feb 2024 | P3: =B51 -> 88982 | R3: Feb 2024 | S3: 92228.23156 | T3: =$T$14*J21 -> 94084.14028 | U3: =IF(P3,P3,(SUM(IF(P2,P2,0)+IF(P3,P3,0))/SUM(IF(P2,J20,0)+IF(P3,J21,0))*J21)) -> 88982 | V3: 93950.57793
A4: Mar 2020 | G4: Mar 2020 | H4: 0 | I4: Mar 2021 | J4: 0 | K4: Mar 2022 | L4: 87467 | M4: Mar 2023 | N4: 91083 | O4: Mar 2024 | P4: 86891 | R4: Mar 2024 | S4: 89864.33298 | T4: 91672.67297 | U4: =IF(P4,P4,(SUM(IF(P2,P2,0)+IF(P3,P3,0)+IF(P4,P4,0))/SUM(IF(P2,J20,0)+IF(P3,J21,0)+IF(P4,J22,0))*J22)) -> 86891 | V4: 91542.53395
A5: Apr 2020 | G5: Apr 2020 | H5: 0 | I5: Apr 2021 | J5: 0 | K5: Apr 2022 | L5: 82152 | M5: Apr 2023 | N5: 88704 | O5: Apr 2024 | P5: 83743 | R5: Apr 2024 | S5: 85729.17698 | T5: 87454.30522 | U5: =IF(P5,P5,(SUM(IF(P2,P2,0)+IF(P3,P3,0)+IF(P4,P4,0)+IF(P5,P5,0))/SUM(IF(P2,J20,0)+IF(P3,J21,0)+IF(P4,J22,0)+IF(P5,J23,0))*J23)) -> 83743 | V5: 87330.15462
A6: Maj 2020 | G6: Maj 2020 | H6: 0 | I6: Maj 2021 | J6: 0 | K6: Maj 2022 | L6: 80863 | M6: Maj 2023 | N6: 87118 | O6: Maj 2024 | P6: 0 | R6: Maj 2024 | S6: 84165.20111 | T6: 85858.85746 | U6: =IF(P6,P6,(SUM(IF(P2,P2,0)+IF(P3,P3,0)+IF(P4,P4,0)+IF(P5,P5,0)+IF(P6,P6,0))/SUM(IF(P2,J20,0)+IF(P3,J21,0)+IF(P4,J22,0)+IF(P5,J23,0)+IF(P6,J24,0))*J24)) -> 81959.71672 | V6: 85736.97177
A7: Jun 2020 | G7: Jun 2020 | H7: 0 | I7: Jun 2021 | J7: 0 | K7: Jun 2022 | L7: 81079 | M7: Jun 2023 | N7: 85910 | O7: Jun 2024 | P7: 0 | R7: Jun 2024 | S7: 83142.12535 | T7: 84815.19435 | U7: =IF(P7,P7,(SUM(IF(P2,P2,0)+IF(P3,P3,0)+IF(P4,P4,0)+IF(P5,P5,0)+IF(P6,P6,0)+IF(P7,P7,0))/SUM(IF(P2,J20,0)+IF(P3,J21,0)+IF(P4,J22,0)+IF(P5,J23,0)+IF(P6,J24,0)+IF(P7,J25,0))*J25)) -> 80963.44988 | V7: 84694.79025
A8: Jul 2020 | G8: Jul 2020 | H8: 0 | I8: Jul 2021 | J8: 0 | K8: Jul 2022 | L8: 76629 | M8: Jul 2023 | N8: 80238 | O8: Jul 2024 | P8: 0 | R8: Jul 2024 | S8: 76930.3446 | T8: 78478.41393 | U8: =IF(P8,P8,(SUM(IF(P2,P2,0)+IF(P3,P3,0)+IF(P4,P4,0)+IF(P5,P5,0)+IF(P6,P6,0)+IF(P7,P7,0)+IF(P8,P8,0))/SUM(IF(P2,J20,0)+IF(P3,J21,0)+IF(P4,J22,0)+IF(P5,J23,0)+IF(P6,J24,0)+IF(P7,J25,0)+IF(P8,J26,0))*J26)) -> 74914.44407 | V8: 78367.00556
A9: Aug 2020 | G9: Aug 2020 | H9: 0 | I9: Aug 2021 | J9: 0 | K9: Aug 2022 | L9: 76309 | M9: Aug 2023 | N9: 79547 | O9: Aug 2024 | P9: 0 | R9: Aug 2024 | S9: 76404.6811 | T9: 77942.17251 | U9: =IF(P9,P9,(SUM(IF(P2,P2,0)+IF(P3,P3,0)+IF(P4,P4,0)+IF(P5,P5,0)+IF(P6,P6,0)+IF(P7,P7,0)+IF(P8,P8,0)+IF(P9,P9,0))/SUM(IF(P2,J20,0)+IF(P3,J21,0)+IF(P4,J22,0)+IF(P5,J23,0)+IF(P6,J24,0)+IF(P7,J25,0)+IF(P8,J26,0)+IF(P9,J27,0))*J27)) -> 74402.55518 | V9: 77831.52539
A10: Sep 2020 | G10: Sep 2020 | H10: 0 | I10: Sep 2021 | J10: 0 | K10: Sep 2022 | L10: 78967 | M10: Sep 2023 | N10: 81097 | O10: Sep 2024 | P10: 0 | R10: Sep 2024 | S10: 79601.51508 | T10: 81203.33637 | U10: =IF(P10,P10,(SUM(IF(P2,P2,0)+IF(P3,P3,0)+IF(P4,P4,0)+IF(P5,P5,0)+IF(P6,P6,0)+IF(P7,P7,0)+IF(P8,P8,0)+IF(P9,P9,0)+IF(P10,P10,0))/SUM(IF(P2,J20,0)+IF(P3,J21,0)+IF(P4,J22,0)+IF(P5,J23,0)+IF(P6,J24,0)+IF(P7,J25,0)+IF(P8,J26,0)+IF(P9,J27,0)+IF(P10,J28,0))*J28)) -> 77515.61857 | V10: 81088.05968
A11: Okt 2020 | G11: Okt 2020 | H11: 0 | I11: Okt 2021 | J11: 0 | K11: Okt 2022 | L11: 82668 | M11: Okt 2023 | N11: 85054 | O11: Okt 2024 | P11: 0 | R11: Okt 2024 | S11: 84035.68981 | T11: 85726.74001 | U11: =IF(P11,P11,(SUM(IF(P2,P2,0)+IF(P3,P3,0)+IF(P4,P4,0)+IF(P5,P5,0)+IF(P6,P6,0)+IF(P7,P7,0)+IF(P8,P8,0)+IF(P9,P9,0)+IF(P10,P10,0)+IF(P11,P11,0))/SUM(IF(P2,J20,0)+IF(P3,J21,0)+IF(P4,J22,0)+IF(P5,J23,0)+IF(P6,J24,0)+IF(P7,J25,0)+IF(P8,J26,0)+IF(P9,J27,0)+IF(P10,J28,0)+IF(P11,J29,0))*J29)) -> 81833.59917 | V11: 85605.04187
A12: Nov 2020 | G12: Nov 2020 | H12: 0 | I12: Nov 2021 | J12: 0 | K12: Nov 2022 | L12: 86001 | M12: Nov 2023 | N12: 89588 | O12: Nov 2024 | P12: 0 | R12: Nov 2024 | S12: 88423.83725 | T12: 90203.19014 | U12: =IF(P12,P12,(SUM(IF(P2,P2,0)+IF(P3,P3,0)+IF(P4,P4,0)+IF(P5,P5,0)+IF(P6,P6,0)+IF(P7,P7,0)+IF(P8,P8,0)+IF(P9,P9,0)+IF(P10,P10,0)+IF(P11,P11,0)+IF(P12,P12,0))/SUM(IF(P2,J20,0)+IF(P3,J21,0)+IF(P4,J22,0)+IF(P5,J23,0)+IF(P6,J24,0)+IF(P7,J25,0)+IF(P8,J26,0)+IF(P9,J27,0)+IF(P10,J28,0)+IF(P11,J29,0)+IF(P12,J30,0))*J30)) -> 86106.75858 | V12: 90075.13721
A13: Dec 2020 | G13: Dec 2020 | H13: 0 | I13: Dec 2021 | J13: 0 | K13: Dec 2022 | L13: 88656 | M13: Dec 2023 | N13: 91068 | O13: Dec 2024 | P13: 0 | R13: Dec 2024 | S13: 90551.56817 | T13: 92373.73739 | U13: =IF(P13,P13,(SUM(IF(P2,P2,0)+IF(P3,P3,0)+IF(P4,P4,0)+IF(P5,P5,0)+IF(P6,P6,0)+IF(P7,P7,0)+IF(P8,P8,0)+IF(P9,P9,0)+IF(P10,P10,0)+IF(P11,P11,0)+IF(P12,P12,0)+IF(P13,P13,0))/SUM(IF(P2,J20,0)+IF(P3,J21,0)+IF(P4,J22,0)+IF(P5,J23,0)+IF(P6,J24,0)+IF(P7,J25,0)+IF(P8,J26,0)+IF(P9,J27,0)+IF(P10,J28,0)+IF(P11,J29,0)+IF(P12,J30,0)+IF(P13,J31,0))*J31)) -> 88178.73395 | V13: 92242.60314
A14: Jan 2021 | G14: I alt 2020 | H14: =SUM(H2:H13) -> 0 | I14: I alt 2020 | J14: =SUM(J2:J13) -> 0 | K14: I alt 2022 | L14: =SUM(L2:L13) -> 1100243 | M14: I alt 2023 | N14: =SUM(N2:N13) -> 1038559 | O14: i alt 2024 | S14: =M26/(P21) -> 1022826.252 | T14: =O26/P21 -> 1043408.584 | U14: =SUM(U2:U13) -> 996023.8761 | V14: =N26/(P21) -> 1041927.356
A15: Feb 2021
A16: Mar 2021
A17: Apr 2021
A18: Maj 2021 | I18: Fordeling 2022-2023 | L18: Sygedagpenge
A19: Jun 2021 | X19: Fordeling 2019-2022
A20: Jul 2021 | I20: Jan | J20: 0.08970198752 | L20: Regnskab 2023 (kr.) | M20: Aktivitet 2023 | N20: Mdl. fuldtidspers. | O20: Enhedspris 2023 (24-pl) | P20: Enhedspris (måned)
A21: Aug 2021 | I21: feb | J21: 0.09016998871 | L21: =SUMIF('Regnskab 2023'!A2:K100,Overblik!I23,'Regnskab 2023'!J2:J100)*1000 -> 9260895000 | M21: =SUMIF('Aktivitet 2023'!A2:K100,Overblik!I23,'Aktivitet 2023'!D2:D100) -> 86523 | N21: =N14 -> 1038559 | O21: =(((L21))/M21)*1.032 -> 110458.9952 | P21: =O21/12 -> 9204.916265 | X21: Jan | Y21: =(H2+J2+L2+N2)/($H$14+$J$14+$L$14+$N$14) -> 0.1081250158
A22: Sep 2021 | I22: Mar | J22: 0.08785884488 | X22: feb | Y22: 0.1062959545
A23: Okt 2021 | I23: Apr | J23: 0.0838159725 | L23: Prognose for udgifter og aktivitet | X23: Mar | Y23: 0.08348131337
A24: Nov 2021 | I24: Maj | J24: 0.08228689963 | X24: Apr | Y24: 0.07988397243
A25: Dec 2021 | I25: Jun | J25: 0.0812866557 | M25: Budget 2024 | N25: ØA2024 | O25: MV2024 | P25: Prognose 2024 | X25: Maj | Y25: 0.07853976198
A26: Jan 2022 | B26: 141791 | I26: Jul | J26: 0.07521350227 | L26: Udgifter (kr.) | M26: =SUMIF('Budget 2024'!A2:K100,Overblik!I23,'Budget 2024'!J2:J100)*1000 -> 9415030000 | N26: =IF(Overblik!T27="Bloktilskud",SUMIF('Bloktilskudsdel - ØA24'!A2:K100,Overblik!I23,'Bloktilskudsdel - ØA24'!J2:J100),SUMIF('Overførselsskøn 2024'!A2:K100,Overblik!I23,'Overførselsskøn 2024'!J2:J100))*1000 -> 9590854067 | O26: =IF(Overblik!T27="Bloktilskud",SUMIF('Bloktilskudsdel - MV24'!A2:K100,Overblik!I23,'Bloktilskudsdel - MV24'!J2:J100),SUMIF('Midtvejsvurdering 2024'!A2:K100,Overblik!I23,'Midtvejsvurdering 2024'!J2:J100))*1000 -> 9604488650 | P26: =U14*P21 -> 9168316378 | X26: Jun | Y26: 0.07807595093
A27: Feb 2022 | B27: 137661 | I27: Aug | J27: 0.07469956992 | L27: Aktivitet* | M27: =M26/(P21) -> 1022826.252 | N27: =N26/(P21) -> 1041927.356 | O27: =O26/(P21) -> 1043408.584 | P27: =U14 -> 996023.8761 | X27: Jul | Y27: 0.07334339504
A28: Mar 2022 | B28: 87467 | I28: Sep | J28: 0.07782506066 | L28: * Aktiviteten er opgjort som de månedlige fuldtidspersoner i alt på et år. | X28: Aug | Y28: 0.07287070051
A29: Apr 2022 | B29: 82152 | I29: Okt | J29: 0.08216027862 | X29: Sep | Y29: 0.07483815706
A30: Maj 2022 | B30: 80863 | I30: Nov | J30: 0.08645049646 | X30: Okt | Y30: 0.07841866615
A31: Jun 2022 | B31: 81079 | I31: Dec | J31: 0.08853074315 | X31: Nov | Y31: 0.08209689349
A32: Jul 2022 | B32: 76629 | X32: Dec | Y32: 0.08403021879 | AI32: Jan 2016 | AJ32: 73741 | AK32: Jan 2017 | AL32: 71510 | AM32: Jan 2018 | AN32: 71451 | AO32: Jan 2019 | AP32: 72337
A33: Aug 2022 | B33: 76309 | AI33: Feb 2016 | AJ33: 73548 | AK33: Feb 2017 | AL33: 71305 | AM33: Feb 2018 | AN33: 72920 | AO33: Feb 2019 | AP33: 72774
A34: Sep 2022 | B34: 78967 | AI34: Mar 2016 | AJ34: 70989 | AK34: Mar 2017 | AL34: 69461 | AM34: Mar 2018 | AN34: 71103 | AO34: Mar 2019 | AP34: 71547
A35: Okt 2022 | B35: 82668 | AI35: Apr 2016 | AJ35: 68939 | AK35: Apr 2017 | AL35: 65815 | AM35: Apr 2018 | AN35: 66715 | AO35: Apr 2019 | AP35: 68604
A36: Nov 2022 | B36: 86001 | AI36: Maj 2016 | AJ36: 67235 | AK36: Maj 2017 | AL36: 65090 | AM36: Maj 2018 | AN36: 64503 | AO36: Maj 2019 | AP36: 68318
A37: Dec 2022 | B37: 88656 | AI37: Jun 2016 | AJ37: 66405 | AK37: Jun 2017 | AL37: 64418 | AM37: Jun 2018 | AN37: 63957 | AO37: Jun 2019 | AP37: 67143
A38: Jan 2023 | B38: 89467 | AI38: Jul 2016 | AJ38: 61350 | AK38: Jul 2017 | AL38: 59557 | AM38: Jul 2018 | AN38: 59082 | AO38: Jul 2019 | AP38: 62365
A39: Feb 2023 | B39: 89685 | AI39: Aug 2016 | AJ39: 60373 | AK39: Aug 2017 | AL39: 59141 | AM39: Aug 2018 | AN39: 58876 | AO39: Aug 2019 | AP39: 62308
A40: Mar 2023 | B40: 91083 | AI40: Sep 2016 | AJ40: 62397 | AK40: Sep 2017 | AL40: 61517 | AM40: Sep 2018 | AN40: 61447 | AO40: Sep 2019 | AP40: 65408
A41: Apr 2023 | B41: 88704 | AI41: Okt 2016 | AJ41: 65631 | AK41: Okt 2017 | AL41: 64559 | AM41: Okt 2018 | AN41: 65065 | AO41: Okt 2019 | AP41: 69483
A42: Maj 2023 | B42: 87118 | AI42: Nov 2016 | AJ42: 68556 | AK42: Nov 2017 | AL42: 68172 | AM42: Nov 2018 | AN42: 68850 | AO42: Nov 2019 | AP42: 72984
A43: Jun 2023 | B43: 85910 | AI43: Dec 2016 | AJ43: 70459 | AK43: Dec 2017 | AL43: 70019 | AM43: Dec 2018 | AN43: 70455 | AO43: Dec 2019 | AP43: 74332
A44: Jul 2023 | B44: 80238 | AJ44: 809623 | AL44: 790564 | AN44: 794424 | AP44: 827603
A45: Aug 2023 | B45: 79547
A46: Sep 2023 | B46: 81097
A47: Okt 2023 | B47: 85054 | AK47: Jan | AL47: =(AJ32+AL32+AN32+AP32)/($AJ$44+$AL$44+$AN$44+$AP$44) -> 0.08970198752
A48: Nov 2023 | B48: 89588 | AK48: feb | AL48: =(AJ33+AL33+AN33+AP33)/($AJ$44+$AL$44+$AN$44+$AP$44) -> 0.09016998871
A49: Dec 2023 | B49: 91068 | AK49: Mar | AL49: 0.08785884488
A50: Jan 2024 | B50: 90533 | C50: =S2 -> 91749.54765 | D50: =V2 -> 93462.95468 | E50: =T2 -> 93595.82381 | AK50: Apr | AL50: 0.0838159725
A51: Feb 2024 | B51: 88982 | C51: 92228.23156 | D51: 93950.57793 | E51: =T3 -> 94084.14028 | AK51: Maj | AL51: 0.08228689963
A52: Mar 2024 | B52: 86891 | C52: 89864.33298 | D52: 91542.53395 | E52: 91672.67297 | AK52: Jun | AL52: 0.0812866557
A53: Apr 2024 | B53: 83743 | C53: 85729.17698 | D53: 87330.15462 | E53: 87454.30522 | AK53: Jul | AL53: 0.07521350227
A54: Maj 2024 | C54: 84165.20111 | D54: 85736.97177 | E54: 85858.85746 | AK54: Aug | AL54: 0.07469956992
A55: Jun 2024 | C55: 83142.12535 | D55: 84694.79025 | E55: 84815.19435 | AK55: Sep | AL55: 0.07782506066
A56: Jul 2024 | C56: 76930.3446 | D56: 78367.00556 | E56: 78478.41393 | AK56: Okt | AL56: 0.08216027862
A57: Aug 2024 | C57: 76404.6811 | D57: 77831.52539 | E57: 77942.17251 | AK57: Nov | AL57: 0.08645049646
A58: Sep 2024 | C58: 79601.51508 | D58: 81088.05968 | E58: 81203.33637 | AK58: Dec | AL58: 0.08853074315
A59: Okt 2024 | C59: 84035.68981 | D59: 85605.04187 | E59: 85726.74001
A60: Nov 2024 | C60: 88423.83725 | D60: 90075.13721 | E60: 90203.19014
A61: Dec 2024 | C61: 90551.56817 | D61: 92242.60314 | E61: 92373.73739

Sheet Fleksjob
B1: Aktivitet | C1: B2024 | D1: ØA2024 | E1: MV2024 | H1: 2020 | J1: 2021 | L1: 2022 | N1: 2023 | P1: 2024 | S1: Budget 2024 | T1: MV2024 | U1: Prognose 2024 | V1: ØA2024
A2: Jan 2020 | G2: Jan 2020 | H2: =B2 -> 0 | I2: Jan 2021 | J2: =B14 -> 0 | K2: Jan 2022 | L2: =B26 -> 87924 | M2: Jan 2023 | N2: =B38 -> 92878 | O2: Jan 2024 | P2: =B50 -> 95808 | R2: Jan 2024 | S2: =$S$14*J20 -> 93852.89198 | T2: =$T$14*J20 -> 94822.21571 | U2: =IF(P2,P2,(SUM(IF(P2,P2,0))/SUM(IF(P2,J20,0))*J20)) -> 95808 | V2: =$V$14*J20 -> 95326.18942
A3: Feb 2020 | G3: Feb 2020 | H3: =B3 -> 0 | I3: Feb 2021 | J3: =B15 -> 0 | K3: Feb 2022 | L3: =B27 -> 88481 | M3: Feb 2023 | N3: =B39 -> 93289 | O3: Feb 2024 | P3: =B51 -> 96115 | R3: Feb 2024 | S3: 94355.37315 | T3: =$T$14*J21 -> 95329.88656 | U3: =IF(P3,P3,(SUM(IF(P2,P2,0)+IF(P3,P3,0))/SUM(IF(P2,J20,0)+IF(P3,J21,0))*J21)) -> 96115 | V3: 95836.55851
A4: Mar 2020 | G4: Mar 2020 | H4: 0 | I4: Mar 2021 | J4: 0 | K4: Mar 2022 | L4: 89053 | M4: Mar 2023 | N4: 93604 | O4: Mar 2024 | P4: 96423 | R4: Mar 2024 | S4: 94815.80785 | T4: 95795.07669 | U4: =IF(P4,P4,(SUM(IF(P2,P2,0)+IF(P3,P3,0)+IF(P4,P4,0))/SUM(IF(P2,J20,0)+IF(P3,J21,0)+IF(P4,J22,0))*J22)) -> 96423 | V4: 96304.22109
A5: Apr 2020 | G5: Apr 2020 | H5: 0 | I5: Apr 2021 | J5: 0 | K5: Apr 2022 | L5: 89791 | M5: Apr 2023 | N5: 94002 | O5: Apr 2024 | P5: 96754 | R5: Apr 2024 | S5: 95405.49649 | T5: 96390.8557 | U5: =IF(P5,P5,(SUM(IF(P2,P2,0)+IF(P3,P3,0)+IF(P4,P4,0)+IF(P5,P5,0))/SUM(IF(P2,J20,0)+IF(P3,J21,0)+IF(P4,J22,0)+IF(P5,J23,0))*J23)) -> 96754 | V5: 96903.16663
A6: Maj 2020 | G6: Maj 2020 | H6: 0 | I6: Maj 2021 | J6: 0 | K6: Maj 2022 | L6: 90490 | M6: Maj 2023 | N6: 94456 | O6: Maj 2024 | P6: 97247 | R6: Maj 2024 | S6: 96004.0097 | T6: 96995.55042 | U6: =IF(P6,P6,(SUM(IF(P2,P2,0)+IF(P3,P3,0)+IF(P4,P4,0)+IF(P5,P5,0)+IF(P6,P6,0))/SUM(IF(P2,J20,0)+IF(P3,J21,0)+IF(P4,J22,0)+IF(P5,J23,0)+IF(P6,J24,0))*J24)) -> 97247 | V6: 97511.07526
A7: Jun 2020 | G7: Jun 2020 | H7: 0 | I7: Jun 2021 | J7: 0 | K7: Jun 2022 | L7: 91201 | M7: Jun 2023 | N7: 94964 | O7: Jun 2024 | P7: 0 | R7: Jun 2024 | S7: 96636.78298 | T7: 97634.85906 | U7: =IF(P7,P7,(SUM(IF(P2,P2,0)+IF(P3,P3,0)+IF(P4,P4,0)+IF(P5,P5,0)+IF(P6,P6,0)+IF(P7,P7,0))/SUM(IF(P2,J20,0)+IF(P3,J21,0)+IF(P4,J22,0)+IF(P5,J23,0)+IF(P6,J24,0)+IF(P7,J25,0))*J25)) -> 98248.65778 | V7: 98153.78178
A8: Jul 2020 | G8: Jul 2020 | H8: 0 | I8: Jul 2021 | J8: 0 | K8: Jul 2022 | L8: 91412 | M8: Jul 2023 | N8: 94662 | O8: Jul 2024 | P8: 0 | R8: Jul 2024 | S8: 96589.5456 | T8: 97587.13381 | U8: =IF(P8,P8,(SUM(IF(P2,P2,0)+IF(P3,P3,0)+IF(P4,P4,0)+IF(P5,P5,0)+IF(P6,P6,0)+IF(P7,P7,0)+IF(P8,P8,0))/SUM(IF(P2,J20,0)+IF(P3,J21,0)+IF(P4,J22,0)+IF(P5,J23,0)+IF(P6,J24,0)+IF(P7,J25,0)+IF(P8,J26,0))*J26)) -> 98200.63249 | V8: 98105.80287
A9: Aug 2020 | G9: Aug 2020 | H9: 0 | I9: Aug 2021 | J9: 0 | K9: Aug 2022 | L9: 91704 | M9: Aug 2023 | N9: 94901 | O9: Aug 2024 | P9: 0 | R9: Aug 2024 | S9: 96865.18351 | T9: 97865.61854 | U9: =IF(P9,P9,(SUM(IF(P2,P2,0)+IF(P3,P3,0)+IF(P4,P4,0)+IF(P5,P5,0)+IF(P6,P6,0)+IF(P7,P7,0)+IF(P8,P8,0)+IF(P9,P9,0))/SUM(IF(P2,J20,0)+IF(P3,J21,0)+IF(P4,J22,0)+IF(P5,J23,0)+IF(P6,J24,0)+IF(P7,J25,0)+IF(P8,J26,0)+IF(P9,J27,0))*J27)) -> 98480.86797 | V9: 98385.76773
A10: Sep 2020 | G10: Sep 2020 | H10: 0 | I10: Sep 2021 | J10: 0 | K10: Sep 2022 | L10: 92277 | M10: Sep 2023 | N10: 95376 | O10: Sep 2024 | P10: 0 | R10: Sep 2024 | S10: 97409.19204 | T10: 98415.24566 | U10: =IF(P10,P10,(SUM(IF(P2,P2,0)+IF(P3,P3,0)+IF(P4,P4,0)+IF(P5,P5,0)+IF(P6,P6,0)+IF(P7,P7,0)+IF(P8,P8,0)+IF(P9,P9,0)+IF(P10,P10,0))/SUM(IF(P2,J20,0)+IF(P3,J21,0)+IF(P4,J22,0)+IF(P5,J23,0)+IF(P6,J24,0)+IF(P7,J25,0)+IF(P8,J26,0)+IF(P9,J27,0)+IF(P10,J28,0))*J28)) -> 99033.95041 | V10: 98938.31608
A11: Okt 2020 | G11: Okt 2020 | H11: 0 | I11: Okt 2021 | J11: 0 | K11: Okt 2022 | L11: 92639 | M11: Okt 2023 | N11: 95693 | O11: Okt 2024 | P11: 0 | R11: Okt 2024 | S11: 97761.65559 | T11: 98771.34948 | U11: =IF(P11,P11,(SUM(IF(P2,P2,0)+IF(P3,P3,0)+IF(P4,P4,0)+IF(P5,P5,0)+IF(P6,P6,0)+IF(P7,P7,0)+IF(P8,P8,0)+IF(P9,P9,0)+IF(P10,P10,0)+IF(P11,P11,0))/SUM(IF(P2,J20,0)+IF(P3,J21,0)+IF(P4,J22,0)+IF(P5,J23,0)+IF(P6,J24,0)+IF(P7,J25,0)+IF(P8,J26,0)+IF(P9,J27,0)+IF(P10,J28,0)+IF(P11,J29,0))*J29)) -> 99392.29295 | V11: 99296.31257
A12: Nov 2020 | G12: Nov 2020 | H12: 0 | I12: Nov 2021 | J12: 0 | K12: Nov 2022 | L12: 93001 | M12: Nov 2023 | N12: 95959 | O12: Nov 2024 | P12: 0 | R12: Nov 2024 | S12: 98087.64543 | T12: 99100.70619 | U12: =IF(P12,P12,(SUM(IF(P2,P2,0)+IF(P3,P3,0)+IF(P4,P4,0)+IF(P5,P5,0)+IF(P6,P6,0)+IF(P7,P7,0)+IF(P8,P8,0)+IF(P9,P9,0)+IF(P10,P10,0)+IF(P11,P11,0)+IF(P12,P12,0))/SUM(IF(P2,J20,0)+IF(P3,J21,0)+IF(P4,J22,0)+IF(P5,J23,0)+IF(P6,J24,0)+IF(P7,J25,0)+IF(P8,J26,0)+IF(P9,J27,0)+IF(P10,J28,0)+IF(P11,J29,0)+IF(P12,J30,0))*J30)) -> 99723.72022 | V12: 99627.41979
A13: Dec 2020 | G13: Dec 2020 | H13: 0 | I13: Dec 2021 | J13: 0 | K13: Dec 2022 | L13: 93143 | M13: Dec 2023 | N13: 96067 | O13: Dec 2024 | P13: 0 | R13: Dec 2024 | S13: 98217.41846 | T13: 99231.81953 | U13: =IF(P13,P13,(SUM(IF(P2,P2,0)+IF(P3,P3,0)+IF(P4,P4,0)+IF(P5,P5,0)+IF(P6,P6,0)+IF(P7,P7,0)+IF(P8,P8,0)+IF(P9,P9,0)+IF(P10,P10,0)+IF(P11,P11,0)+IF(P12,P12,0)+IF(P13,P13,0))/SUM(IF(P2,J20,0)+IF(P3,J21,0)+IF(P4,J22,0)+IF(P5,J23,0)+IF(P6,J24,0)+IF(P7,J25,0)+IF(P8,J26,0)+IF(P9,J27,0)+IF(P10,J28,0)+IF(P11,J29,0)+IF(P12,J30,0)+IF(P13,J31,0))*J31)) -> 99855.65782 | V13: 99759.22999
A14: Jan 2021 | G14: I alt 2020 | H14: =SUM(H2:H13) -> 0 | I14: I alt 2020 | J14: =SUM(J2:J13) -> 0 | K14: I alt 2022 | L14: =SUM(L2:L13) -> 1091116 | M14: I alt 2023 | N14: =SUM(N2:N13) -> 1135851 | O14: i alt 2024 | S14: =M26/(P21) -> 1156001.003 | T14: =O26/P21 -> 1167940.317 | U14: =SUM(U2:U13) -> 1175282.78 | V14: =N26/(P21) -> 1174147.842
A15: Feb 2021
A16: Mar 2021
A17: Apr 2021
A18: Maj 2021 | I18: Fordeling 2022-2023 | L18: Fleksjob
A19: Jun 2021
A20: Jul 2021 | I20: Jan | J20: =(H2+J2+L2+N2)/($H$14+$J$14+$L$14+$N$14) -> 0.0811875524 | L20: Regnskab 2023 (kr.) | M20: Aktivitet 2023 | N20: Mdl. fuldtidspers. | O20: Enhedspris 2023 (24-pl) | P20: Enhedspris (måned)
A21: Aug 2021 | I21: feb | J21: 0.08162222431 | L21: =SUMIF('Regnskab 2023'!A2:K100,Overblik!I23,'Regnskab 2023'!K2:K100)*1000 -> 9739093000 | M21: =SUMIF('Aktivitet 2023'!A2:K100,Overblik!I23,'Aktivitet 2023'!H2:H100) -> 94574 | N21: =N14 -> 1135851 | O21: =(((L21)/M21)*1.032) -> 106273.8594 | P21: =O21/12 -> 8856.154947
A22: Sep 2021 | I22: Mar | J22: 0.08202052388
A23: Okt 2021 | I23: Apr | J23: 0.08253063472 | L23: Prognose for udgifter og aktivitet
A24: Nov 2021 | I24: Maj | J24: 0.08304837925
A25: Dec 2021 | I25: Jun | J25: 0.08359576051 | M25: Budget 2024 | N25: ØA2024 | O25: MV2024 | P25: Prognose 2024
A26: Jan 2022 | B26: 87924 | I26: Jul | J26: 0.08355489776 | L26: Udgifter (kr.) | M26: =SUMIF('Budget 2024'!A2:K100,Overblik!I23,'Budget 2024'!K2:K100)*1000 -> 10237724000 | N26: =IF(Overblik!T27="Bloktilskud",SUMIF('Bloktilskudsdel - ØA24'!A2:K100,Overblik!I23,'Bloktilskudsdel - ØA24'!K2:K100),SUMIF('Overførselsskøn 2024'!A2:K100,Overblik!I23,'Overførselsskøn 2024'!K2:K100))*1000 -> 1.039843522e+10 | O26: =IF(Overblik!T27="Bloktilskud",SUMIF('Bloktilskudsdel - MV24'!A2:K100,Overblik!I23,'Bloktilskudsdel - MV24'!K2:K100),SUMIF('Midtvejsvurdering 2024'!A2:K100,Overblik!I23,'Midtvejsvurdering 2024'!K2:K100))*1000 -> 1.034346042e+10 | P26: =U14*P21 -> 1.04084864e+10
A27: Feb 2022 | B27: 88481 | I27: Aug | J27: 0.08379333865 | L27: Aktivitet* | M27: =M26/(P21) -> 1156001.003 | N27: =N26/(P21) -> 1174147.842 | O27: =O26/(P21) -> 1167940.317 | P27: =U14 -> 1175282.78
A28: Mar 2022 | B28: 89053 | I28: Sep | J28: 0.08426393386 | L28: * Aktiviteten er opgjort som de månedlige fuldtidspersoner i alt på et år.
A29: Apr 2022 | B29: 89791 | I29: Okt | J29: 0.08456883286
A30: Maj 2022 | B30: 90490 | I30: Nov | J30: 0.08485083075
A31: Jun 2022 | B31: 91201 | I31: Dec | J31: 0.08496309106
A32: Jul 2022 | B32: 91412
A33: Aug 2022 | B33: 91704
A34: Sep 2022 | B34: 92277
A35: Okt 2022 | B35: 92639
A36: Nov 2022 | B36: 93001
A37: Dec 2022 | B37: 93143
A38: Jan 2023 | B38: 92878
A39: Feb 2023 | B39: 93289
A40: Mar 2023 | B40: 93604
A41: Apr 2023 | B41: 94002
A42: Maj 2023 | B42: 94456
A43: Jun 2023 | B43: 94964
A44: Jul 2023 | B44: 94662
A45: Aug 2023 | B45: 94901
A46: Sep 2023 | B46: 95376
A47: Okt 2023 | B47: 95693
A48: Nov 2023 | B48: 95959
A49: Dec 2023 | B49: 96067
A50: Jan 2024 | B50: 95808 | C50: =S2 -> 93852.89198 | D50: =V2 -> 95326.18942 | E50: =T2 -> 94822.21571
A51: Feb 2024 | B51: 96115 | C51: 94355.37315 | D51: 95836.55851 | E51: =T3 -> 95329.88656
A52: Mar 2024 | B52: 96423 | C52: 94815.80785 | D52: 96304.22109 | E52: 95795.07669
A53: Apr 2024 | B53: 96754 | C53: 95405.49649 | D53: 96903.16663 | E53: 96390.8557
A54: Maj 2024 | B54: 97247 | C54: 96004.0097 | D54: 97511.07526 | E54: 96995.55042
A55: Jun 2024 | C55: 96636.78298 | D55: 98153.78178 | E55: 97634.85906
A56: Jul 2024 | C56: 96589.5456 | D56: 98105.80287 | E56: 97587.13381
A57: Aug 2024 | C57: 96865.18351 | D57: 98385.76773 | E57: 97865.61854
A58: Sep 2024 | C58: 97409.19204 | D58: 98938.31608 | E58: 98415.24566
A59: Okt 2024 | C59: 97761.65559 | D59: 99296.31257 | E59: 98771.34948
A60: Nov 2024 | C60: 98087.64543 | D60: 99627.41979 | E60: 99100.70619
A61: Dec 2024 | C61: 98217.41846 | D61: 99759.22999 | E61: 99231.81953

Sheet Seniorpension
B1: Aktivitet | C1: B2024 | D1: ØA2024 | E1: MV2024 | H1: 2020 | J1: 2021 | L1: 2022 | N1: 2023 | P1: 2024 | S1: Budget 2024 | T1: MV2024 | U1: Prognose 2024 | V1: ØA2024
A2: Jan 2020 | G2: Jan 2020 | I2: Jan 2021 | K2: Jan 2022 | L2: =B26 -> 15594 | M2: Jan 2023 | N2: =B38 -> 23328 | O2: Jan 2024 | P2: =B50 -> 28457 | R2: Jan 2024 | S2: =$S$14*J20 -> 26058.03373 | T2: =$T$14*J20 -> 25711.60015 | U2: =IF(P2,P2,(SUM(IF(P2,P2,0))/SUM(IF(P2,J20,0))*J20)) -> 28457 | V2: =$V$14*J20 -> 27768.41901
A3: Feb 2020 | G3: Feb 2020 | I3: Feb 2021 | K3: Feb 2022 | L3: 16482 | M3: Feb 2023 | N3: 23873 | O3: Feb 2024 | P3: =B51 -> 28571 | R3: Feb 2024 | S3: 27017.4182 | T3: =$T$14*J21 -> 26658.2299 | U3: =IF(P3,P3,(SUM(IF(P2,P2,0)+IF(P3,P3,0))/SUM(IF(P2,J20,0)+IF(P3,J21,0))*J21)) -> 28571 | V3: 28790.77512
A4: Mar 2020 | G4: Mar 2020 | I4: Mar 2021 | K4: Mar 2022 | L4: 17286 | M4: Mar 2023 | N4: 24258 | O4: Mar 2024 | P4: 28840 | R4: Mar 2024 | S4: 27813.4462 | T4: 27443.67496 | U4: =IF(P4,P4,(SUM(IF(P2,P2,0)+IF(P3,P3,0)+IF(P4,P4,0))/SUM(IF(P2,J20,0)+IF(P3,J21,0)+IF(P4,J22,0))*J22)) -> 28840 | V4: 29639.05245
A5: Apr 2020 | G5: Apr 2020 | I5: Apr 2021 | K5: Apr 2022 | L5: 18154 | M5: Apr 2023 | N5: 24802 | O5: Apr 2024 | P5: 28936 | R5: Apr 2024 | S5: 28758.77131 | T5: 28376.43226 | U5: =IF(P5,P5,(SUM(IF(P2,P2,0)+IF(P3,P3,0)+IF(P4,P4,0)+IF(P5,P5,0))/SUM(IF(P2,J20,0)+IF(P3,J21,0)+IF(P4,J22,0)+IF(P5,J23,0))*J23)) -> 28936 | V5: 30646.42637
A6: Maj 2020 | G6: Maj 2020 | I6: Maj 2021 | K6: Maj 2022 | L6: 18717 | M6: Maj 2023 | N6: 25163 | O6: Maj 2024 | P6: 29058 | R6: Maj 2024 | S6: 29377.38348 | T6: 28986.82017 | U6: =IF(P6,P6,(SUM(IF(P2,P2,0)+IF(P3,P3,0)+IF(P4,P4,0)+IF(P5,P5,0)+IF(P6,P6,0))/SUM(IF(P2,J20,0)+IF(P3,J21,0)+IF(P4,J22,0)+IF(P5,J23,0)+IF(P6,J24,0))*J24)) -> 29058 | V6: 31305.64273
A7: Jun 2020 | G7: Jun 2020 | I7: Jun 2021 | K7: Jun 2022 | L7: 19380 | M7: Jun 2023 | N7: 25747 | O7: Jun 2024 | P7: 0 | R7: Jun 2024 | S7: 30212.24212 | T7: 29810.57963 | U7: =IF(P7,P7,(SUM(IF(P2,P2,0)+IF(P3,P3,0)+IF(P4,P4,0)+IF(P5,P5,0)+IF(P6,P6,0)+IF(P7,P7,0))/SUM(IF(P2,J20,0)+IF(P3,J21,0)+IF(P4,J22,0)+IF(P5,J23,0)+IF(P6,J24,0)+IF(P7,J25,0))*J25)) -> 31263.38372 | V7: 32195.29944
A8: Jul 2020 | G8: Jul 2020 | I8: Jul 2021 | K8: Jul 2022 | L8: 19956 | M8: Jul 2023 | N8: 26240 | O8: Jul 2024 | P8: 0 | R8: Jul 2024 | S8: 30927.93089 | T8: 30516.75353 | U8: =IF(P8,P8,(SUM(IF(P2,P2,0)+IF(P3,P3,0)+IF(P4,P4,0)+IF(P5,P5,0)+IF(P6,P6,0)+IF(P7,P7,0)+IF(P8,P8,0))/SUM(IF(P2,J20,0)+IF(P3,J21,0)+IF(P4,J22,0)+IF(P5,J23,0)+IF(P6,J24,0)+IF(P7,J25,0)+IF(P8,J26,0))*J26)) -> 32003.97267 | V8: 32957.96425
A9: Aug 2020 | G9: Aug 2020 | I9: Aug 2021 | K9: Aug 2022 | L9: 20240 | M9: Aug 2023 | N9: 26607 | O9: Aug 2024 | P9: 0 | R9: Aug 2024 | S9: 31363.77129 | T9: 30946.79956 | U9: =IF(P9,P9,(SUM(IF(P2,P2,0)+IF(P3,P3,0)+IF(P4,P4,0)+IF(P5,P5,0)+IF(P6,P6,0)+IF(P7,P7,0)+IF(P8,P8,0)+IF(P9,P9,0))/SUM(IF(P2,J20,0)+IF(P3,J21,0)+IF(P4,J22,0)+IF(P5,J23,0)+IF(P6,J24,0)+IF(P7,J25,0)+IF(P8,J26,0)+IF(P9,J27,0))*J27)) -> 32454.97678 | V9: 33422.41214
A10: Sep 2020 | G10: Sep 2020 | I10: Sep 2021 | K10: Sep 2022 | L10: 20783 | M10: Sep 2023 | N10: 27173 | O10: Sep 2024 | P10: 0 | R10: Sep 2024 | S10: 32106.2398 | T10: 31679.39718 | U10: =IF(P10,P10,(SUM(IF(P2,P2,0)+IF(P3,P3,0)+IF(P4,P4,0)+IF(P5,P5,0)+IF(P6,P6,0)+IF(P7,P7,0)+IF(P8,P8,0)+IF(P9,P9,0)+IF(P10,P10,0))/SUM(IF(P2,J20,0)+IF(P3,J21,0)+IF(P4,J22,0)+IF(P5,J23,0)+IF(P6,J24,0)+IF(P7,J25,0)+IF(P8,J26,0)+IF(P9,J27,0)+IF(P10,J28,0))*J28)) -> 33223.27719 | V10: 34213.61446
A11: Okt 2020 | G11: Okt 2020 | I11: Okt 2021 | K11: Okt 2022 | L11: 21412 | M11: Okt 2023 | N11: 27604 | O11: Okt 2024 | P11: 0 | R11: Okt 2024 | S11: 32815.90312 | T11: 32379.62574 | U11: =IF(P11,P11,(SUM(IF(P2,P2,0)+IF(P3,P3,0)+IF(P4,P4,0)+IF(P5,P5,0)+IF(P6,P6,0)+IF(P7,P7,0)+IF(P8,P8,0)+IF(P9,P9,0)+IF(P10,P10,0)+IF(P11,P11,0))/SUM(IF(P2,J20,0)+IF(P3,J21,0)+IF(P4,J22,0)+IF(P5,J23,0)+IF(P6,J24,0)+IF(P7,J25,0)+IF(P8,J26,0)+IF(P9,J27,0)+IF(P10,J28,0)+IF(P11,J29,0))*J29)) -> 33957.63106 | V11: 34969.85834
A12: Nov 2020 | G12: Nov 2020 | I12: Nov 2021 | K12: Nov 2022 | L12: 22016 | M12: Nov 2023 | N12: 27801 | O12: Nov 2024 | P12: 0 | R12: Nov 2024 | S12: 33352.16757 | T12: 32908.76072 | U12: =IF(P12,P12,(SUM(IF(P2,P2,0)+IF(P3,P3,0)+IF(P4,P4,0)+IF(P5,P5,0)+IF(P6,P6,0)+IF(P7,P7,0)+IF(P8,P8,0)+IF(P9,P9,0)+IF(P10,P10,0)+IF(P11,P11,0)+IF(P12,P12,0))/SUM(IF(P2,J20,0)+IF(P3,J21,0)+IF(P4,J22,0)+IF(P5,J23,0)+IF(P6,J24,0)+IF(P7,J25,0)+IF(P8,J26,0)+IF(P9,J27,0)+IF(P10,J28,0)+IF(P11,J29,0)+IF(P12,J30,0))*J30)) -> 34512.55317 | V12: 35541.32187
A13: Dec 2020 | G13: Dec 2020 | I13: Dec 2021 | K13: Dec 2022 | L13: 22623 | M13: Dec 2023 | N13: 27920 | O13: Dec 2024 | P13: 0 | R13: Dec 2024 | S13: 33838.21999 | T13: 33388.35123 | U13: =IF(P13,P13,(SUM(IF(P2,P2,0)+IF(P3,P3,0)+IF(P4,P4,0)+IF(P5,P5,0)+IF(P6,P6,0)+IF(P7,P7,0)+IF(P8,P8,0)+IF(P9,P9,0)+IF(P10,P10,0)+IF(P11,P11,0)+IF(P12,P12,0)+IF(P13,P13,0))/SUM(IF(P2,J20,0)+IF(P3,J21,0)+IF(P4,J22,0)+IF(P5,J23,0)+IF(P6,J24,0)+IF(P7,J25,0)+IF(P8,J26,0)+IF(P9,J27,0)+IF(P10,J28,0)+IF(P11,J29,0)+IF(P12,J30,0)+IF(P13,J31,0))*J31)) -> 35015.51629 | V13: 36059.27758
A14: Jan 2021 | G14: I alt 2020 | H14: =SUM(H2:H13) -> 0 | I14: I alt 2020 | J14: =SUM(J2:J13) -> 0 | K14: I alt 2022 | L14: =SUM(L2:L13) -> 232643 | M14: I alt 2023 | N14: =SUM(N2:N13) -> 310516 | O14: i alt 2024 | S14: =M26/(P21) -> 363641.5277 | T14: =O26/P21 -> 358807.025 | U14: =SUM(U2:U13) -> 376293.3109 | V14: =N26/(P21) -> 387510.0638
A15: Feb 2021
A16: Mar 2021
A17: Apr 2021
A18: Maj 2021 | I18: Fordeling 2022-2023 | L18: Seniorpension
A19: Jun 2021
A20: Jul 2021 | I20: jan | J20: =(H2+J2+L2+N2)/($H$14+$J$14+$L$14+$N$14) -> 0.07165857511 | L20: Regnskab 2023 (kr.) | M20: Aktivitet 2023 | N20: Mdl. fuldtidspers. | O20: Enhedspris 2023 (24-pl) | P20: Enhedspris (måned)
A21: Aug 2021 | I21: feb | J21: 0.07429684494 | L21: =SUMIF('Regnskab 2023'!A2:K100,Overblik!I23,'Regnskab 2023'!L2:L100)*1000 -> 4109194000 | M21: =SUMIF('Aktivitet 2023'!A2:K100,Overblik!I23,'Aktivitet 2023'!L2:L100) -> 25880 | N21: =N14 -> 310516 | O21: =(((L21))/M21)*1.032 -> 163859.668 | P21: =O21/12 -> 13654.97233
A22: Sep 2021 | I22: mar | J22: 0.07648589087
A23: Okt 2021 | I23: apr | J23: 0.07908549798 | L23: Prognose for udgifter og aktivitet
A24: Nov 2021 | I24: maj | J24: 0.08078665731
A25: Dec 2021 | I25: jun | J25: 0.08308248598 | M25: Budget 2024 | N25: ØA2024 | O25: MV2024 | P25: Prognose 2024
A26: Jan 2022 | B26: 15594 | I26: jul | J26: 0.08505060213 | L26: Udgifter (kr.) | M26: =SUMIF('Budget 2024'!A2:K100,Overblik!I23,'Budget 2024'!L2:L100)*1000 -> 4965515000 | N26: =IF(Overblik!T27="Bloktilskud",SUMIF('Bloktilskudsdel - ØA24'!A2:K100,Overblik!I23,'Bloktilskudsdel - ØA24'!L2:L100),SUMIF('Overførselsskøn 2024'!A2:K100,Overblik!I23,'Overførselsskøn 2024'!L2:L100))*1000 -> 5291439200 | O26: =IF(Overblik!T27="Bloktilskud",SUMIF('Bloktilskudsdel - MV24'!A2:K100,Overblik!I23,'Bloktilskudsdel - MV24'!L2:L100),SUMIF('Midtvejsvurdering 2024'!A2:K100,Overblik!I23,'Midtvejsvurdering 2024'!L2:L100))*1000 -> 4899500000 | P26: =U14*P21 -> 5138274750
A27: Feb 2022 | B27: 16482 | I27: aug | J27: 0.0862491462 | L27: Aktivitet* | M27: =M26/(P21) -> 363641.5277 | N27: =N26/(P21) -> 387510.0638 | O27: =O26/(P21) -> 358807.025 | P27: =U14 -> 376293.3109
A28: Mar 2022 | B28: 17286 | I28: sep | J28: 0.08829090561 | L28: * Aktiviteten er opgjort som de månedlige fuldtidspersoner i alt på et år.
A29: Apr 2022 | B29: 18154 | I29: okt | J29: 0.09024245203
A30: Maj 2022 | B30: 18717 | I30: nov | J30: 0.09171715833
A31: Jun 2022 | B31: 19380 | I31: dec | J31: 0.09305378351
A32: Jul 2022 | B32: 19956
A33: Aug 2022 | B33: 20240
A34: Sep 2022 | B34: 20783
A35: Okt 2022 | B35: 21412
A36: Nov 2022 | B36: 22016
A37: Dec 2022 | B37: 22623
A38: Jan 2023 | B38: 23328
A39: Feb 2023 | B39: 23873
A40: Mar 2023 | B40: 24258
A41: Apr 2023 | B41: 24802
A42: Maj 2023 | B42: 25163
A43: Jun 2023 | B43: 25747
A44: Jul 2023 | B44: 26240
A45: Aug 2023 | B45: 26607
A46: Sep 2023 | B46: 27173
A47: Okt 2023 | B47: 27604
A48: Nov 2023 | B48: 27801
A49: Dec 2023 | B49: 27920
A50: Jan 2024 | B50: 28457 | C50: =S2 -> 26058.03373 | D50: =V2 -> 27768.41901 | E50: =T2 -> 25711.60015
A51: Feb 2024 | B51: 28571 | C51: 27017.4182 | D51: 28790.77512 | E51: =T3 -> 26658.2299
A52: Mar 2024 | B52: 28840 | C52: 27813.4462 | D52: 29639.05245 | E52: 27443.67496
A53: Apr 2024 | B53: 28936 | C53: 28758.77131 | D53: 30646.42637 | E53: 28376.43226
A54: Maj 2024 | B54: 29058 | C54: 29377.38348 | D54: 31305.64273 | E54: 28986.82017
A55: Jun 2024 | C55: 30212.24212 | D55: 32195.29944 | E55: 29810.57963
A56: Jul 2024 | C56: 30927.93089 | D56: 32957.96425 | E56: 30516.75353
A57: Aug 2024 | C57: 31363.77129 | D57: 33422.41214 | E57: 30946.79956
A58: Sep 2024 | C58: 32106.2398 | D58: 34213.61446 | E58: 31679.39718
A59: Okt 2024 | C59: 32815.90312 | D59: 34969.85834 | E59: 32379.62574
A60: Nov 2024 | C60: 33352.16757 | D60: 35541.32187 | E60: 32908.76072
A61: Dec 2024 | C61: 33838.21999 | D61: 36059.27758 | E61: 33388.35123

Sheet Budget 2024 (hidden)
A1: Kommune | B1: Kontant- og uddannelseshjælp | C1: Arbejdsløsheds-dagpenge | D1: Ledighedsydelse | E1: Gammel Førtidspension | F1: Ny Førtidspension | G1: Ressourceforløb | H1: Jobafklaringsforløb | I1: Driftsudgifter til aktivering mv. | J1: Sygedagpenge | K1: Fleksjob | L1: Seniorpension
A2: Albertslund | B2: 50255 | C2: 53529 | D2: 17112 | E2: 70182 | F2: 145811 | G2: 12318 | H2: 8984 | I2: 31230 | J2: 53439 | K2: 49728 | L2: 26178
A3: Allerød | B3: 8392 | C3: 21745 | D3: 6545 | E3: 30535 | F3: 25286 | G3: 4845 | H3: 4332 | I3: 9774 | J3: 30206 | K3: 29293 | L3: 9844
A4: Assens | B4: 49022 | C4: 72986 | D4: 30633 | E4: 141904 | F4: 170983 | G4: 17627 | H4: 8101 | I4: 29717 | J4: 79312 | K4: 99500 | L4: 57961
A5: Ballerup | B5: 72498 | C5: 74601 | D5: 19622 | E5: 0 | F5: 334667 | G5: 19105 | H5: 19622 | I5: 62767 | J5: 78483 | K5: 75139 | L5: 33156
A6: Billund | B6: 22868 | C6: 28050 | D6: 10298 | E6: 94278 | F6: 105400 | G6: 11516 | H6: 19400 | I6: 19709 | J6: 46259 | K6: 69686 | L6: 30915
A7: Bornholm | B7: 29569 | C7: 43584 | D7: 10167 | E7: 154806 | F7: 246924 | G7: 9916 | H7: 26269 | I7: 35667 | J7: 64664 | K7: 118265 | L7: 61000
A8: Brøndby | B8: 113190 | C8: 103352 | D8: 8163 | E8: 122075 | F8: 109215 | G8: 16131 | H8: 24485 | I8: 106183 | J8: 56751 | K8: 45751 | L8: 40222
A9: Brønderslev | B9: 42223 | C9: 70966 | D9: 15552 | E9: 108163 | F9: 132349 | G9: 20854 | H9: 22398 | I9: 35565 | J9: 76636 | K9: 75577 | L9: 34882
A10: Dragør | B10: 8355 | C10: 19024 | D10: 4141 | E10: 9976 | F10: 21477 | G10: 1311 | H10: 3443 | I10: 9018 | J10: 17870 | K10: 16756 | L10: 15799
A11: Egedal | B11: 25934 | C11: 59527 | D11: 11888 | E11: 59783 | F11: 65479 | G11: 2029 | H11: 21062 | I11: 26180 | J11: 55430 | K11: 46929 | L11: 22135
A12: Esbjerg | B12: 200278 | C12: 181896 | D12: 50730 | E12: 369050 | F12: 427191 | G12: 41008 | H12: 39331 | I12: 102967 | J12: 211804 | K12: 253160 | L12: 97796
A13: Fanø | B13: 1586 | C13: 5645 | D13: 1321 | E13: 7401 | F13: 4865 | G13: 370 | H13: 431 | I13: 1334 | J13: 5802 | K13: 4673 | L13: 3503
A14: Favrskov | B14: 38592 | C14: 65938 | D14: 12903 | E14: 99336 | F14: 107616 | G14: 14605 | H14: 30401 | I14: 53918 | J14: 78992 | K14: 110549 | L14: 27679
A15: Faxe | B15: -26055 | C15: 0 | D15: -14636 | E15: 89913 | F15: 0 | G15: -8128 | H15: 0 | I15: -18004 | J15: -41056 | K15: -33234 | L15: 56561
A16: Fredensborg | B16: 35606 | C16: 50754 | D16: 10347 | E16: 79719 | F16: 117711 | G16: 17327 | H16: 16249 | I16: 18838 | J16: 53432 | K16: 34329 | L16: 26144
A17: Fredericia | B17: 123543 | C17: 97148 | D17: 21333 | E17: 200400 | F17: 175310 | G17: 28271 | H17: 30630 | I17: 20611 | J17: 96931 | K17: 87137 | L17: 65396
A18: Frederiksberg | B18: 110919 | C18: 246375 | D18: 20214 | E18: 157271 | F18: 252177 | G18: 29609 | H18: 27614 | I18: 127383 | J18: 116934 | K18: 65429 | L18: 47992
A19: Frederikshavn | B19: 73926 | C19: 145459 | D19: 36000 | E19: 237702 | F19: 260029 | G19: 23310 | H19: 24668 | I19: 57953 | J19: 130624 | K19: 125936 | L19: 63153
A20: Frederikssund | B20: 56797 | C20: 48276 | D20: 21315 | E20: 88861 | F20: 151969 | G20: 15255 | H20: 30746 | I20: 19662 | J20: 76544 | K20: 48839 | L20: 47937
A21: Furesø | B21: 23883 | C21: 53010 | D21: 10515 | E21: 62615 | F21: 80725 | G21: 4720 | H21: 15535 | I21: 8379 | J21: 47040 | K21: 42792 | L21: 21720
A22: Faaborg-Midtfyn | B22: 55761 | C22: 77356 | D22: 29007 | E22: 143034 | F22: 212795 | G22: 28827 | H22: 36656 | I22: 44307 | J22: 99707 | K22: 120668 | L22: 54191
A23: Gentofte | B23: 50179 | C23: 102129 | D23: 6674 | E23: 79478 | F23: 116731 | G23: 9222 | H23: 15858 | I23: 34121 | J23: 74306 | K23: 49685 | L23: 26937
A24: Gladsaxe | B24: 98545 | C24: 113456 | D24: 15948 | E24: 122954 | F24: 217369 | G24: 18970 | H24: 28118 | I24: 47116 | J24: 89376 | K24: 71985 | L24: 23475
A25: Glostrup | B25: 40318 | C25: 51862 | D25: 8386 | E25: 48090 | F25: 77499 | G25: 19293 | H25: 8079 | I25: 18149 | J25: 36520 | K25: 30632 | L25: 17786
A26: Greve | B26: 35321 | C26: 82996 | D26: 15510 | E26: 104482 | F26: 140064 | G26: 19235 | H26: 16515 | I26: 34272 | J26: 86736 | K26: 77021 | L26: 37750
A27: Gribskov | B27: 28524 | C27: 44113 | D27: 17570 | E27: 102022 | F27: 112502 | G27: 21125 | H27: 16706 | I27: 22260 | J27: 66290 | K27: 53032 | L27: 36556
A28: Guldborgsund | B28: 115066 | C28: 68506 | D28: 32002 | E28: 256789 | F28: 233406 | G28: 15126 | H28: 33719 | I28: 54328 | J28: 136653 | K28: 120275 | L28: 87519
A29: Haderslev | B29: 88732 | C29: 63664 | D29: 24828 | E29: 184485 | F29: 198237 | G29: 19735 | H29: 39423 | I29: 14248 | J29: 95704 | K29: 150795 | L29: 62053
A30: Halsnæs | B30: 32036 | C30: 42424 | D30: 17095 | E30: 78113 | F30: 129841 | G30: 20193 | H30: 13342 | I30: 13402 | J30: 61331 | K30: 58132 | L30: 39592
A31: Hedensted | B31: 38942 | C31: 53550 | D31: 26811 | E31: 102326 | F31: 93188 | G31: 7885 | H31: 26233 | I31: 49947 | J31: 86201 | K31: 132242 | L31: 51618
A32: Helsingør | B32: 83225 | C32: 93949 | D32: 14228 | E32: 145434 | F32: 245664 | G32: 27073 | H32: 28266 | I32: 39509 | J32: 83009 | K32: 66397 | L32: 67954
A33: Herlev | B33: 40578 | C33: 39801 | D33: 6909 | E33: 48162 | F33: 102184 | G33: 15158 | H33: 16221 | I33: 10173 | J33: 47072 | K33: 35037 | L33: 18467
A34: Herning | B34: 124257 | C34: 115028 | D34: 44520 | E34: 287088 | F34: 267103 | G34: 17113 | H34: 82044 | I34: 101817 | J34: 142895 | K34: 222880 | L34: 85049
A35: Hillerød | B35: 49435 | C35: 73481 | D35: 19099 | E35: 97552 | F35: 152086 | G35: 9957 | H35: 19930 | I35: 32062 | J35: 75904 | K35: 75627 | L35: 40306
A36: Hjørring | B36: 51958 | C36: 117790 | D36: 30764 | E36: 295198 | F36: 197834 | G36: 42997 | H36: 31287 | I36: 70981 | J36: 116016 | K36: 192939 | L36: 83769
A37: Holbæk | B37: 95095 | C37: 95222 | D37: 33090 | E37: 223126 | F37: 252770 | G37: 32717 | H37: 32937 | I37: 61067 | J37: 137030 | K37: 133313 | L37: 62091
A38: Holstebro | B38: 68480 | C38: 53254 | D38: 41186 | E38: 161162 | F38: 155439 | G38: 28732 | H38: 32668 | I38: 51114 | J38: 86654 | K38: 132130 | L38: 66200
A39: Horsens | B39: 113906 | C39: 164142 | D39: 60435 | E39: 265208 | F39: 413661 | G39: 35992 | H39: 57761 | I39: 93058 | J39: 172561 | K39: 247277 | L39: 60481
A40: Hvidovre | B40: 80317 | C40: 106575 | D40: 9611 | E40: 129578 | F40: 199452 | G40: 26412 | H40: 33942 | I40: 68021 | J40: 80155 | K40: 82230 | L40: 50261
A41: Høje-Taastrup | B41: 92052 | C41: 112180 | D41: 26312 | E41: 122602 | F41: 166256 | G41: 19681 | H41: 35751 | I41: 52570 | J41: 87979 | K41: 72841 | L41: 39520
A42: Hørsholm | B42: 10532 | C42: 24959 | D42: 6575 | E42: 27434 | F42: 34266 | G42: 8029 | H42: -66 | I42: 11784 | J42: 20545 | K42: 24478 | L42: 8786
A43: Ikast-Brande | B43: 53958 | C43: 55826 | D43: 15847 | E43: 120607 | F43: 100372 | G43: 15122 | H43: 36885 | I43: 24922 | J43: 75931 | K43: 102173 | L43: 50812
A44: Ishøj | B44: 39007 | C44: 75119 | D44: 8616 | E44: 69852 | F44: 105334 | G44: 9309 | H44: 26876 | I44: 21234 | J44: 49862 | K44: 39196 | L44: 15282
A45: Jammerbugt | B45: 49349 | C45: 62141 | D45: 16575 | E45: 136964 | F45: 103024 | G45: 11200 | H45: 28800 | I45: 19674 | J45: 73320 | K45: 83251 | L45: 37696
A46: Kalundborg | B46: 100204 | C46: 76214 | D46: 23827 | E46: 197103 | F46: 247466 | G46: 27109 | H46: 23555 | I46: 62591 | J46: 100061 | K46: 102879 | L46: 61588
A47: Kerteminde | B47: 30841 | C47: 35308 | D47: 16891 | E47: 64711 | F47: 93470 | G47: 10331 | H47: 13792 | I47: 13333 | J47: 40560 | K47: 58712 | L47: 33179
A48: Kolding | B48: 134294 | C48: 182736 | D48: 39435 | E48: 269517 | F48: 277278 | G48: 36868 | H48: 42869 | I48: 47359 | J48: 151823 | K48: 164607 | L48: 83763
A49: København | B49: 1135655 | C49: 1781153 | D49: 130122 | E49: 865078 | F49: 1655278 | G49: 426457 | H49: 148537 | I49: 618679 | J49: 908631 | K49: 480166 | L49: 285638
A50: Køge | B50: 69090 | C50: 107662 | D50: 17330 | E50: 136923 | F50: 243752 | G50: 41240 | H50: 28023 | I50: 41031 | J50: 124646 | K50: 105487 | L50: 50471
A51: Langeland | B51: 22667 | C51: 15366 | D51: 11546 | E51: 57365 | F51: 47412 | G51: 5587 | H51: 1915 | I51: 6534 | J51: 28909 | K51: 43929 | L51: 23325
A52: Lejre | B52: 13021 | C52: 39570 | D52: 7905 | E52: 54151 | F52: 74566 | G52: 9909 | H52: 12107 | I52: 10676 | J52: 40710 | K52: 43410 | L52: 22852
A53: Lemvig | B53: 15320 | C53: 25286 | D53: 8669 | E53: 57438 | F53: 81443 | G53: 6020 | H53: 7972 | I53: 8596 | J53: 28332 | K53: 56851 | L53: 20825
A54: Lolland | B54: 102231 | C54: 58953 | D54: 24282 | E54: 232667 | F54: 248048 | G54: 26906 | H54: 23490 | I54: 31532 | J54: 82632 | K54: 90088 | L54: 74722
A55: Lyngby-Taarbæk | B55: 55912 | C55: 82790 | D55: 10216 | E55: 75342 | F55: 92665 | G55: 13698 | H55: 12876 | I55: 27315 | J55: 59587 | K55: 43219 | L55: 26587
A56: Læsø | B56: 1443 | C56: 4655 | D56: 430 | E56: 4629 | F56: 5072 | G56: 518 | H56: 352 | I56: 296 | J56: 2278 | K56: 3148 | L56: 2571
A57: Mariagerfjord | B57: 91203 | C57: 69134 | D57: 9886 | E57: 134385 | F57: 122754 | G57: 26850 | H57: 16505 | I57: 34801 | J57: 76272 | K57: 87825 | L57: 46569
A58: Middelfart | B58: 37096 | C58: 50640 | D58: 12567 | E58: 120443 | F58: 86291 | G58: 15188 | H58: 12613 | I58: 10191 | J58: 70332 | K58: 84114 | L58: 40926
A59: Morsø | B59: 27416 | C59: 23512 | D59: 12469 | E59: 84617 | F59: 70973 | G59: 12051 | H59: 11241 | I59: 18753 | J59: 33187 | K59: 72406 | L59: 23282
A60: Norddjurs | B60: 58446 | C60: 70307 | D60: 28443 | E60: 118972 | F60: 181800 | G60: 7910 | H60: 20805 | I60: 25329 | J60: 80955 | K60: 93690 | L60: 53254
A61: Nordfyns | B61: 44610 | C61: 58783 | D61: 13310 | E61: 97714 | F61: 102161 | G61: 13697 | H61: 25012 | I61: 15551 | J61: 51432 | K61: 60976 | L61: 42094
A62: Nyborg | B62: 46535 | C62: 46692 | D62: 18079 | E62: 145117 | F62: 114021 | G62: 13621 | H62: 24425 | I62: 6444 | J62: 61286 | K62: 66009 | L62: 30567
A63: Næstved | B63: 159537 | C63: 153002 | D63: 35410 | E63: 242307 | F63: 285488 | G63: 22072 | H63: 34794 | I63: 69193 | J63: 151648 | K63: 155265 | L63: 100880
A64: Odder | B64: 23835 | C64: 30000 | D64: 12500 | E64: 61000 | F64: 49015 | G64: 8450 | H64: 16550 | I64: 16400 | J64: 41600 | K64: 58600 | L64: 22500
A65: Odense | B65: 405351 | C65: 490126 | D65: 102338 | E65: 699872 | F65: 916633 | G65: 75106 | H65: 133676 | I65: -62568 | J65: 358601 | K65: 371541 | L65: 193376
A66: Odsherred | B66: 41889 | C66: 45204 | D66: 17624 | E66: 126154 | F66: 148727 | G66: 16647 | H66: 14586 | I66: 30168 | J66: 70172 | K66: 80470 | L66: 45010
A67: Randers | B67: 230179 | C67: 196844 | D67: 47402 | E67: 352304 | F67: 362876 | G67: 67229 | H67: 78426 | I67: 6215 | J67: 190000 | K67: 238110 | L67: 86320
A68: Rebild | B68: 27128 | C68: 48513 | D68: 10421 | E68: 60553 | F68: 74904 | G68: 7286 | H68: 16773 | I68: 20887 | J68: 54876 | K68: 52030 | L68: 25229
A69: Ringkøbing-Skjern | B69: 48241 | C69: 61696 | D69: 24330 | E69: 182713 | F69: 183479 | G69: 27971 | H69: 41768 | I69: 28583 | J69: 83056 | K69: 139986 | L69: 48627
A70: Ringsted | B70: 60089 | C70: 66237 | D70: 15869 | E70: 106355 | F70: 112753 | G70: 14483 | H70: 20273 | I70: 21627 | J70: 68691 | K70: 53950 | L70: 33305
A71: Roskilde | B71: 77981 | C71: 127373 | D71: 23615 | E71: 152728 | F71: 275797 | G71: 42312 | H71: 11938 | I71: 70980 | J71: 129805 | K71: 109260 | L71: 67050
A72: Rudersdal | B72: 28088 | C72: 63525 | D72: 10676 | E72: 62308 | F72: 96315 | G72: 6475 | H72: 11157 | I72: 25703 | J72: 54972 | K72: 42925 | L72: 19101
A73: Rødovre | B73: 79469 | C73: 98973 | D73: 13200 | E73: 81072 | F73: 110135 | G73: 34810 | H73: 14545 | I73: 53014 | J73: 66886 | K73: 53310 | L73: 41026
A74: Samsø | B74: 1986 | C74: 6627 | D74: 1012 | E74: 17020 | F74: 8927 | G74: 3800 | H74: 0 | I74: 927 | J74: 6018 | K74: 12480 | L74: 4608
A75: Silkeborg | B75: 88389 | C75: 137980 | D75: 48600 | E75: 193993 | F75: 402119 | G75: 24063 | H75: 46087 | I75: 70043 | J75: 153345 | K75: 245152 | L75: 85525
A76: Skanderborg | B76: 28607 | C76: 86495 | D76: 32171 | E76: 121358 | F76: 155410 | G76: 21968 | H76: 29770 | I76: 47656 | J76: 108390 | K76: 127858 | L76: 43115
A77: Skive | B77: 64728 | C77: 54165 | D77: 26454 | E77: 170603 | F77: 202472 | G77: 11186 | H77: 33015 | I77: 39504 | J77: 80005 | K77: 121339 | L77: 51659
A78: Slagelse | B78: 193464 | C78: 161612 | D78: 31261 | E78: 232232 | F78: 365041 | G78: 29306 | H78: 36347 | I78: 93701 | J78: 138766 | K78: 146027 | L78: 78774
A79: Solrød | B79: 11120 | C79: 27538 | D79: 3291 | E79: 33512 | F79: 60709 | G79: 5536 | H79: 9603 | I79: 5007 | J79: 34042 | K79: 27714 | L79: 11341
A80: Sorø | B80: 39347 | C80: 50413 | D80: 11259 | E80: 84998 | F80: 101915 | G80: 17481 | H80: 13584 | I80: 22642 | J80: 50478 | K80: 64892 | L80: 41003
A81: Stevns | B81: 27388 | C81: 40440 | D81: 9788 | E81: 55773 | F81: 87187 | G81: 9886 | H81: 13171 | I81: 15713 | J81: 38084 | K81: 50261 | L81: 41199
A82: Struer | B82: 28730 | C82: 31079 | D82: 4004 | E82: 68843 | F82: 71722 | G82: 10051 | H82: 9032 | I82: 16247 | J82: 36672 | K82: 49487 | L82: 25610
A83: Svendborg | B83: 125492 | C83: 115419 | D83: 31424 | E83: 176607 | F83: 234016 | G83: 26037 | H83: 41527 | I83: 36775 | J83: 102466 | K83: 97559 | L83: 67815
A84: Syddjurs | B84: 41758 | C84: 72920 | D84: 23636 | E84: 117729 | F84: 119180 | G84: 8343 | H84: 33703 | I84: 27159 | J84: 91529 | K84: 90979 | L84: 48259
A85: Sønderborg | B85: 100157 | C85: 107214 | D85: 36558 | E85: 259423 | F85: 305627 | G85: 28960 | H85: 17796 | I85: 44863 | J85: 140669 | K85: 180146 | L85: 84959
A86: Thisted | B86: 52713 | C86: 49893 | D86: 22846 | E86: 151284 | F86: 143250 | G86: 10908 | H86: 20282 | I86: 27545 | J86: 81058 | K86: 112330 | L86: 63784
A87: Tønder | B87: 51841 | C87: 47554 | D87: 15953 | E87: 179814 | F87: 84973 | G87: 27271 | H87: 26923 | I87: 23616 | J87: 66310 | K87: 87227 | L87: 30839
A88: Tårnby | B88: 44300 | C88: 70506 | D88: 17205 | E88: 67388 | F88: 125049 | G88: 28890 | H88: 12222 | I88: 40123 | J88: 69485 | K88: 59297 | L88: 51597
A89: Vallensbæk | B89: 11062 | C89: 27389 | D89: 3262 | E89: 16301 | F89: 23370 | G89: 3487 | H89: 3424 | I89: 9295 | J89: 22867 | K89: 13758 | L89: 5113
A90: Varde | B90: 59879 | C90: 56120 | D90: 19998 | E90: 151832 | F90: 176049 | G90: 12659 | H90: 27977 | I90: 46175 | J90: 90293 | K90: 112807 | L90: 49936
A91: Vejen | B91: 50738 | C91: 41670 | D91: 14081 | E91: 119988 | F91: 137399 | G91: 16288 | H91: 22266 | I91: 39491 | J91: 75010 | K91: 91945 | L91: 43390
A92: Vejle | B92: 156401 | C92: 187088 | D92: 50733 | E92: 300161 | F92: 345892 | G92: 23342 | H92: 88618 | I92: 145089 | J92: 179415 | K92: 236804 | L92: 79080
A93: Vesthimmerlands | B93: 49128 | C93: 55279 | D93: 14800 | E93: 129451 | F93: 136830 | G93: 12414 | H93: 30346 | I93: 35082 | J93: 64183 | K93: 77479 | L93: 48549
A94: Viborg | B94: 128148 | C94: 137631 | D94: 25958 | E94: 306166 | F94: 419444 | G94: 25885 | H94: 51755 | I94: 77224 | J94: 150993 | K94: 245478 | L94: 84224
A95: Vordingborg | B95: 96218 | C95: 64086 | D95: 19425 | E95: 245986 | F95: 128900 | G95: 15829 | H95: 15131 | I95: 58781 | J95: 83772 | K95: 68199 | L95: 45466
A96: Ærø | B96: 5493 | C96: 4778 | D96: 1735 | E96: 18593 | F96: 18805 | G96: 1471 | H96: 1088 | I96: 1792 | J96: 11874 | K96: 13450 | L96: 8199
A97: Aabenraa | B97: 50878 | C97: 76925 | D97: 17571 | E97: 191489 | F97: 261788 | G97: 26483 | H97: 29421 | I97: 33532 | J97: 78254 | K97: 151660 | L97: 67616
A98: Aalborg | B98: 505000 | C98: 560000 | D98: 88000 | E98: 520000 | F98: 688500 | G98: 72000 | H98: 72500 | I98: -19000 | J98: 325000 | K98: 366000 | L98: 139000
A99: Aarhus | B99: 580036 | C99: 924786 | D99: 138400 | E99: 1124735 | F99: 1118691 | G99: 95434 | H99: 181706 | I99: 239490 | J99: 506258 | K99: 633963 | L99: 146094
A100: Hele landet | B100: 8357726 | C100: 10637249 | D100: 2239978 | E100: =SUM(E2:E99) -> 15434527 | F100: =SUM(F2:F99) -> 19246098 | G100: 2346881 | H100: 2759521 | I100: =SUM(I2:I99) -> 4186672 | J100: 9415030 | K100: 10237724 | L100: 4965515

Sheet Bloktilskudsdel - MV24 (hidden)
A1: Kommune | B1: Kontanthjælp- og Uddannelseshjælp | C1: Arbejdsløsheds-dagpenge | D1: Ledighedsydelse | E1: Gammel Førtidspension | F1: Ny Førtidspension | G1: Ressourceforløb | H1: Jobafklaringsforløb | I1: Driftsudgifter til aktivering | J1: Sygedagpenge | K1: Fleksjob | L1: Seniorpension | M1: Bloktilskudsnøgle
A2: København | B2: =$M2*B$100 -> 872543.1405 | C2: 1178604.707 | D2: 263757.1236 | E2: 1568382.723 | F2: 2175121.489 | G2: 228975.0148 | H2: 304401.3834 | I2: 440623.0343 | J2: 1010668.863 | K2: 1088429.979 | L2: 515568.5298 | M2: 0.1052288049
A3: Frederiksberg | B3: =$M3*B$100 -> 129931.5517 | C3: 175507.5839 | D3: 39276.42172 | E3: 233549.9432 | F3: 323900.2145 | G3: 34096.97194 | H3: 45328.81214 | I3: 65613.75812 | J3: 150500.0355 | K3: 162079.546 | L3: =$M3*L$100 -> 76773.99087 | M3: 0.01566976036
A4: Ballerup | B4: 77084.56724 | C4: 104123.4863 | D4: 23301.54555 | E4: 138558.3106 | F4: 192160.4686 | G4: 20228.73037 | H4: 26892.25073 | I4: 38926.71243 | J4: 89287.24356 | K4: 96157.02651 | L4: 45547.7502 | M4: 0.009296407838
A5: Brøndby | B5: 63130.0118 | C5: 85274.09774 | D5: 19083.28603 | E5: 113475.2143 | F5: 157373.8179 | G5: 16566.74004 | H5: 22023.96883 | I5: 31879.84188 | J5: 73123.64772 | K5: 78749.79954 | L5: 37302.27866 | M5: 0.007613486817
A6: Dragør | B6: 18942.34943 | C6: 25586.74885 | D6: 5725.997225 | E6: 34048.57847 | F6: 47220.48619 | G6: 4970.900051 | H6: 6608.35792 | I6: 9565.642197 | J6: 21940.96987 | K6: 23629.11361 | L6: 11192.66062 | M6: 0.00228444956
A7: Gentofte | B7: 95045.65734 | C7: 128384.78 | D7: 28730.92232 | E7: 170843.0907 | F7: 236934.8198 | G7: 24942.12582 | H7: 33158.27979 | I7: 47996.83132 | J7: 110091.6183 | K7: 118562.0951 | L7: 56160.60403 | M7: 0.01146251741
A8: Gladsaxe | B8: 100531.4533 | C8: 135794.8261 | D8: 30389.19879 | E8: 180703.7235 | F8: 250610.1008 | G8: 26381.72249 | H8: 35072.09218 | I8: 50767.08752 | J8: 116445.8292 | K8: 125405.2006 | L8: 59402.05263 | M8: 0.01212410504
A9: Glostrup | B9: 34960.99464 | C9: 47224.24706 | D9: 10568.20111 | E9: 62841.84407 | F9: 87152.60851 | G9: 9174.554119 | H9: 12196.73233 | I9: 17654.85146 | J9: 40495.40596 | K9: 43611.13267 | L9: 20657.76209 | M9: 0.004216300048
A10: Herlev | B10: 44622.26494 | C10: 60274.39681 | D10: 13488.66286 | E10: 80207.82715 | F10: 111236.7319 | G10: 11709.88952 | H10: 15567.22934 | I10: 22533.66838 | J10: 51686.07907 | K10: 55662.81898 | L10: 26366.41612 | M10: 0.005381450378
A11: Albertslund | B11: 45691.46461 | C11: 61718.63917 | D11: 13811.86639 | E11: 82129.69693 | F11: 113902.0891 | G11: 11990.47164 | H11: 15940.23767 | I11: 23073.60042 | J11: 52924.53568 | K11: 56996.56275 | L11: 26998.18512 | M11: 0.005510395983
A12: Hvidovre | B12: 79331.27787 | C12: 107158.2747 | D12: 23980.69355 | E12: 142596.738 | F12: 197761.1871 | G12: 20818.31795 | H12: 27676.05361 | I12: 40061.27233 | J12: 91889.614 | K12: 98959.62399 | L12: 46875.28719 | M12: 0.009567361402
A13: Høje-Taastrup | B13: =$M13*B$100 -> 82920.97096 | C13: 112007.1228 | D13: 25065.80566 | E13: 149049.1555 | F13: 206709.7631 | G13: 21760.33444 | H13: 28928.37856 | I13: 41874.02105 | J13: 96047.56432 | K13: 103437.4881 | L13: 48996.36603 | M13: 0.01000027881
A14: Lyngby-Taarbæk | B14: 75491.06793 | C14: 101971.036 | D14: 22819.85384 | E14: 135694.0204 | F14: 188188.1096 | G14: 19810.56018 | H14: 26336.33164 | I14: 38122.01583 | J14: 87441.48939 | K14: 94169.25955 | L14: 44606.18289 | M14: 0.009104231633
A15: Rødovre | B15: 64518.18518 | C15: 87149.20007 | D15: 19502.91069 | E15: 115970.4343 | F15: 160834.3296 | G15: 16931.02807 | H15: 22508.25651 | I15: 32580.85154 | J15: 74731.57235 | K15: 80481.4383 | L15: 38122.52292 | M15: 0.007780900689
A16: Ishøj | B16: 38950.14794 | C16: 52612.67387 | D16: 11774.06424 | E16: 70012.28507 | F16: 97096.97993 | G16: 10221.39799 | H16: 13588.41571 | I16: 19669.32244 | J16: 45116.05202 | K16: 48587.2924 | L16: 23014.87408 | M16: 0.004697392403
A17: Tårnby | B17: 62550.23087 | C17: 84490.94731 | D17: 18908.02667 | E17: 112433.0671 | F17: 155928.5095 | G17: 16414.59244 | H17: 21821.70248 | I17: 31587.05999 | J17: 72452.08604 | K17: 78026.56774 | L17: 36959.69754 | M17: 0.007543565168
A18: Vallensbæk | B18: 22854.93532 | C18: 30871.75074 | D18: 6908.715134 | E18: 41081.39074 | F18: 56973.98632 | G18: 5997.6509 | H18: 7973.329462 | I18: 11541.44762 | J18: 26472.92771 | K18: 28509.76142 | L18: 13504.53044 | M18: 0.002756307876
A19: Furesø | B19: 56524.50609 | C19: 76351.58176 | D19: 17086.53756 | E19: 101601.9205 | F19: 140907.2654 | G19: 14833.30625 | H19: 19719.52681 | I19: 28544.14668 | J19: 65472.47424 | K19: 70509.94285 | L19: 33399.21564 | M19: 0.006816862055
A20: Allerød | B20: 32249.98838 | C20: 43562.30235 | D20: 9748.703277 | E20: 57968.85249 | F20: 80394.46936 | G20: 8463.124886 | H20: 11250.9521 | I20: 16285.82826 | J20: 37355.24075 | K20: 40229.36236 | L20: 19055.88197 | M20: 0.003889352376
A21: Fredensborg | B21: 57988.78211 | C21: 78329.48123 | D21: 17529.16694 | E21: 104233.9339 | F21: 144557.4898 | G21: 15217.56533 | H21: 20230.36419 | I21: 29283.58719 | J21: 67168.54875 | K21: 72336.51376 | L21: 34264.42745 | M21: 0.006993453915
A22: Helsingør | B22: 90380.26332 | C22: 122082.9078 | D22: 27320.64144 | E22: 162457.1175 | F22: 225304.6799 | G22: 23717.82112 | H22: 31530.67844 | I22: 45640.8675 | J22: 104687.681 | K22: 112742.3775 | L22: 53403.91474 | M22: 0.01089987034
A23: Hillerød | B23: =$M23*B$100 -> 71099.13474 | C23: 96038.54636 | D23: 21492.2362 | E23: 127799.5888 | F23: 177239.6672 | G23: 18658.01778 | H23: 24804.13171 | I23: 35904.1462 | J23: 82354.30239 | K23: 88690.66311 | L23: 42011.0762 | M23: 0.008574563976
A24: Hørsholm | B24: 32021.08573 | C24: 43253.10762 | D24: 9679.509327 | E24: 57557.40353 | F24: 79823.84876 | G24: 8403.055662 | H24: 11171.09555 | I24: 16170.23537 | J24: 37090.10224 | K24: 39943.82403 | L24: 18920.6279 | M24: 0.003861746689
A25: Rudersdal | B25: 73836.05672 | C25: 99735.49724 | D25: 22319.56798 | E25: 132719.1635 | F25: 184062.4105 | G25: 19376.24788 | H25: 25758.95308 | I25: 37286.25651 | J25: 85524.48584 | K25: 92104.76127 | L25: 43628.26941 | M25: 0.008904637088
A26: Egedal | B26: 56829.17242 | C26: 76763.11575 | D26: 17178.63376 | E26: 102149.5535 | F26: 141666.7537 | G26: 14913.25757 | H26: 19825.81479 | I26: 28697.99924 | J26: 65825.36998 | K26: 70889.99049 | L26: 33579.23696 | M26: 0.006853604849
A27: Frederikssund | B27: 62906.90848 | C27: 84972.73657 | D27: 19015.84514 | E27: 113074.1895 | F27: 156817.6542 | G27: 16508.1927 | H27: 21946.13547 | I27: 31767.17758 | J27: 72865.22659 | K27: 78471.49544 | L27: 37170.45131 | M27: 0.00758658053
A28: Greve | B28: 70820.72013 | C28: 95662.47238 | D28: 21408.07551 | E28: 127299.1429 | F28: 176545.6206 | G28: 18584.9555 | H28: 24707.00208 | I28: 35763.55041 | J28: 82031.81406 | K28: 88343.36245 | L28: 41846.5665 | M28: 0.008540987142
A29: Køge | B29: 87979.61837 | C29: 118840.1897 | D29: 26594.96133 | E29: 158141.9956 | F29: 219320.2258 | G29: 23087.8377 | H29: 30693.17298 | I29: 44428.57276 | J29: 101907.008 | K29: 109747.7588 | L29: 51985.42099 | M29: 0.01061035228
A30: Halsnæs | B30: 44437.02226 | C30: 60024.17665 | D30: 13432.66669 | E30: 79874.85633 | F30: 110774.9492 | G30: 11661.27766 | H30: 15502.60431 | I30: 22440.12322 | J30: 51471.51203 | K30: 55431.7431 | L30: 26256.95988 | M30: 0.00535911009
A31: Roskilde | B31: 118784.8988 | C31: 160451.0245 | D31: 35906.95037 | E31: 213514.008 | F31: 296113.2511 | G31: 31171.83862 | H31: 41440.11437 | I31: 59984.84214 | J31: 137588.8401 | K31: 148174.96 | L31: 70187.65354 | M31: 0.01432547271
A32: Solrød | B32: 30947.21233 | C32: 41802.55213 | D32: 9354.892991 | E32: 55627.1328 | F32: 77146.84061 | G32: 8121.247045 | H32: 10796.45671 | I32: 15627.94316 | J32: 35846.23205 | K32: 38604.25015 | L32: 18286.0973 | M32: 0.003732237432
A33: Gribskov | B33: =$M33*B$100 -> 56411.86745 | C33: 76199.43292 | D33: 17052.48853 | E33: 101399.4543 | F33: 140626.4739 | G33: 14803.74733 | H33: 19680.23092 | I33: 28487.26562 | J33: 65342.00462 | K33: 70369.43488 | L33: 33332.65969 | M33: 0.006803277822
A34: Odsherred | B34: 50001.3507 | C34: 67540.30208 | D34: 15114.68239 | E34: 89876.65015 | F34: 124646.0001 | G34: 13121.48304 | H34: 17443.81409 | I34: 25250.03732 | J34: 57916.68733 | K34: 62372.8118 | L34: 29544.8118 | M34: 0.006030168751
A35: Holbæk | B35: 105551.8929 | C35: 142576.2831 | D35: 31906.80481 | E35: 189727.8857 | F35: 263125.3171 | G35: 27699.19918 | H35: 36823.55718 | I35: 53302.3448 | J35: 122261.0168 | K35: 131667.8102 | L35: 62368.53139 | M35: 0.01272957065
A36: Faxe | B36: 52586.15993 | C36: 71031.78368 | D36: 15896.03269 | E36: 94522.80453 | F36: 131089.5487 | G36: 13799.79532 | H36: 18345.56836 | I36: 26555.33265 | J36: 60910.6782 | K36: 65597.16108 | L36: 31072.12458 | M36: 0.006341897046
A37: Kalundborg | B37: 74202.58935 | C37: 100230.5984 | D37: 22430.36547 | E37: 133378.0002 | F37: 184976.1223 | G37: 19472.43432 | H37: 25886.82416 | I37: 37471.35076 | J37: 85949.04149 | K37: 92561.98234 | L37: 43844.84631 | M37: 0.008948840966
A38: Ringsted | B38: 50874.73366 | C38: 68720.04118 | D38: 15378.69338 | E38: 91446.54242 | F38: 126823.2152 | G38: 13350.67844 | H38: 17748.50846 | I38: 25691.08445 | J38: 58928.32895 | K38: 63462.28938 | L38: 30060.87655 | M38: 0.006135498837
A39: Slagelse | B39: 121106.4158 | C39: 163586.859 | D39: 36608.71126 | E39: 217686.8987 | F39: 301900.451 | G39: 31781.05708 | H39: 42250.01471 | I39: 61157.1783 | J39: 140277.8589 | K39: 151070.8726 | L39: 71559.39215 | M39: 0.01460544793
A40: Stevns | B40: 33077.02826 | C40: 44679.44263 | D40: 9998.705423 | E40: 59455.4438 | F40: 82456.1579 | G40: 8680.158816 | H40: 11539.4789 | I40: 16703.47273 | J40: 38313.20307 | K40: 41261.03054 | L40: 19544.56351 | M40: 0.003989093482
A41: Sorø | B41: 43248.35128 | C41: 58418.55607 | D41: 13073.3487 | E41: 77738.23872 | F41: 107811.7676 | G41: 11349.34356 | H41: 15087.9164 | I41: 21839.8597 | J41: 50094.67151 | K41: 53948.96812 | L41: 25554.59765 | M41: 0.00521575623
A42: Lejre | B42: 37838.12664 | C42: 51110.58936 | D42: 11437.91634 | E42: 68013.44409 | F42: 94324.87468 | G42: 9929.578498 | H42: 13200.46833 | I42: 19107.76602 | J42: 43827.99502 | K42: 47200.13197 | L42: 22357.80263 | M42: 0.004563282505
A43: Lolland | B43: =$M43*B$100 -> 69433.77862 | C43: 93789.03403 | D43: 20988.82322 | E43: 124806.1371 | F43: 173088.1798 | G43: 18220.99074 | H43: 24223.14415 | I43: 35063.16284 | J43: 80425.31631 | K43: 86613.26035 | L43: 41027.05012 | M43: 0.008373721834
A44: Næstved | B44: 121439.475 | C44: 164036.7453 | D44: 36709.39022 | E44: 218285.5675 | F44: 302730.7185 | G44: 31868.45934 | H44: 42366.20803 | I44: 61325.3689 | J44: 140663.6422 | K44: 151486.3382 | L44: 71756.19027 | M44: 0.01464561491
A45: Guldborgsund | B45: 93978.68083 | C45: 126943.5406 | D45: 28408.39081 | E45: 168925.217 | F45: 234275.0046 | G45: 24662.1271 | H45: 32786.04705 | I45: 47458.02194 | J45: 108855.7368 | K45: 117231.1246 | L45: 55530.14866 | M45: 0.01133383991
A46: Vordingborg | B46: 68416.92615 | C46: 92415.50067 | D46: 20681.44348 | E46: 122978.3606 | F46: 170553.3164 | G46: 17954.1457 | H46: 23868.39802 | I46: 34549.66545 | J46: 79247.49359 | K46: 85344.81566 | L46: 40426.21206 | M46: 0.008251089306
A47: Bornholm | B47: 57306.14922 | C47: 77407.4015 | D47: 17322.81693 | E47: 103006.9119 | F47: 142855.7866 | G47: 15038.42705 | H47: 19992.21619 | I47: 28938.86638 | J47: 66377.85339 | K47: 71484.9821 | L47: 33861.07314 | M47: 0.006911128308
A48: Middelfart | B48: 54441.13211 | C48: 73537.42362 | D48: 16456.76385 | E48: 97857.08818 | F48: 135713.7211 | G48: 14286.58189 | H48: 18992.70668 | I48: 27492.06968 | J48: 63059.29704 | K48: 67911.0952 | L48: 32168.19105 | M48: 0.006565606909
A49: Assens | B49: 59017.70313 | C49: 79719.3164 | D49: 17840.19483 | E49: 106083.4034 | F49: 147122.4383 | G49: 15487.57743 | H49: 20589.32063 | I49: 29803.17903 | J49: 68360.35049 | K49: 73620.01303 | L49: 34872.39659 | M49: 0.00711754191
A50: Faaborg-Midtfyn | B50: 74000.78708 | C50: 99958.00999 | D50: 22369.36358 | E50: 133015.2637 | F50: 184473.059 | G50: 19419.47685 | H50: 25816.42204 | I50: 37369.44321 | J50: 85715.29342 | K50: 92310.24963 | L50: 43725.60533 | M50: 0.008924503589
A51: Kerteminde | B51: 33973.19663 | C51: 45889.95959 | D51: 10269.60411 | E51: 61066.29251 | F51: 84690.17362 | G51: 8915.333626 | H51: 11852.12235 | I51: 17156.02621 | J51: 39351.2371 | K51: 42378.93117 | L51: 20074.09173 | M51: 0.004097171493
A52: Nyborg | B52: 47346.63653 | C52: 63954.395 | D52: 14312.20083 | E52: 85104.84271 | F52: 118028.1888 | G52: 12424.82611 | H52: 16517.6723 | I52: 23909.4409 | J52: 54841.72537 | K52: 59061.2615 | L52: 27976.19355 | M52: 0.00571000991
A53: Odense | B53: =$M53*B$100 -> 292976.5325 | C53: 395743.7794 | D53: 88562.55227 | E53: 526620.76 | F53: 730347.3285 | G53: 76883.65507 | H53: 102209.8022 | I53: 147949.3709 | J53: 339355.4371 | K53: 365465.5297 | L53: 173114.0537 | M53: 0.03533300413
A54: Svendborg | B54: 84834.65422 | C54: 114592.0679 | D54: 25644.28433 | E54: 152488.9714 | F54: 211480.2935 | G54: 22262.52812 | H54: 29595.99922 | I54: 42840.40642 | J54: 98264.18834 | K54: 105824.6597 | L54: 50127.12372 | M54: 0.01023106923
A55: Nordfyns | B55: 42292.6725 | C55: 57127.65428 | D55: 12784.46088 | E55: 76020.42098 | F55: 105429.4012 | G55: 11098.55188 | H55: 14754.51175 | I55: 21357.25424 | J55: 48987.70643 | K55: 52756.83287 | L55: 24989.90591 | M55: 0.005100501257
A56: Langeland | B56: 19474.06785 | C56: 26304.97791 | D56: 5886.727984 | E56: 35004.33406 | F56: 48545.98187 | G56: 5110.434966 | H56: 6793.856855 | I56: 9834.153143 | J56: 22556.86063 | K56: 24292.39115 | L56: 11506.84255 | M56: 0.002348574864
A57: Ærø | B57: 8942.314667 | C57: 12079.00638 | D57: 2703.131898 | E57: 16073.67152 | F57: 22291.87291 | G57: 2346.665211 | H57: 3119.677217 | I57: 4515.753594 | J57: 10357.90504 | K57: 11154.84486 | L57: 5283.837339 | M57: 0.001078444196
A58: Haderslev | B58: 82446.94041 | C58: 111366.8167 | D58: 24922.51311 | E58: 148197.093 | F58: 205528.0748 | G58: 21635.93812 | H58: 28763.00501 | I58: 41634.64173 | J58: 95498.49357 | K58: 102846.1717 | L58: 48716.27073 | M58: 0.00994311067
A59: Billund | B59: 38554.19861 | C59: 52077.83758 | D59: 11654.3745 | E59: 69300.57231 | F59: 96109.93659 | G59: 10117.49195 | H59: 13450.28211 | I59: 19469.37313 | J59: 44657.42294 | K59: 48093.37628 | L59: 22780.91543 | M59: 0.004649640868
A60: Sønderborg | B60: 110363.7495 | C60: 149075.9924 | D60: 33361.35919 | E60: 198377.123 | F60: 275120.5666 | G60: 28961.93895 | H60: 38502.25446 | I60: 55732.27032 | J60: 127834.6021 | K60: 137670.2285 | L60: 65211.76251 | M60: 0.01330988111
A61: Tønder | B61: 56110.52963 | C61: 75792.39495 | D61: 16961.39848 | E61: 100857.8042 | F61: 139875.2831 | G61: 14724.66948 | H61: 19575.10414 | I61: 28335.0939 | J61: 64992.96428 | K61: 69993.53928 | L61: 33154.60511 | M61: 0.006766936445
A62: Esbjerg | B62: 166358.6494 | C62: 224712.1983 | D62: 50287.8045 | E62: 299027.0848 | F62: 414707.6019 | G62: 43656.2646 | H62: 58037.01925 | I62: 84008.97273 | J62: 192693.6322 | K62: 207519.5287 | L62: 98298.04434 | M62: 0.02006287261
A63: Fanø | B63: =$M63*B$100 -> 4440.879522 | C63: 5998.604841 | D63: 1342.413406 | E63: 7982.411865 | F63: 11070.45833 | G63: 1165.387024 | H63: 1549.275683 | I63: 2242.586892 | J63: 5143.881657 | K63: 5539.653204 | L63: 2624.028108 | M63: 0.0005355705905
A64: Varde | B64: 70988.89484 | C64: 95889.63767 | D64: 21458.91228 | E64: 127601.4343 | F64: 176964.8554 | G64: 18629.08834 | H64: 24765.67266 | I64: 35848.47647 | J64: 82226.61125 | K64: 88553.14738 | L64: 41945.93762 | M64: 0.008561269032
A65: Vejen | B65: 60808.15595 | C65: 82137.80556 | D65: 18381.42272 | E65: 109301.7145 | F65: 151585.7734 | G65: 15957.43266 | H65: 21213.95028 | I65: 30707.33462 | J65: 70434.23638 | K65: 75853.46423 | L65: 35930.33984 | M65: 0.007333470729
A66: Aabenraa | B66: 86308.25915 | C66: 116582.5685 | D66: 26089.7337 | E66: 155137.7533 | F66: 215153.7735 | G66: 22649.23532 | H66: 30110.09114 | I66: 43584.5579 | J66: 99971.06855 | K66: 107662.8677 | L66: 50997.8478 | M66: 0.01040878616
A67: Fredericia | B67: 78066.39195 | C67: 105449.7053 | D67: 23598.3369 | E67: 140323.1253 | F67: 194608.0129 | G67: 20486.38333 | H67: 27234.77683 | I67: 39422.52125 | J67: 90424.49353 | K67: 97381.77678 | L67: =$M67*L$100 -> 46127.89105 | M67: 0.009414816012
A68: Horsens | B68: 134563.604 | C68: 181764.4191 | D68: 40676.62388 | E68: 241875.9852 | F68: 335447.2384 | G68: 35312.52702 | H68: 46944.78168 | I68: 67952.88481 | J68: 155865.3531 | K68: 167857.6725 | L68: 79510.97921 | M68: 0.01622838641
A69: Kolding | B69: 131271.9152 | C69: 177318.106 | D69: 39681.59412 | E69: 235959.2257 | F69: 327241.543 | G69: 34448.71356 | H69: 45796.42052 | I69: 66290.62437 | J69: 152052.5817 | K69: 163751.5456 | L69: 77565.98518 | M69: 0.01583140834
A70: Vejle | B70: 167626.5214 | C70: 226424.8012 | D70: 50671.06379 | E70: 301306.0649 | F70: 417868.22 | G70: 43988.98282 | H70: 58479.33776 | I70: 84649.23173 | J70: 194162.2115 | K70: 209101.1008 | L70: 99047.20488 | M70: 0.02021577812
A71: Herning | B71: 122521.9148 | C71: 165498.872 | D71: 37036.59605 | E71: 220231.2361 | F71: 305429.0814 | G71: 32152.51596 | H71: 42743.83539 | I71: 61871.98703 | J71: 141917.4349 | K71: 152836.5979 | L71: 72395.78258 | M71: 0.01477615728
A72: Holstebro | B72: 80133.18918 | C72: 108241.472 | D72: 24223.0997 | E72: 144038.1611 | F72: 199760.2339 | G72: 21028.75758 | H72: 27955.81389 | I72: 40466.2272 | J72: 92818.46984 | K72: 99959.94623 | L72: 47349.12077 | M72: 0.009664072001
A73: Lemvig | B73: =$M73*B$100 -> 27535.05851 | C73: 37193.51864 | D73: 8323.448428 | E73: 49493.83938 | F73: 68640.84387 | G73: 7225.820863 | H73: 9606.069332 | I73: 13904.84947 | J73: 31893.9259 | K73: 34347.85257 | L73: 16269.92291 | M73: 0.003320731281
A74: Struer | B74: 30283.4345 | C74: 40905.94125 | D74: 9154.242589 | E74: 54434.00248 | F74: 75492.14028 | G74: 7947.056759 | H74: 10564.88663 | I74: 15292.74391 | J74: 35077.37656 | K74: 37776.23873 | L74: 17893.88407 | M74: 0.003652185748
A75: Syddjurs | B75: 59668.1111 | C75: 80597.86769 | D75: 18036.80371 | E75: 107252.5016 | F75: 148743.8095 | G75: 15658.25916 | H75: 20816.22641 | I75: 30131.62667 | J75: 69113.71964 | K75: 74431.34659 | L75: 35256.70983 | M75: 0.007195981187
A76: Norddjurs | B76: 55603.31059 | C76: 75107.25893 | D76: 16808.07353 | E76: 99946.08591 | F76: 138610.8608 | G76: 14591.56376 | H76: 19398.15223 | I76: 28078.95483 | J76: 64405.45122 | K76: 69360.82282 | L76: 32854.89939 | M76: 0.00670576577
A77: Favrskov | B77: 63782.46722 | C77: 86155.41466 | D77: 19280.51383 | E77: 114647.9927 | F77: 159000.2931 | G77: 16737.95907 | H77: 22251.5889 | I77: 32209.32345 | J77: 73879.38843 | K77: 79563.68714 | L77: 37687.8017 | M77: 0.007692173017
A78: Odder | B78: 32087.17224 | C78: 43342.37527 | D78: 9699.486321 | E78: 57676.19301 | F78: 79988.59271 | G78: 8420.398256 | H78: 11194.15095 | I78: 16203.60821 | J78: 37166.65042 | K78: 40026.26184 | L78: 18959.67712 | M78: 0.003869716731
A79: Randers | B79: 145444.5912 | C79: 196462.1253 | D79: 43965.78834 | E79: 261434.3905 | F79: 362571.9363 | G79: 38167.94366 | H79: 50740.79749 | I79: 73447.64303 | J79: 168468.8273 | K79: 181430.8612 | L79: 85940.3399 | M79: 0.01754063474
A80: Silkeborg | B80: 133090.9297 | C80: 179775.1755 | D80: 40231.45581 | E80: 239228.876 | F80: 331776.0782 | G80: 34926.06403 | H80: 46431.0144 | I80: 67209.20326 | J80: 154159.5507 | K80: 166020.6253 | L80: 78640.80498 | M80: 0.01605078171
A81: Samsø | B81: 5533.293642 | C81: 7474.204573 | D81: 1672.634335 | E81: 9946.009254 | F81: 13793.68578 | G81: 1452.061147 | H81: 1930.382764 | I81: 2794.241936 | J81: 6409.227616 | K81: 6902.355199 | L81: 3269.514062 | M81: 0.0006673158613
A82: Skanderborg | B82: 83229.43536 | C82: 112423.7871 | D82: 25159.04997 | E82: 149603.6155 | F82: 207478.7194 | G82: 21841.28246 | H82: 29035.99156 | I82: 42029.79159 | J82: 96404.85939 | K82: 103822.2735 | L82: 49178.63156 | M82: 0.01003747965
A83: Aarhus | B83: =$M83*B$100 -> 479202.5609 | C83: 647292.2284 | D83: 144855.977 | E83: 861359.1496 | F83: 1194581.379 | G83: 125753.5684 | H83: 167177.8915 | I83: 241991.1138 | J83: 555061.5033 | K83: 597768.0748 | L83: 283151.3404 | M83: 0.05779188497
A84: Ikast-Brande | B84: 59144.76449 | C84: 79890.94702 | D84: 17878.60363 | E84: 106311.7942 | F84: 147439.1835 | G84: 15520.9212 | H84: 20633.64812 | I84: 29867.34338 | J84: 68507.52597 | K84: 73778.51223 | L84: 34947.47464 | M84: 0.007132865525
A85: Ringkøbing-Skjern | B85: 78527.74974 | C85: 106072.8933 | D85: 23737.79867 | E85: 141152.4087 | F85: 195758.1099 | G85: 20607.45403 | H85: 27395.72928 | I85: 39655.50098 | J85: 90958.88539 | K85: 97957.28489 | L85: 46400.49827 | M85: 0.009470455816
A86: Hedensted | B86: 63128.11612 | C86: 85271.53712 | D86: 19082.713 | E86: 113471.8068 | F86: 157369.0923 | G86: 16566.24257 | H86: 22023.30749 | I86: 31878.88459 | J86: 73121.45195 | K86: 78747.43483 | L86: 37301.15854 | M86: 0.007613258198
A87: Morsø | B87: 29849.36027 | C87: 40319.60699 | D87: 9023.028251 | E87: 53653.7608 | F87: 74410.05718 | G87: 7833.145883 | H87: 10413.45252 | I87: 15073.54202 | J87: 34574.58731 | K87: 37234.76475 | L87: 17637.39817 | M87: 0.003599836345
A88: Skive | B88: 65952.26593 | C88: 89086.31269 | D88: 19936.41248 | E88: 118548.1722 | F88: 164409.2816 | G88: 17307.36323 | H88: 23008.55976 | I88: 33305.04382 | J88: 76392.67161 | K88: 82270.34296 | L88: 38969.89295 | M88: 0.007953850996
A89: Thisted | B89: 62387.57952 | C89: 84271.24282 | D89: 18858.85953 | E89: 112140.7038 | F89: 155523.0436 | G89: 16371.90905 | H89: 21764.95881 | I89: 31504.92315 | J89: 72263.68658 | K89: 77823.67278 | L89: 36863.59007 | M89: 0.007523949397
A90: Viborg | B90: 135218.6836 | C90: 182649.2807 | D90: 40874.64493 | E90: 243053.4805 | F90: 337080.2552 | G90: 35484.43468 | H90: 47173.31722 | I90: 68283.69154 | J90: 156624.1333 | K90: 168674.8335 | L90: 79898.0528 | M90: 0.01630738908
A91: Brønderslev | B91: 51604.02032 | C91: 69705.1394 | D91: 15599.14615 | E91: 92757.42385 | F91: 128641.2194 | G91: 13542.05972 | H91: 18002.9324 | I91: 26059.36481 | J91: 59773.06348 | K91: 64372.018 | L91: 30491.79766 | M91: 0.006223450894
A92: Frederikshavn | B92: 87161.11878 | C92: 117734.5853 | D92: 26347.54079 | E92: 156670.7553 | F92: 217279.8269 | G92: 22873.04493 | H92: 30407.6256 | I92: 44015.24102 | J92: 100958.938 | K92: 108726.744 | L92: 51501.78573 | M92: 0.01051164113
A93: Vesthimmerland | B93: =$M93*B$100 -> 54341.75706 | C93: 73403.19083 | D93: 16426.72422 | E93: 97678.46306 | F93: 135465.9937 | G93: 14260.50363 | H93: 18958.03802 | I93: 27441.88656 | J93: 62944.19067 | K93: 67787.13251 | L93: 32109.47229 | M93: 0.006553622266
A94: Læsø | B94: 2736.602147 | C94: 3696.518856 | D94: 827.2350986 | E94: 4918.999793 | F94: 6821.945944 | G94: 718.1461729 | H94: 954.7097912 | I94: 1381.948795 | J94: 3169.812988 | K94: 3413.699196 | L94: 1617.004226 | M94: 0.0003300345394
A95: Rebild | B95: =$M95*B$100 -> 40707.2069 | C95: 54986.05562 | D95: 12305.19765 | E95: 73170.57123 | F95: 101477.069 | G95: 10682.48992 | H95: 14201.39535 | I95: 20556.61456 | J95: 47151.25774 | K95: 50779.08735 | L95: 24053.08556 | M95: 0.00490929392
A96: Mariagerfjord | B96: 59538.46607 | C96: 80422.74713 | D96: 17997.6139 | E96: 107019.4667 | F96: 148420.6236 | G96: 15624.23738 | H96: 20770.99756 | I96: 30066.1576 | J96: 68963.55148 | K96: 74269.62446 | L96: 35180.10514 | M96: 0.007180345982
A97: Jammerbugt | B97: 54059.59514 | C97: 73022.05509 | D97: 16341.43076 | E97: 97171.28139 | F97: 134762.6056 | G97: 14186.45798 | H97: 18859.60107 | I97: 27299.39843 | J97: 62617.36182 | K97: 67435.15737 | L97: 31942.74838 | M97: 0.006519593505
A98: Aalborg | B98: 300762.1852 | C98: 406260.4022 | D98: 90916.04208 | E98: 540615.3498 | F98: 749755.8138 | G98: 78926.7861 | H98: 104925.9584 | I98: 151881.0251 | J98: 348373.5779 | K98: 375177.5285 | L98: 177714.4424 | M98: 0.03627195477
A99: Hjørring | B99: 92043.41646 | C99: 124329.4444 | D99: 27823.38849 | E99: 165446.6094 | F99: 229450.6756 | G99: 24154.27005 | H99: 32110.89745 | I99: 46480.73839 | J99: 106614.1153 | K99: 114817.0322 | L99: 54386.63912 | M99: 0.0111004468
A100: Hele landet | B100: 8291865.911 | C100: 11200400 | D100: 2506510.682 | E100: 14904500 | F100: 20670400 | G100: 2175972.776 | H100: 2892757.203 | I100: 4187285.359 | J100: 9604488.65 | K100: 10343460.42 | L100: 4899500 | M100: 1

Sheet Bloktilskudsdel - ØA24 (hidden)
A1: Kommune | B1: Kontant- og uddannelseshjælp | C1: Arbejdsløsheds-dagpenge | D1: Ledighedsydelse | E1: Gammel Førtidspension | F1: Ny Førtidspension | G1: Ressourceforløb | H1: Jobafklaringsforløb | I1: Driftsudgifter til aktivering mv. | J1: Sygedagpenge | K1: Fleksjob | L1: Seniorpension | M1: Bloktilskudsnøgle
A2: København | B2: =$M2*B$100 -> 992411.409 | C2: 1214726.778 | D2: 262130.965 | E2: 1509307.272 | F2: 2065304.709 | G2: 245089.4846 | H2: 284970.3946 | I2: 429166.605 | J2: 1009234.112 | K2: 1094214.911 | L2: 556811.8234 | M2: 0.1052288049
A3: Frederiksberg | B3: =$M3*B$100 -> 147781.294 | C3: 180886.5692 | D3: 39034.2683 | E3: 224752.9398 | F3: 307547.2526 | G3: 36496.59893 | H3: 42435.31792 | I3: 63907.7661 | J3: 150286.3848 | K3: 162940.9879 | L3: =$M3*L$100 -> 82915.58421 | M3: 0.01566976036
A4: Ballerup | B4: 87674.29419 | C4: 107314.6801 | D4: 23157.88305 | E4: 133339.3073 | F4: 182458.7373 | G4: 21652.35847 | H4: 25175.62573 | I4: 37914.59755 | J4: 89160.49091 | K4: 96668.09465 | L4: 49191.37685 | M4: 0.009296407838
A5: Brøndby | B5: 71802.68923 | C5: 87887.5923 | D5: 18965.63063 | E5: 109201.0028 | F5: 149428.3831 | G5: 17732.64992 | H5: 20618.10303 | I5: 31050.94932 | J5: 73019.841 | K5: 79168.34944 | L5: 40286.30259 | M5: 0.007613486817
A6: Dragør | B6: 21544.61232 | C6: 26370.93574 | D6: 5690.69437 | E6: 32766.08849 | F6: 44836.43463 | G6: 5320.734809 | H6: 6186.52367 | I6: 9316.930498 | J6: 21909.82235 | K6: 23754.70076 | L6: 12088.02595 | M6: 0.00228444956
A7: Gentofte | B7: 108102.8437 | C7: 132319.5378 | D7: 28553.78574 | E7: 164408.0334 | F7: 224972.5366 | G7: 26697.46639 | H7: 31041.67257 | I7: 46748.88861 | J7: 109935.3317 | K7: 119192.2447 | L7: 60653.21394 | M7: 0.01146251741
A8: Gladsaxe | B8: 114342.2675 | C8: 139956.6882 | D8: 30201.83832 | E8: 173897.251 | F8: 237957.3848 | G8: 28238.3769 | H8: 32833.31972 | I8: 49447.1167 | J8: 116280.5221 | K8: 126071.7208 | L8: 64153.96466 | M8: 0.01212410504
A9: Glostrup | B9: 39763.86764 | C9: 48671.58354 | D9: 10503.04431 | E9: 60474.81322 | F9: 82752.47778 | G9: 9820.227516 | H9: 11418.1729 | I9: 17195.81609 | J9: 40437.91846 | K9: 43842.92291 | L9: 22310.29535 | M9: 0.004216300048
A10: Herlev | B10: 50752.38434 | C10: 62121.69643 | D10: 13405.50034 | E10: 77186.68091 | F10: 105620.6503 | G10: 12533.99105 | H10: 14573.51947 | I10: 21947.78122 | J10: 51612.70524 | K10: 55958.66313 | L10: 28475.61748 | M10: 0.005381450378
A11: Albertslund | B11: 51968.46857 | C11: 63610.20217 | D11: 13726.71121 | E11: 79036.16063 | F11: 108151.4399 | G11: 12834.31958 | H11: 14922.71739 | I11: 22473.67475 | J11: 52849.40373 | K11: 57299.49565 | L11: 29157.92531 | M11: 0.005510395983
A12: Hvidovre | B12: 90229.65352 | C12: 110442.4791 | D12: 23832.84386 | E12: 137225.6213 | F12: 187776.6888 | G12: 22283.43918 | H12: 25909.39577 | I12: 39019.6583 | J12: 91759.16701 | K12: 99485.58774 | L12: 50625.11116 | M12: 0.009567361402
A13: Høje-Taastrup | B13: =$M13*B$100 -> 94312.49162 | C13: 115439.9355 | D13: 24911.26585 | E13: 143434.999 | F13: 196273.4721 | G13: 23291.75154 | H13: 27081.78051 | I13: 40785.2746 | J13: 95911.21469 | K13: 103987.2514 | L13: 52915.8673 | M13: 0.01000027881
A14: Lyngby-Taarbæk | B14: 85861.88306 | C14: 105096.2611 | D14: 22679.16114 | E14: 130582.9047 | F14: 178686.9334 | G14: 21204.75891 | H14: 24655.19287 | I14: 37130.82348 | J14: 87317.35699 | K14: 94669.76284 | L14: 48174.48815 | M14: 0.009104231633
A15: Rødovre | B15: 73381.56716 | C15: 89820.16308 | D15: 19382.66815 | E15: 111602.2367 | F15: 152714.1816 | G15: 18122.57528 | H15: 21071.47697 | I15: 31733.73236 | J15: 74625.48301 | K15: 80909.19175 | L15: 41172.16292 | M15: 0.007780900689
A16: Ishøj | B16: 44301.04301 | C16: 54225.15575 | D16: 11701.47285 | E16: 67375.16898 | F16: 92194.78122 | G16: 10940.74463 | H16: 12721.02033 | I16: 19157.90977 | J16: 45052.00503 | K16: 48845.53059 | L16: 24855.9663 | M16: 0.004697392403
A17: Tårnby | B17: 71143.25913 | C17: 87080.43975 | D17: 18791.45181 | E17: 108198.1096 | F17: 148056.0448 | G17: 17569.7947 | H17: 20428.74804 | I17: 30765.77991 | J17: 72349.23267 | K17: 78441.27371 | L17: 39916.31644 | M17: 0.007543565168
A18: Vallensbæk | B18: 25994.70159 | C18: 31817.91323 | D18: 6866.120393 | E18: 39533.9995 | F18: 54097.50342 | G18: 6419.744833 | H18: 7464.364377 | I18: 11241.36394 | J18: 26435.3466 | K18: 28661.28889 | L18: 14584.83554 | M18: 0.002756307876
A19: Furesø | B19: 64289.73209 | C19: 78691.61759 | D19: 16981.19284 | E19: 97774.93414 | F19: 133793.1882 | G19: 15877.22305 | H19: 18460.76149 | I19: 27801.98394 | J19: 65379.52916 | K19: 70884.69847 | L19: 36071.0111 | M19: 0.006816862055
A20: Allerød | B20: 36680.42865 | C20: 44897.40696 | D20: 9688.598976 | E20: 55785.37007 | F20: 76335.54122 | G20: 9058.730353 | H20: 10532.76507 | I20: 15862.38821 | J20: 37302.21105 | K20: 40443.17872 | L20: 20580.27163 | M20: 0.003889352376
A21: Fredensborg | B21: 65955.16748 | C21: 80730.13604 | D21: 17421.09325 | E21: 100307.8088 | F21: 137259.1213 | G21: 16288.52496 | H21: 18938.99035 | I21: 28522.19861 | J21: 67073.19592 | K21: 72720.97748 | L21: 37005.43619 | M21: 0.006993453915
A22: Helsingør | B22: 102796.527 | C22: 125824.5248 | D22: 27152.19975 | E22: 156337.9303 | F22: 213929.5752 | G22: 25386.99937 | H22: 29517.96662 | I22: 44454.18108 | J22: 104539.0658 | K22: 113341.5956 | L22: 57676.0012 | M22: 0.01089987034
A23: Hillerød | B23: =$M23*B$100 -> 80866.59468 | C23: 98981.95151 | D23: 21359.72875 | E23: 122985.8286 | F23: 168291.2523 | G23: 19971.10456 | H23: 23220.79854 | I23: 34970.61962 | J23: 82237.39178 | K23: 89162.04803 | L23: 45371.78395 | M23: 0.008574563976
A24: Hørsholm | B24: 36420.0798 | C24: 44578.73597 | D24: 9619.831632 | E24: 55389.41893 | F24: 75793.72992 | G24: 8994.433665 | H24: 10458.00604 | I24: 15749.8008 | J24: 37037.44894 | K24: 40156.12277 | L24: 20434.19781 | M24: 0.003861746689
A25: Rudersdal | B25: 83979.50965 | C25: 102792.2072 | D25: 22181.95973 | E25: 127720.1002 | F25: 174769.5312 | G25: 20739.88121 | H25: 24114.67037 | I25: 36316.79434 | J25: 85403.07483 | K25: 92594.29189 | L25: 47118.34575 | M25: 0.008904637088
A26: Egedal | B26: 64636.25287 | C26: 79115.76434 | D26: 17072.72124 | E26: 98301.93971 | F26: 134514.3317 | G26: 15962.80107 | H26: 18560.26474 | I26: 27951.83626 | J26: 65731.92394 | K26: 71266.76603 | L26: 36265.43336 | M26: 0.006853604849
A27: Frederikssund | B27: 71548.93642 | C27: 87576.99497 | D27: 18898.60554 | E27: 108815.0832 | F27: 148900.2987 | G27: 17669.98222 | H27: 20545.23805 | I27: 30941.21435 | J27: 72761.78673 | K27: 78888.56616 | L27: 40143.92961 | M27: 0.00758658053
A28: Greve | B28: 80549.93202 | C28: 98594.35156 | D28: 21276.08693 | E28: 122504.2327 | F28: 167632.2464 | G28: 19892.90041 | H28: 23129.86903 | I28: 34833.6794 | J28: 81915.36126 | K28: 88812.90149 | L28: 45194.11417 | M28: 0.008540987142
A29: Køge | B29: 100066.0861 | C29: 122482.4233 | D29: 26430.99372 | E29: 152185.3438 | F29: 208247.2621 | G29: 24712.67989 | H29: 28733.92202 | I29: 43273.40663 | J29: 101762.3403 | K29: 110331.0608 | L29: 56144.03398 | M29: 0.01061035228
A30: Halsnæs | B30: 50541.69339 | C30: 61863.80748 | D30: 13349.84941 | E30: 76866.25193 | F30: 105182.1819 | G30: 12481.95806 | H30: 14513.01968 | I30: 21856.66828 | J30: 51398.4428 | K30: 55726.35909 | L30: 28357.40521 | M30: 0.00535911009
A31: Roskilde | B31: 135103.3357 | C31: 165368.5539 | D31: 35685.57097 | E31: 205471.6876 | F31: 281163.1878 | G31: 33365.60484 | H31: 38794.84912 | I31: 58425.20488 | J31: 137393.5182 | K31: 148962.4999 | L31: 75802.36786 | M31: 0.01432547271
A32: Solrød | B32: 35198.67978 | C32: 43083.72362 | D32: 9297.216673 | E32: 53531.85471 | F32: 73251.87763 | G32: 8692.792331 | H32: 10107.28169 | I32: 15221.60846 | J32: 35795.34455 | K32: 38809.42915 | L32: 19748.90745 | M32: 0.003732237432
A33: Gribskov | B33: =$M33*B$100 -> 64161.61937 | C33: 78534.80566 | D33: 16947.35374 | E33: 97580.09413 | F33: 133526.5732 | G33: 15845.58388 | H33: 18423.97399 | I33: 27746.58182 | J33: 65249.24476 | K33: 70743.4437 | L33: 35999.13096 | M33: 0.006803277822
A34: Odsherred | B34: 56870.43838 | C34: 69610.28836 | D34: 15021.49487 | E34: 86491.31341 | F34: 118352.916 | G34: 14044.92764 | H34: 16330.31535 | I34: 24593.52315 | J34: 57834.46849 | K34: 62704.31911 | L34: 31908.27131 | M34: 0.006030168751
A35: Holbæk | B35: 120052.4053 | C35: 146945.9844 | D35: 31710.08775 | E35: 182581.5048 | F35: 249840.7372 | G35: 29648.57304 | H35: 34472.98268 | I35: 51916.45597 | J35: 122087.4544 | K35: 132367.6157 | L35: 67357.74913 | M35: 0.01272957065
A36: Faxe | B36: 59810.34364 | C36: 73208.77746 | D36: 15798.02787 | E36: 90962.46353 | F36: 124471.1449 | G36: 14770.9772 | H36: 17174.50754 | I36: 25864.88012 | J36: 60824.20908 | K36: 65945.80559 | L36: 33557.76263 | M36: 0.006341897046
A37: Kalundborg | B37: 84396.39582 | C37: 103302.4822 | D37: 22292.07411 | E37: 128354.1209 | F37: 175637.1119 | G37: 20842.83692 | H37: 24234.37901 | I37: 36497.07605 | J37: 85827.02777 | K37: 93053.94306 | L37: 47352.24788 | M37: 0.008948840966
A38: Ringsted | B38: 57863.80497 | C38: 70826.18429 | D38: 15283.87814 | E38: 88002.07337 | F38: 120420.2086 | G38: 14290.25302 | H38: 16615.56002 | I38: 25023.10282 | J38: 58844.67398 | K38: 63799.58719 | L38: 32465.61906 | M38: 0.006135498837
A39: Slagelse | B39: 137743.7782 | C39: 168600.496 | D39: 36383.00524 | E39: 209487.4002 | F39: 286658.2055 | G39: 34017.69799 | H39: 39553.05073 | I39: 59567.05968 | J39: 140078.7197 | K39: 151873.8042 | L39: 77283.83973 | M39: 0.01460544793
A40: Stevns | B40: 37621.08565 | C40: 46048.78553 | D40: 9937.059768 | E40: 57215.96672 | F40: 78293.13995 | G40: 9291.038381 | H40: 10802.87421 | I40: 16269.17371 | J40: 38258.81344 | K40: 41480.33014 | L40: 21108.04562 | M40: 0.003989093482
A41: Sorø | B41: 49189.72511 | C41: 60208.97758 | D41: 12992.74675 | E41: 74810.11318 | F41: 102368.6044 | G41: 12148.07112 | H41: 14124.80273 | I41: 21272.01193 | J41: 50023.55684 | K41: 54235.70326 | L41: 27598.85697 | M41: 0.00521575623
A42: Lejre | B42: 43036.25441 | C42: 52677.03511 | D42: 11367.39743 | E42: 65451.61729 | F42: 89562.63306 | G42: 10628.3879 | H42: 12357.83697 | I42: 18610.95411 | J42: 43765.77657 | K42: 47450.9975 | L42: 24146.33193 | M42: 0.004563282505
A43: Lolland | B43: =$M43*B$100 -> 78972.4552 | C43: 96663.49576 | D43: 20859.4195 | E43: 120105.1296 | F43: 164349.3637 | G43: 19503.32107 | H43: 22676.89742 | I43: 34151.50227 | J43: 80311.1441 | K43: 87073.60402 | L43: 44309.03996 | M43: 0.008373721834
A44: Næstved | B44: 138122.5924 | C44: 169064.1704 | D44: 36483.06348 | E44: 210063.5193 | F44: 287446.5548 | G44: 34111.25131 | H44: 39661.82704 | I44: 59730.87724 | J44: 140463.9553 | K44: 152291.4779 | L44: 77496.38086 | M44: 0.01464561491
A45: Guldborgsund | B45: 106889.288 | C45: 130834.1271 | D45: 28233.24275 | E45: 162562.3993 | F45: 222447.0092 | G45: 26397.76233 | H45: 30693.20073 | I45: 46224.08855 | J45: 108701.2046 | K45: 117854.2001 | L45: 59972.32481 | M45: 0.01133383991
A46: Vordingborg | B46: 77815.90953 | C46: 95247.86612 | D46: 20553.93486 | E46: 118346.199 | F46: 161942.4796 | G46: 19217.6964 | H46: 22344.79596 | I46: 33651.35608 | J46: 79134.99343 | K46: 85798.41763 | L46: 43660.1374 | M46: 0.008251089306
A47: Bornholm | B47: 65178.75582 | C47: 79779.79626 | D47: 17216.01546 | E47: 99127.00443 | F47: 135643.3331 | G47: 16096.77955 | H47: 18716.04417 | I47: 28186.44072 | J47: 66283.62303 | K47: 71864.91998 | L47: 36569.81524 | M47: 0.006911128308
A48: Middelfart | B48: 61920.14827 | C48: 75791.21067 | D48: 16355.30192 | E48: 94171.15646 | F48: 128861.8537 | G48: 15292.02213 | H48: 17780.33679 | I48: 26777.2615 | J48: 62969.77772 | K48: 68272.03811 | L48: 34741.50977 | M48: 0.006565606909
A49: Assens | B49: 67125.43965 | C49: 82162.56712 | D49: 17730.20354 | E49: 102087.6154 | F49: 139694.5716 | G49: 16577.53957 | H49: 19275.03337 | I49: 29028.28079 | J49: 68263.30577 | K49: 74011.29845 | L49: 37662.04027 | M49: 0.00711754191
A50: Faaborg-Midtfyn | B50: 84166.87034 | C50: 103021.5395 | D50: 22231.44831 | E50: 128005.0474 | F50: 175159.447 | G50: 20786.15248 | H50: 24168.47089 | I50: 36397.81815 | J50: 85593.61154 | K50: 92800.87241 | L50: 47223.46813 | M50: 0.008924503589
A51: Kerteminde | B51: 38640.36788 | C51: 47296.40261 | D51: 10206.28827 | E51: 58766.14044 | F51: 80414.36545 | G51: 9542.763981 | H51: 11095.56055 | I51: 16709.96055 | J51: 39295.37387 | K51: 42604.17234 | L51: 21679.93385 | M51: 0.004097171493
A52: Nyborg | B52: 53851.02476 | C52: 65914.47981 | D52: 14223.96091 | E52: 81899.24314 | F52: 112069.2225 | G52: 13299.24242 | H52: 15463.29238 | I52: 23287.78293 | J52: 54763.87177 | K52: 59375.16814 | L52: 30214.17027 | M52: 0.00571000991
A53: Odense | B53: =$M53*B$100 -> 333225.0749 | C53: 407872.5998 | D53: 88016.53193 | E53: 506784.8115 | F53: 693473.8054 | G53: 82294.46088 | H53: 95685.39844 | I53: 144102.6099 | J53: 338873.6863 | K53: 367407.9545 | L53: 186962.4431 | M53: 0.03533300413
A54: Svendborg | B54: 96489.07294 | C54: 118104.1044 | D54: 25486.17799 | E54: 146745.2491 | F54: 200803.1497 | G54: 23829.28788 | H54: 27706.78464 | I54: 41726.53345 | J54: 98124.69198 | K54: 106387.1106 | L54: 54137.08081 | M54: 0.01023106923
A55: Nordfyns | B55: 48102.75706 | C55: 58878.51202 | D55: 12705.64003 | E55: 73156.99958 | F55: 100106.5181 | G55: 11879.62958 | H55: 13812.68044 | I55: 20801.95446 | J55: 48918.16322 | K55: 53037.2319 | L55: 26988.99229 | M55: 0.005100501257
A56: Langeland | B56: 22149.37717 | C56: 27111.17719 | D56: 5850.434165 | E56: 33685.84413 | F56: 46095.00914 | G56: 5470.089709 | H56: 6360.181569 | I56: 9578.460019 | J56: 22524.83879 | K56: 24421.50358 | L56: 12427.3411 | M56: 0.002348574864
A57: Ærø | B57: 10170.79235 | C57: 12449.20575 | D57: 2686.466107 | E57: 15468.23295 | F57: 21166.40855 | G57: 2511.815395 | H57: 2920.537474 | I57: 4398.341639 | J57: 10343.2009 | K57: 11214.13211 | L57: 5706.521895 | M57: 0.001078444196
A58: Haderslev | B58: 93773.33968 | C58: 114780.0052 | D58: 24768.85675 | E58: 142615.0306 | F58: 195151.4445 | G58: 23158.60064 | H58: 26926.96332 | I58: 40552.11928 | J58: 95362.9234 | K58: 103392.7922 | L58: 52613.36557 | M58: 0.00994311067
A59: Billund | B59: 43850.69894 | C59: 53673.9277 | D59: 11582.52105 | E59: 66690.26393 | F59: 91257.57138 | G59: 10829.52605 | H59: 12591.70427 | I59: 18963.15925 | J59: 44594.02703 | K59: 48348.98935 | L59: 24603.29195 | M59: 0.004649640868
A60: Sønderborg | B60: 125525.3053 | C60: 153644.8979 | D60: 33155.67427 | E60: 190904.9558 | F60: 261230.3746 | G60: 31000.18007 | H60: 36044.52293 | I60: 54283.20215 | J60: 127653.1274 | K60: 138401.9365 | L60: 70428.42667 | M60: 0.01330988111
A61: Tønder | B61: 63818.88434 | C61: 78115.29273 | D61: 16856.82529 | E61: 97058.84612 | F61: 132813.3082 | G61: 15760.9408 | H61: 18325.55782 | I61: 27598.36664 | J61: 64900.69992 | K61: 70365.55024 | L61: 35806.83277 | M61: 0.006766936445
A62: Esbjerg | B62: 189212.675 | C62: 231599.2147 | D62: 49977.7619 | E62: 287763.7881 | F62: 393769.9881 | G62: 46728.64155 | H62: 54332.31639 | I62: 81824.69551 | J62: 192420.0833 | K62: 208622.4811 | L62: 106161.4706 | M62: 0.02006287261
A63: Fanø | B63: =$M63*B$100 -> 5050.958857 | C63: 6182.451068 | D63: 1334.136939 | E63: 7681.742536 | F63: 10511.53686 | G63: 1247.402934 | H63: 1450.38008 | I63: 2184.27846 | J63: 5136.579375 | K63: 5569.096089 | L63: 2833.939217 | M63: 0.0005355705905
A64: Varde | B64: 80741.21024 | C64: 98828.47904 | D64: 21326.61028 | E64: 122795.1379 | F64: 168030.315 | G64: 19940.13916 | H64: 23184.79446 | I64: 34916.39734 | J64: 82109.88191 | K64: 89023.80141 | L64: 45301.43456 | M64: 0.008561269032
A65: Vejen | B65: 69161.86137 | C65: 84655.17852 | D65: 18268.09456 | E65: 105184.704 | F65: 143932.5633 | G65: 17080.46159 | H65: 19859.79075 | I65: 29908.92786 | J65: 70334.24757 | K65: 76256.6203 | L65: 38804.61449 | M65: 0.007333470729
A66: Aabenraa | B66: 98165.11883 | C66: 120155.6102 | D66: 25928.881 | E66: 149294.2608 | F66: 204291.1642 | G66: 24243.21019 | H66: 28188.06031 | I66: 42451.33661 | J66: 99829.14909 | K66: 108235.0886 | L66: 55077.45912 | M66: 0.01040878616
A67: Fredericia | B67: 88791.00005 | C67: 108681.5452 | D67: 23452.84457 | E67: 135037.6475 | F67: 184782.7109 | G67: 21928.14416 | H67: 25496.28721 | I67: 38397.51508 | J67: 90296.12644 | K67: 97899.35439 | L67: =$M67*L$100 -> 49817.92651 | M67: 0.009414816012
A68: Horsens | B68: 153049.6885 | C68: 187335.1649 | D68: 40425.83771 | E68: 232765.3691 | F68: 318511.2944 | G68: 37797.70057 | H68: 43948.13455 | I68: 66186.07427 | J68: 155644.0858 | K68: 168749.8248 | L68: 85871.51999 | M68: 0.01622838641
A69: Kolding | B69: 149305.7939 | C69: 182752.5805 | D69: 39436.94267 | E69: 227071.473 | F69: 310719.8853 | G69: 36873.09491 | H69: 42873.07724 | I69: 64567.03348 | J69: 151836.7271 | K69: 164621.8741 | L69: 83770.9347 | M69: 0.01583140834
A70: Vejle | B70: 190654.7248 | C70: 233364.3057 | D70: 50358.65826 | E70: 289956.9271 | F70: 396771.0339 | G70: 47084.77533 | H70: 54746.40019 | I70: 82448.30744 | J70: 193886.5778 | K70: 210212.4591 | L70: 106970.5608 | M70: 0.02021577812
A71: Herning | B71: 139353.7356 | C71: 170571.1086 | D71: 36808.25197 | E71: 211935.9014 | F71: 290008.6836 | G71: 34415.29887 | H71: 40015.34914 | I71: 60263.28301 | J71: 141715.9681 | K71: 153648.9142 | L71: 78187.13784 | M71: 0.01477615728
A72: Holstebro | B72: 91141.72984 | C72: 111558.8745 | D72: 24073.75548 | E72: 138612.7511 | F72: 189674.8083 | G72: 22508.68883 | H72: 26171.29799 | I72: 39414.08413 | J72: 92686.70425 | K72: 100491.2266 | L72: 51136.84942 | M72: 0.009664072001
A73: Lemvig | B73: =$M73*B$100 -> 31317.77094 | C73: 38333.43171 | D73: 8272.131341 | E73: 47629.58084 | F73: 65175.3287 | G73: 7734.349151 | H73: 8992.880837 | I73: 13543.31612 | J73: 31848.64911 | K73: 34530.4091 | L73: 17571.44767 | M73: 0.003320731281
A74: Struer | B74: 34443.71345 | C74: 42159.63326 | D74: 9097.803354 | E74: 52383.6654 | F74: 71680.71923 | G74: 8506.343136 | H74: 9890.493522 | I74: 14895.12457 | J74: 35027.58053 | K74: 37977.0169 | L74: 19325.31883 | M74: 0.003652185748
A75: Syddjurs | B75: 67865.1994 | C75: 83068.04439 | D75: 17925.60026 | E75: 103212.6778 | F75: 141234.0836 | G75: 16760.2333 | H75: 19487.45498 | I75: 29348.18862 | J75: 69015.60543 | K75: 74826.9442 | L75: 38077.09694 | M75: 0.007195981187
A76: Norddjurs | B76: 63241.98455 | C76: 77409.15854 | D76: 16704.44565 | E76: 96181.46901 | F76: 131612.7236 | G76: 15618.46756 | H76: 18159.90135 | I76: 27348.88732 | J76: 64314.0209 | K76: 69729.47094 | L76: 35483.15186 | M76: 0.00670576577
A77: Favrskov | B77: 72544.7777 | C77: 88795.91997 | D77: 19161.64246 | E77: 110329.6068 | F77: 150972.7414 | G77: 17915.91876 | H77: 20831.19333 | I77: 31371.8642 | J77: 73774.50886 | K77: 79986.5628 | L77: 40702.66583 | M77: 0.007692173017
A78: Odder | B78: 36495.24515 | C78: 44670.73951 | D78: 9639.685461 | E78: 55503.73404 | F78: 75950.15633 | G78: 9012.99677 | H78: 10479.58973 | I78: 15782.30592 | J78: 37113.88844 | K78: 40238.99873 | L78: 20476.3708 | M78: 0.003869716731
A79: Randers | B79: 165425.4845 | C79: 202483.3288 | D79: 43694.72327 | E79: 251587.0781 | F79: 344266.5299 | G79: 40854.07157 | H79: 47501.8376 | I79: 71537.96591 | J79: 168229.668 | K79: 182395.154 | L79: 92815.20225 | M79: 0.01754063474
A80: Silkeborg | B80: 151374.7011 | C80: 185284.9546 | D80: 39983.41425 | E80: 230217.9671 | F80: 315025.4824 | G80: 37384.03965 | H80: 43467.16281 | I80: 65461.72883 | J80: 153940.705 | K80: 166903.0138 | L80: 84931.73553 | M80: 0.01605078171
A81: Samsø | B81: 6293.44669 | C81: 7703.275223 | D81: 1662.321936 | E81: 9571.37813 | F81: 13097.27495 | G81: 1554.25219 | H81: 1807.159783 | I81: 2721.590184 | J81: 6400.129042 | K81: 6939.040753 | L81: 3531.061307 | M81: 0.0006673158613
A82: Skanderborg | B82: 94663.33226 | C82: 115869.3698 | D82: 25003.93528 | E82: 143968.5744 | F82: 197003.6056 | G82: 23378.3964 | H82: 27182.5242 | I82: 40936.99503 | J82: 96268.00254 | K82: 104374.0819 | L82: 53112.7133 | M82: 0.01003747965
A83: Aarhus | B83: =$M83*B$100 -> 545034.4707 | C83: 667130.547 | D83: 143962.8872 | E83: 828914.7853 | F83: 1134269.768 | G83: 134603.6697 | H83: 156506.3508 | I83: 235699.2183 | J83: 554273.535 | K83: 600945.172 | L83: 305802.2456 | M83: 0.05779188497
A84: Ikast-Brande | B84: 67269.95645 | C84: 82339.4579 | D84: 17768.37554 | E84: 102307.4035 | F84: 139995.3251 | G84: 16613.22996 | H84: 19316.53129 | I84: 29090.77683 | J84: 68410.27232 | K84: 74170.64007 | L84: 37743.12425 | M84: 0.007132865525
A85: Ringkøbing-Skjern | B85: 89315.73827 | C85: 109323.8328 | D85: 23591.4465 | E85: 135835.6948 | F85: 185874.7422 | G85: 22057.73539 | H85: 25646.96551 | I85: 38624.43722 | J85: 90829.75967 | K85: 98477.92128 | L85: 50112.34114 | M85: 0.009470455816
A86: Hedensted | B86: 71800.53313 | C86: 87884.9532 | D86: 18965.06113 | E86: 109197.7237 | F86: 149423.896 | G86: 17732.11745 | H86: 20617.48391 | I86: 31050.01692 | J86: 73017.64835 | K86: 79165.97216 | L86: 40285.09287 | M86: 0.007613258198
A87: Morsø | B87: 33950.00695 | C87: 41555.32894 | D87: 8967.398001 | E87: 51632.81267 | F87: 70653.26797 | G87: 8384.415606 | H87: 9748.725971 | I87: 14681.62205 | J87: 34525.50505 | K87: 37432.66502 | L87: 19048.31515 | M87: 0.003599836345
A88: Skive | B88: 75012.65912 | C88: 91816.64465 | D88: 19813.49725 | E88: 114082.8802 | F88: 156108.6427 | G88: 18525.39561 | H88: 21539.84413 | I88: 32439.09527 | J88: 76284.22417 | K88: 82707.60431 | L88: 42087.31895 | M88: 0.007953850996
A89: Thisted | B89: 70958.26306 | C89: 86854.00172 | D89: 18742.58781 | E89: 107916.7586 | F89: 147671.05 | G89: 17524.1074 | H89: 20375.62652 | I89: 30685.77868 | J89: 72161.10067 | K89: 78237.30038 | L89: 39812.52078 | M89: 0.007523949397
A90: Viborg | B90: 153794.7617 | C90: 188247.1458 | D90: 40622.63787 | E90: 233898.5123 | F90: 320061.864 | G90: 37981.7065 | H90: 44162.08189 | I90: 66508.27986 | J90: 156401.7889 | K90: 169571.3289 | L90: 86289.55783 | M90: 0.01630738908
A91: Brønderslev | B91: 58693.27961 | C91: 71841.47397 | D91: 15502.97174 | E91: 89263.57852 | F91: 122146.426 | G91: 14495.10306 | H91: 16853.74321 | I91: 25381.8077 | J91: 59688.20932 | K91: 64714.15095 | L91: 32931.01202 | M91: 0.006223450894
A92: Frederikshavn | B92: 99135.14265 | C92: 121342.9343 | D92: 26185.09861 | E92: 150769.5199 | F92: 206309.8782 | G92: 24482.77075 | H92: 28466.60212 | I92: 42870.82174 | J92: 100815.6161 | K92: 109304.6194 | L92: 55621.70995 | M92: 0.01051164113
A93: Vesthimmerland | B93: =$M93*B$100 -> 61807.12126 | C93: 75652.86388 | D93: 16325.44749 | E93: 93999.25952 | F93: 128626.6335 | G93: 15264.10857 | H93: 17747.88114 | I93: 26728.38316 | J93: 62854.83476 | K93: 68147.41657 | L93: 34678.09376 | M93: 0.006553622266
A94: Læsø | B94: 3112.551193 | C94: 3809.810373 | D94: 822.1348933 | E94: 4733.718403 | F94: 6477.521899 | G94: 768.6868175 | H94: 893.7673766 | I94: 1346.017404 | J94: 3165.313105 | K94: 3431.842778 | L94: 1746.357699 | M94: 0.0003300345394
A95: Rebild | B95: 46299.4833 | C95: 56671.27729 | D95: 12229.33163 | E95: 70414.49363 | F95: 96353.72991 | G95: 11434.28662 | H95: 13294.87137 | I95: 20022.13183 | J95: 47084.32156 | K95: 51048.97479 | L95: 25977.23029 | M95: 0.00490929392
A96: Mariagerfjord | B96: 67717.74399 | C96: 82887.55671 | D96: 17886.65207 | E96: 102988.4204 | F96: 140927.2145 | G96: 16723.81718 | H96: 19445.11324 | I96: 29284.42178 | J96: 68865.65046 | K96: 74664.36253 | L96: 37994.3642 | M96: 0.007180345982
A97: Jammerbugt | B97: 61486.19649 | C97: 75260.04704 | D97: 16240.6799 | E97: 93511.1816 | F97: 127958.7578 | G97: 15184.85184 | H97: 17655.72777 | I97: 26589.5998 | J97: 62528.46988 | K97: 67793.5707 | L97: 34498.03264 | M97: 0.006519593505
A98: Aalborg | B98: 342080.3055 | C98: 418711.5377 | D98: 90355.51161 | E98: 520252.2744 | F98: 711902.4018 | G98: 84481.3804 | H98: 98228.17305 | I98: 147932.0391 | J98: 347879.0249 | K98: 377171.5718 | L98: 191930.8433 | M98: 0.03627195477
A99: Hjørring | B99: 104688.1608 | C99: 128139.9136 | D99: 27651.84718 | E99: 159214.8186 | F99: 217866.2493 | G99: 25854.16406 | H99: 30061.14825 | I99: 45272.21488 | J99: 106462.7654 | K99: 115427.277 | L99: 58737.33936 | M99: 0.0111004468
A100: Hele landet | B100: 9430986.217 | C100: 11543671.7 | D100: 2491057.132 | E100: 14343100 | F100: 19626800 | G100: 2329110.216 | H100: 2708102.546 | I100: 4078413.75 | J100: 9590854.067 | K100: 10398435.22 | L100: 5291439.2

Sheet Aktivitet 2023 (hidden)
B1: A-dagpenge | C1: Kontant- og uddannelseshjælp | D1: Sygedagpenge | E1: Jobafklaringsforløb | F1: Ressourceforløb | G1: Ledighedsydelse | H1: Fleksjob | I1: Gammel Førtidspension | J1: Ny FØP | K1: Antal fuldtidsaktiverede | L1: Seniorpension
A2: Hele landet | B2: 69255 | C2: 76459 | D2: 86523 | E2: 24153 | F2: 17334 | G2: 14529 | H2: 94574 | I2: 134274 | J2: 105843 | K2: 18053 | L2: 25880
A3: Albertslund | B3: 352 | C3: 417 | D3: 426 | E3: 56 | F3: 81 | G3: 80 | H3: 412 | I3: 555 | J3: 708 | K3: 87 | L3: 95
A4: Allerød | B4: 135 | C4: 101 | D4: 288 | E4: 30 | F4: 43 | G4: 48 | H4: 272 | I4: 231 | J4: 165 | K4: 33 | L4: 64
A5: Assens | B5: 440 | C5: 552 | D5: 808 | E5: 71 | F5: 135 | G5: 177 | H5: 882 | I5: 1209 | J5: 885 | K5: 84 | L5: 257
A6: Ballerup | B6: 505 | C6: 650 | D6: 677 | E6: 164 | F6: 131 | G6: 131 | H6: 646 | I6: 1304 | J6: 961 | K6: 152 | L6: 179
A7: Billund | B7: 202 | C7: 239 | D7: 416 | E7: 150 | F7: 73 | G7: 64 | H7: 635 | I7: 747 | J7: 541 | K7: 60 | L7: 153
A8: Bornholm | B8: 316 | C8: 330 | D8: 555 | E8: 228 | F8: 78 | G8: 61 | H8: 1031 | I8: 1335 | J8: 1306 | K8: 171 | L8: 327
A9: Brøndby | B9: 584 | C9: 867 | D9: 558 | E9: 220 | F9: 116 | G9: 55 | H9: 422 | I9: 985 | J9: 659 | K9: 184 | L9: 180
A10: Brønderslev | B10: 425 | C10: 433 | D10: 590 | E10: 234 | F10: 149 | G10: 104 | H10: 721 | I10: 916 | J10: 744 | K10: 155 | L10: 177
A11: Dragør | B11: 98 | C11: 62 | D11: 168 | E11: 18 | F11: 25 | G11: 18 | H11: 125 | I11: 98 | J11: 129 | K11: 24 | L11: 70
A12: Egedal | B12: 316 | C12: 275 | D12: 585 | E12: 155 | F12: 35 | G12: 69 | H12: 465 | I12: 492 | J12: 401 | K12: 95 | L12: 132
A13: Esbjerg | B13: 1123 | C13: 1721 | D13: 1970 | E13: 331 | F13: 363 | G13: 344 | H13: 2203 | I13: 3329 | J13: 2173 | K13: 324 | L13: 613
A14: Fanø | B14: 32 | C14: 10 | D14: 53 | E14: 7 | F14: 4 | G14: 7 | H14: 47 | I14: 48 | J14: 50 | K14: 5 | L14: 24
A15: Favrskov | B15: 420 | C15: 345 | D15: 728 | E15: 243 | F15: 101 | G15: 63 | H15: 936 | I15: 877 | J15: 536 | K15: 102 | L15: 150
A16: Faxe | B16: 381 | C16: 441 | D16: 662 | E16: 133 | F16: 118 | G16: 90 | H16: 767 | I16: 777 | J16: 828 | K16: 169 | L16: 258
A17: Fredensborg | B17: 329 | C17: 319 | D17: 532 | E17: 149 | F17: 100 | G17: 64 | H17: 315 | I17: 718 | J17: 626 | K17: 53 | L17: 138
A18: Fredericia | B18: 586 | C18: 975 | D18: 922 | E18: 242 | F18: 171 | G18: 116 | H18: 896 | I18: 1347 | J18: 1226 | K18: 154 | L18: 317
A19: Frederiksberg | B19: 1555 | C19: 957 | D19: 1066 | E19: 306 | F19: 170 | G19: 109 | H19: 595 | I19: 1320 | J19: 1212 | K19: 185 | L19: 209
A20: Frederikshavn | B20: 829 | C20: 770 | D20: 1068 | E20: 239 | F20: 195 | G20: 179 | H20: 1276 | I20: 1811 | J20: 1413 | K20: 139 | L20: 333
A21: Frederikssund | B21: 351 | C21: 482 | D21: 736 | E21: 246 | F21: 73 | G21: 110 | H21: 565 | I21: 793 | J21: 833 | K21: 88 | L21: 292
A22: Furesø | B22: 335 | C22: 250 | D22: 480 | E22: 143 | F22: 39 | G22: 76 | H22: 408 | I22: 526 | J22: 407 | K22: 54 | L22: 114
A23: Faaborg-Midtfyn | B23: 486 | C23: 504 | D23: 792 | E23: 314 | F23: 196 | G23: 173 | H23: 1112 | I23: 1648 | J23: 1042 | K23: 172 | L23: 286
A24: Gentofte | B24: 666 | C24: 410 | D24: 713 | E24: 131 | F24: 72 | G24: 42 | H24: 442 | I24: 672 | J24: 606 | K24: 122 | L24: 134
A25: Gladsaxe | B25: 706 | C25: 808 | D25: 897 | E25: 270 | F25: 81 | G25: 105 | H25: 630 | I25: 1165 | J25: 939 | K25: 107 | L25: 236
A26: Glostrup | B26: 312 | C26: 310 | D26: 302 | E26: 99 | F26: 118 | G26: 59 | H26: 301 | I26: 382 | J26: 424 | K26: 81 | L26: 91
A27: Greve | B27: 505 | C27: 364 | D27: 764 | E27: 115 | F27: 152 | G27: 92 | H27: 693 | I27: 829 | J27: 834 | K27: 193 | L27: 171
A28: Gribskov | B28: 299 | C28: 299 | D28: 622 | E28: 162 | F28: 132 | G28: 76 | H28: 515 | I28: 730 | J28: 779 | K28: 129 | L28: 249
A29: Guldborgsund | B29: 569 | C29: 1187 | D29: 1119 | E29: 313 | F29: 116 | G29: 208 | H29: 1085 | I29: 2286 | J29: 1376 | K29: 190 | L29: 458
A30: Haderslev | B30: 530 | C30: 871 | D30: 847 | E30: 300 | F30: 139 | G30: 248 | H30: 1390 | I30: 1543 | J30: 1140 | K30: 141 | L30: 403
A31: Halsnæs | B31: 257 | C31: 309 | D31: 553 | E31: 123 | F31: 148 | G31: 117 | H31: 549 | I31: 716 | J31: 691 | K31: 69 | L31: 235
A32: Hedensted | B32: 383 | C32: 438 | D32: 777 | E32: 243 | F32: 99 | G32: 158 | H32: 1188 | I32: 918 | J32: 579 | K32: 184 | L32: 244
A33: Helsingør | B33: 592 | C33: 777 | D33: 824 | E33: 226 | F33: 196 | G33: 92 | H33: 664 | I33: 1248 | J33: 1375 | K33: 129 | L33: 327
A34: Herlev | B34: 270 | C34: 354 | D34: 403 | E34: 129 | F34: 119 | G34: 53 | H34: 361 | I34: 552 | J34: 519 | K34: 51 | L34: 119
A35: Herning | B35: 781 | C35: 1226 | D35: 1385 | E35: 610 | F35: 164 | G35: 264 | H35: 1874 | I35: 2507 | J35: 1452 | K35: 290 | L35: 429
A36: Hillerød | B36: 403 | C36: 514 | D36: 690 | E36: 181 | F36: 74 | G36: 95 | H36: 652 | I36: 839 | J36: 836 | K36: 96 | L36: 186
A37: Hjørring | B37: 765 | C37: 561 | D37: 1161 | E37: 196 | F37: 314 | G37: 265 | H37: 1616 | I37: 1852 | J37: 1449 | K37: 295 | L37: 384
A38: Holbæk | B38: 629 | C38: 962 | D38: 1235 | E38: 267 | F38: 238 | G38: 213 | H38: 1253 | I38: 1910 | J38: 1507 | K38: 259 | L38: 344
A39: Holstebro | B39: 418 | C39: 672 | D39: 987 | E39: 290 | F39: 209 | G39: 234 | H39: 1250 | I39: 1369 | J39: 888 | K39: 276 | L39: 330
A40: Horsens | B40: 1116 | C40: 1155 | D40: 1639 | E40: 472 | F40: 273 | G40: 385 | H40: 2380 | I40: 2238 | J40: 2228 | K40: 366 | L40: 351
A41: Hvidovre | B41: 629 | C41: 729 | D41: 693 | E41: 283 | F41: 209 | G41: 69 | H41: 656 | I41: 982 | J41: 937 | K41: 142 | L41: 250
A42: Høje-Taastrup | B42: 852 | C42: 854 | D42: 803 | E42: 328 | F42: 124 | G42: 106 | H42: 670 | I42: 1036 | J42: 940 | K42: 185 | L42: 178
A43: Hørsholm | B43: 192 | C43: 116 | D43: 224 | E43: 26 | F43: 42 | G43: 36 | H43: 210 | I43: 224 | J43: 198 | K43: 42 | L43: 62
A44: Ikast-Brande | B44: 401 | C44: 526 | D44: 715 | E44: 301 | F44: 137 | G44: 117 | H44: 941 | I44: 1069 | J44: 599 | K44: 272 | L44: 226
A45: Ishøj | B45: 465 | C45: 376 | D45: 410 | E45: 164 | F45: 72 | G45: 56 | H45: 287 | I45: 549 | J45: 574 | K45: 120 | L45: 83
A46: Jammerbugt | B46: 415 | C46: 504 | D46: 633 | E46: 249 | F46: 80 | G46: 111 | H46: 855 | I46: 1117 | J46: 642 | K46: 80 | L46: 234
A47: Kalundborg | B47: 365 | C47: 788 | D47: 896 | E47: 225 | F47: 179 | G47: 100 | H47: 925 | I47: 1821 | J47: 1275 | K47: 154 | L47: 322
A48: Kerteminde | B48: 224 | C48: 252 | D48: 429 | E48: 105 | F48: 77 | G48: 95 | H48: 516 | I48: 577 | J48: 498 | K48: 33 | L48: 162
A49: Kolding | B49: 1051 | C49: 1227 | D49: 1346 | E49: 379 | F49: 328 | G49: 355 | H49: 1863 | I49: 2128 | J49: 1463 | K49: 125 | L49: 421
A50: København | B50: 12034 | C50: 9251 | D50: 7891 | E50: 1365 | F50: 3343 | G50: 896 | H50: 3953 | I50: 7189 | J50: 8581 | K50: 1726 | L50: 1303
A51: Køge | B51: 580 | C51: 602 | D51: 983 | E51: 301 | F51: 274 | G51: 103 | H51: 959 | I51: 1154 | J51: 1372 | K51: 150 | L51: 252
A52: Langeland | B52: 98 | C52: 193 | D52: 259 | E52: 22 | F52: 37 | G52: 57 | H52: 364 | I52: 506 | J52: 279 | K52: 41 | L52: 132
A53: Lejre | B53: 252 | C53: 150 | D53: 404 | E53: 105 | F53: 81 | G53: 55 | H53: 413 | I53: 459 | J53: 399 | K53: 60 | L53: 120
A54: Lemvig | B54: 164 | C54: 120 | D54: 335 | E54: 66 | F54: 39 | G54: 57 | H54: 484 | I54: 500 | J54: 452 | K54: 55 | L54: 105
A55: Lolland | B55: 378 | C55: 990 | D55: 672 | E55: 206 | F55: 146 | G55: 174 | H55: 844 | I55: 2183 | J55: 1234 | K55: 288 | L55: 387
A56: Lyngby-Taarbæk | B56: 515 | C56: 469 | D56: 557 | E56: 135 | F56: 77 | G56: 65 | H56: 387 | I56: 624 | J56: 535 | K56: 95 | L56: 127
A57: Læsø | B57: 30 | C57: 13 | D57: 26 | E57: 5 | F57: . | G57: . | H57: 35 | I57: 41 | J57: 41 | K57: . | L57: 16
A58: Mariagerfjord | B58: 440 | C58: 752 | D58: 659 | E58: 210 | F58: 152 | G58: 61 | H58: 835 | I58: 1238 | J58: 733 | K58: 93 | L58: 228
A59: Middelfart | B59: 348 | C59: 373 | D59: 681 | E59: 119 | F59: 120 | G59: 85 | H59: 744 | I59: 1087 | J59: 509 | K59: 66 | L59: 216
A60: Morsø | B60: 179 | C60: 281 | D60: 328 | E60: 98 | F60: 75 | G60: 84 | H60: 566 | I60: 763 | J60: 381 | K60: 81 | L60: 115
A61: Norddjurs | B61: 366 | C61: 534 | D61: 728 | E61: 184 | F61: 44 | G61: 140 | H61: 857 | I61: 1049 | J61: 976 | K61: 144 | L61: 288
A62: Nordfyns | B62: 327 | C62: 358 | D62: 465 | E62: 170 | F62: 132 | G62: 90 | H62: 538 | I62: 857 | J62: 535 | K62: 52 | L62: 195
A63: Nyborg | B63: 361 | C63: 443 | D63: 561 | E63: 166 | F63: 84 | G63: 124 | H63: 669 | I63: 1272 | J63: 663 | K63: 71 | L63: 191
A64: Næstved | B64: 883 | C64: 1447 | D64: 1299 | E64: 301 | F64: 194 | G64: 194 | H64: 1395 | I64: 2287 | J64: 1456 | K64: 358 | L64: 469
A65: Odder | B65: 218 | C65: 227 | D65: 333 | E65: 163 | F65: 39 | G65: 95 | H65: 550 | I65: 517 | J65: 324 | K65: 32 | L65: 109
A66: Odense | B66: 3235 | C66: 3716 | D66: 2955 | E66: 1059 | F66: 570 | G66: 631 | H66: 3385 | I66: 5368 | J66: 4732 | K66: 609 | L66: 863
A67: Odsherred | B67: 227 | C67: 384 | D67: 665 | E67: 112 | F67: 119 | G67: 115 | H67: 711 | I67: 1195 | J67: 820 | K67: 57 | L67: 228
A68: Randers | B68: 1216 | C68: 2143 | D68: 1683 | E68: 682 | F68: 475 | G68: 285 | H68: 2222 | I68: 2776 | J68: 2039 | K68: 452 | L68: 448
A69: Rebild | B69: 293 | C69: 236 | D69: 420 | E69: 148 | F69: 53 | G69: 72 | H69: 522 | I69: 502 | J69: 398 | K69: 76 | L69: 135
A70: Ringkøbing-Skjern | B70: 413 | C70: 485 | D70: 716 | E70: 342 | F70: 142 | G70: 177 | H70: 1401 | I70: 1463 | J70: 1014 | K70: 218 | L70: 301
A71: Ringsted | B71: 400 | C71: 481 | D71: 601 | E71: 177 | F71: 86 | G71: 97 | H71: 482 | I71: 892 | J71: 594 | K71: 85 | L71: 155
A72: Roskilde | B72: 804 | C72: 778 | D72: 1351 | E72: 101 | F72: 300 | G72: 123 | H72: 992 | I72: 1362 | J72: 1527 | K72: 473 | L72: 310
A73: Rudersdal | B73: 406 | C73: 270 | D73: 549 | E73: 103 | F73: 45 | G73: 70 | H73: 468 | I73: 552 | J73: 603 | K73: 95 | L73: 131
A74: Rødovre | B74: 566 | C74: 652 | D74: 563 | E74: 187 | F74: 152 | G74: 66 | H74: 491 | I74: 717 | J74: 606 | K74: 332 | L74: 203
A75: Samsø | B75: 40 | C75: 15 | D75: 59 | E75: 18 | F75: 15 | G75: 4 | H75: 117 | I75: 99 | J75: 63 | K75: 3 | L75: 33
A76: Silkeborg | B76: 999 | C76: 921 | D76: 1493 | E76: 437 | F76: 164 | G76: 319 | H76: 2046 | I76: 1683 | J76: 2028 | K76: 258 | L76: 397
A77: Skanderborg | B77: 552 | C77: 324 | D77: 918 | E77: 274 | F77: 162 | G77: 204 | H77: 1214 | I77: 1049 | J77: 821 | K77: 111 | L77: 240
A78: Skive | B78: 355 | C78: 553 | D78: 767 | E78: 274 | F78: 86 | G78: 181 | H78: 1024 | I78: 1403 | J78: 1063 | K78: 145 | L78: 263
A79: Slagelse | B79: 898 | C79: 1617 | D79: 1242 | E79: 388 | F79: 168 | G79: 242 | H79: 1233 | I79: 2242 | J79: 1937 | K79: 368 | L79: 386
A80: Solrød | B80: 183 | C80: 120 | D80: 283 | E80: 105 | F80: 47 | G80: 28 | H80: 253 | I80: 243 | J80: 329 | K80: 32 | L80: 79
A81: Sorø | B81: 285 | C81: 357 | D81: 483 | E81: 152 | F81: 122 | G81: 73 | H81: 558 | I81: 819 | J81: 537 | K81: 83 | L81: 206
A82: Stevns | B82: 231 | C82: 240 | D82: 339 | E82: 118 | F82: 69 | G82: 54 | H82: 433 | I82: 442 | J82: 465 | K82: 65 | L82: 164
A83: Struer | B83: 193 | C83: 280 | D83: 318 | E83: 68 | F83: 68 | G83: 29 | H83: 442 | I83: 595 | J83: 389 | K83: 73 | L83: 136
A84: Svendborg | B84: 686 | C84: 1030 | D84: 1049 | E84: 328 | F84: 164 | G84: 186 | H84: 918 | I84: 1605 | J84: 1170 | K84: 249 | L84: 333
A85: Syddjurs | B85: 458 | C85: 394 | D85: 796 | E85: 284 | F85: 58 | G85: 143 | H85: 911 | I85: 980 | J85: 642 | K85: 91 | L85: 246
A86: Sønderborg | B86: 669 | C86: 985 | D86: 1214 | E86: 201 | F86: 171 | G86: 237 | H86: 1658 | I86: 2250 | J86: 1664 | K86: 219 | L86: 401
A87: Thisted | B87: 400 | C87: 527 | D87: 722 | E87: 193 | F87: 89 | G87: 131 | H87: 1076 | I87: 1429 | J87: 763 | K87: 77 | L87: 311
A88: Tønder | B88: 279 | C88: 487 | D88: 572 | E88: 212 | F88: 202 | G88: 99 | H88: 808 | I88: 1155 | J88: 641 | K88: 128 | L88: 291
A89: Tårnby | B89: 416 | C89: 462 | D89: 697 | E89: 115 | F89: 203 | G89: 117 | H89: 594 | I89: 532 | J89: 736 | K89: 120 | L89: 276
A90: Vallensbæk | B90: 213 | C90: 109 | D90: 222 | E90: 31 | F90: 25 | G90: 17 | H90: 157 | I90: 134 | J90: 153 | K90: 44 | L90: 39
A91: Varde | B91: 381 | C91: 550 | D91: 839 | E91: 213 | F91: 93 | G91: 119 | H91: 1054 | I91: 1267 | J91: 960 | K91: 109 | L91: 258
A92: Vejen | B92: 318 | C92: 473 | D92: 736 | E92: 191 | F92: 112 | G92: 100 | H92: 861 | I92: 1050 | J92: 738 | K92: 105 | L92: 235
A93: Vejle | B93: 1207 | C93: 1522 | D93: 1724 | E93: 647 | F93: 358 | G93: 305 | H93: 1953 | I93: 2720 | J93: 1896 | K93: 249 | L93: 416
A94: Vesthimmerlands | B94: 379 | C94: 469 | D94: 666 | E94: 228 | F94: 85 | G94: 92 | H94: 680 | I94: 1184 | J94: 707 | K94: 102 | L94: 250
A95: Viborg | B95: 996 | C95: 1262 | D95: 1406 | E95: 507 | F95: 199 | G95: 188 | H95: 2163 | I95: 2607 | J95: 2138 | K95: 324 | L95: 400
A96: Vordingborg | B96: 478 | C96: 776 | D96: 727 | E96: 171 | F96: 139 | G96: 127 | H96: 710 | I96: 1511 | J96: 901 | K96: 198 | L96: 341
A97: Ærø | B97: 31 | C97: 45 | D97: 104 | E97: 12 | F97: 15 | G97: 10 | H97: 112 | I97: 172 | J97: 98 | K97: 4 | L97: 39
A98: Aabenraa | B98: 495 | C98: 529 | D98: 825 | E98: 268 | F98: 187 | G98: 131 | H98: 1463 | I98: 1630 | J98: 1320 | K98: 129 | L98: 334
A99: Aalborg | B99: 3622 | C99: 4236 | D99: 3073 | E99: 612 | F99: 563 | G99: 597 | H99: 3209 | I99: 4324 | J99: 3649 | K99: 1060 | L99: 743
A100: Aarhus | B100: 6079 | C100: 5534 | D100: 4417 | E100: 1712 | F100: 702 | G100: 990 | H100: 6167 | I100: 9103 | J100: 5637 | K100: 1378 | L100: 856

Sheet Regnskab 2023 (hidden)
A1: Kommune | B1: Kontant- og uddannelseshjælp | C1: Arbejdsløsheds-dagpenge | D1: Ledighedsydelse | E1: Gammel Førtidspension | F1: Ny Førtidspension | G1: Ressourceforløb | H1: Jobafklaringsforløb | I1: Driftsudgifter til aktivering mv. | J1: Sygedagpenge | K1: Fleksjob | L1: Seniorpension
A2: Albertslund | B2: 41443 | C2: 50618 | D2: 12436 | E2: 71604 | F2: 126491 | G2: 10979 | H2: 7246 | I2: 20534 | J2: 49817 | K2: 43419 | L2: 16746
A3: Allerød | B3: 8035 | C3: 19583 | D3: 7365 | E3: 29463 | F3: 29627 | G3: 5126 | H3: 3158 | I3: 6983 | J3: 27694 | K3: 28912 | L3: 10537
A4: Assens | B4: 53607 | C4: 65010 | D4: 28185 | E4: 136512 | F4: 144137 | G4: 17806 | H4: 9008 | I4: 26257 | J4: 94659 | K4: 88718 | L4: 42193
A5: Ballerup | B5: 65434 | C5: 70905 | D5: 20339 | E5: 157589 | F5: 161193 | G5: 18116 | H5: 18889 | I5: 26429 | J5: 70230 | K5: 67766 | L5: 29436
A6: Billund | B6: 22910 | C6: 29606 | D6: 10175 | E6: 86593 | F6: 92779 | G6: 9584 | H6: 17967 | I6: 20313 | J6: 41936 | K6: 66924 | L6: 25318
A7: Bornholm | B7: 28761 | C7: 45077 | D7: 9532 | E7: 158725 | F7: 226335 | G7: 9875 | H7: 27967 | I7: 32036 | J7: 60802 | K7: 115678 | L7: 53309
A8: Brøndby | B8: 94331 | C8: 86046 | D8: 8664 | E8: 115038 | F8: 103404 | G8: 15181 | H8: 26542 | I8: 102583 | J8: 61934 | K8: 45165 | L8: 29375
A9: Brønderslev | B9: 43223 | C9: 63176 | D9: 16510 | E9: 107983 | F9: 123248 | G9: 19629 | H9: 28428 | I9: 34326 | J9: 63007 | K9: 74106 | L9: 27788
A10: Dragør | B10: 6430 | C10: 16887 | D10: 2886 | E10: 11275 | F10: 19357 | G10: 3289 | H10: 2140 | I10: 4427 | J10: 19491 | K10: 14717 | L10: 10711
A11: Egedal | B11: 25344 | C11: 45970 | D11: 10915 | E11: 60413 | F11: 62126 | G11: 4474 | H11: 18459 | I11: 22543 | J11: 55740 | K11: 47749 | L11: 20411
A12: Esbjerg | B12: 169858 | C12: 158396 | D12: 54941 | E12: 401838 | F12: 367404 | G12: 47375 | H12: 40142 | I12: 89248 | J12: 214859 | K12: 231613 | L12: 98434
A13: Fanø | B13: 823 | C13: 5326 | D13: 1119 | E13: 6757 | F13: 6449 | G13: 530 | H13: 833 | I13: 578 | J13: 6248 | K13: 4542 | L13: 4600
A14: Favrskov | B14: 31312 | C14: 61879 | D14: 9760 | E14: 102561 | F14: 84626 | G14: 13911 | H14: 29305 | I14: 43519 | J14: 68858 | K14: 92714 | L14: 24847
A15: Faxe | B15: 44849 | C15: 56234 | D15: 13990 | E15: 85373 | F15: 121733 | G15: 15621 | H15: 16208 | I15: 13661 | J15: 73277 | K15: 78749 | L15: 40175
A16: Fredensborg | B16: 30339 | C16: 47550 | D16: 9821 | E16: 83892 | F16: 99482 | G16: 13079 | H16: 18434 | I16: 15879 | J16: 56501 | K16: 32759 | L16: 22129
A17: Fredericia | B17: 101279 | C17: 81565 | D17: 19016 | E17: 166191 | F17: 198330 | G17: 22280 | H17: 29261 | I17: 13398 | J17: 106074 | K17: 90173 | L17: 48930
A18: Frederiksberg | B18: 95786 | C18: 213112 | D18: 16279 | E18: 169548 | F18: 205633 | G18: 18582 | H18: 33937 | I18: 113858 | J18: 108333 | K18: 63049 | L18: 34583
A19: Frederikshavn | B19: 77457 | C19: 125466 | D19: 28450 | E19: 226272 | F19: 232164 | G19: 24833 | H19: 28721 | I19: 35715 | J19: 122917 | K19: 127146 | L19: 50775
A20: Frederikssund | B20: 47133 | C20: 51596 | D20: 17551 | E20: 86747 | F20: 134965 | G20: 9558 | H20: 29250 | I20: 19404 | J20: 78689 | K20: 52471 | L20: 44196
A21: Furesø | B21: 24091 | C21: 48698 | D21: 11978 | E21: 65508 | F21: 68993 | G21: 4909 | H21: 16416 | I21: 6387 | J21: 46791 | K21: 41250 | L21: 18400
A22: Faaborg-Midtfyn | B22: 52104 | C22: 69835 | D22: 26539 | E22: 182738 | F22: 162298 | G22: 25722 | H22: 37268 | I22: 35257 | J22: 84154 | K22: 114394 | L22: 44799
A23: Gentofte | B23: 42239 | C23: 98808 | D23: 6437 | E23: 78475 | F23: 104807 | G23: 9136 | H23: 15759 | I23: 31242 | J23: 76515 | K23: 45020 | L23: 21145
A24: Gladsaxe | B24: 85207 | C24: 99386 | D24: 16146 | E24: 126297 | F24: 162444 | G24: 10387 | H24: 32974 | I24: 39678 | J24: 90051 | K24: 66143 | L24: 37545
A25: Glostrup | B25: 32481 | C25: 43747 | D25: 8996 | E25: 37452 | F25: 65111 | G25: 15893 | H25: 11299 | I25: 19674 | J25: 35410 | K25: 31669 | L25: 14420
A26: Greve | B26: 32492 | C26: 76182 | D26: 14337 | E26: 106626 | F26: 139515 | G26: 19711 | H26: 14110 | I26: 30009 | J26: 83623 | K26: 67115 | L26: 27281
A27: Gribskov | B27: 27142 | C27: 43162 | D27: 12116 | E27: 73809 | F27: 126281 | G27: 17254 | H27: 18981 | I27: 17727 | J27: 64203 | K27: 52436 | L27: 38083
A28: Guldborgsund | B28: 129968 | C28: 84901 | D28: 33159 | E28: 259315 | F28: 222146 | G28: 15406 | H28: 39232 | I28: 38332 | J28: 130955 | K28: 112444 | L28: 71367
A29: Haderslev | B29: 90111 | C29: 74624 | D29: 38720 | E29: 179573 | F29: 191006 | G29: 18648 | H29: 36170 | I29: 10970 | J29: 90471 | K29: 143795 | L29: 66880
A30: Halsnæs | B30: 31017 | C30: 38181 | D30: 18630 | E30: 81181 | F30: 115056 | G30: 20079 | H30: 14244 | I30: 15657 | J30: 59148 | K30: 58183 | L30: 34359
A31: Hedensted | B31: 39352 | C31: 55588 | D31: 26075 | E31: 100677 | F31: 78178 | G31: 13096 | H31: 28702 | I31: 40393 | J31: 80760 | K31: 121256 | L31: 38805
A32: Helsingør | B32: 76166 | C32: 85476 | D32: 14422 | E32: 139852 | F32: 227569 | G32: 26421 | H32: 26089 | I32: 28984 | J32: 83345 | K32: 66549 | L32: 53642
A33: Herlev | B33: 37535 | C33: 37585 | D33: 8165 | E33: 61794 | F33: 84382 | G33: 15802 | H33: 15648 | I33: 11897 | J33: 44273 | K33: 35618 | L33: 20270
A34: Herning | B34: 117838 | C34: 109573 | D34: 41280 | E34: 302950 | F34: 226483 | G34: 21991 | H34: 71053 | I34: 94372 | J34: 137810 | K34: 197298 | L34: 67252
A35: Hillerød | B35: 49240 | C35: 58621 | D35: 15785 | E35: 93742 | F35: 139866 | G35: 9150 | H35: 21512 | I35: 25492 | J35: 69979 | K35: 69909 | L35: 31787
A36: Hjørring | B36: 48477 | C36: 112274 | D36: 41271 | E36: 217429 | F36: 251198 | G36: 42075 | H36: 22602 | I36: 57337 | J36: 127062 | K36: 168651 | L36: 62082
A37: Holbæk | B37: 89939 | C37: 91656 | D37: 32003 | E37: 213275 | F37: 245008 | G37: 30936 | H37: 32378 | I37: 55418 | J37: 134916 | K37: 125604 | L37: 53938
A38: Holstebro | B38: 63557 | C38: 57698 | D38: 36557 | E38: 160230 | F38: 140027 | G38: 27862 | H38: 34556 | I38: 64652 | J38: 99111 | K38: 129178 | L38: 51177
A39: Horsens | B39: 108536 | C39: 156722 | D39: 60143 | E39: 276082 | F39: 366985 | G39: 36039 | H39: 55635 | I39: 82144 | J39: 171667 | K39: 240059 | L39: 53724
A40: Hvidovre | B40: 72440 | C40: 91415 | D40: 10496 | E40: 137987 | F40: 165748 | G40: 26823 | H40: 34877 | I40: 59533 | J40: 74186 | K40: 67342 | L40: 40796
A41: Høje-Taastrup | B41: 88486 | C41: 122530 | D41: 16047 | E41: 124867 | F41: 143888 | G41: 16319 | H41: 41817 | I41: 35219 | J41: 86844 | K41: 71492 | L41: 28049
A42: Hørsholm | B42: 12679 | C42: 28705 | D42: 5398 | E42: 28616 | F42: 33560 | G42: 5311 | H42: 3138 | I42: 9241 | J42: 22680 | K42: 19971 | L42: 9858
A43: Ikast-Brande | B43: 53319 | C43: 57995 | D43: 17861 | E43: 124114 | F43: 89758 | G43: 17964 | H43: 35749 | I43: 23792 | J43: 76966 | K43: 98018 | L43: 36581
A44: Ishøj | B44: 36689 | C44: 70650 | D44: 8937 | E44: 69262 | F44: 92980 | G44: 9268 | H44: 21064 | I44: 26146 | J44: 49082 | K44: 30303 | L44: 13483
A45: Jammerbugt | B45: 50353 | C45: 60673 | D45: 17508 | E45: 136486 | F45: 97233 | G45: 10409 | H45: 29708 | I45: 22202 | J45: 70064 | K45: 85027 | L45: 35508
A46: Kalundborg | B46: 79715 | C46: 54160 | D46: 15168 | E46: 202475 | F46: 210937 | G46: 23690 | H46: 25411 | I46: 52590 | J46: 102826 | K46: 99021 | L46: 49741
A47: Kerteminde | B47: 26476 | C47: 32375 | D47: 15629 | E47: 67140 | F47: 81016 | G47: 10322 | H47: 12990 | I47: 10266 | J47: 44869 | K47: 56042 | L47: 25385
A48: Kolding | B48: 120307 | C48: 144063 | D48: 54499 | E48: 252571 | F48: 232161 | G48: 42079 | H48: 44130 | I48: 19115 | J48: 138103 | K48: 196676 | L48: 66303
A49: København | B49: 985388 | C49: 1654461 | D49: 132976 | E49: 847899 | F49: 1444049 | G49: 423015 | H49: 158449 | I49: 549756 | J49: 874288 | K49: 410706 | L49: 217920
A50: Køge | B50: 59148 | C50: 85276 | D50: 15730 | E50: 138639 | F50: 233568 | G50: 36117 | H50: 34539 | I50: 26438 | J50: 108825 | K50: 93679 | L50: 40930
A51: Langeland | B51: 20379 | C51: 14918 | D51: 9285 | E51: 57586 | F51: 45215 | G51: 4815 | H51: 2946 | I51: 6171 | J51: 29108 | K51: 39844 | L51: 21987
A52: Lejre | B52: 11858 | C52: 37524 | D52: 8155 | E52: 48890 | F52: 60383 | G52: 9748 | H52: 12312 | I52: 7700 | J52: 41089 | K52: 42722 | L52: 18135
A53: Lemvig | B53: 11226 | C53: 23378 | D53: 9107 | E53: 59824 | F53: 76318 | G53: 4795 | H53: 8307 | I53: 6045 | J53: 34371 | K53: 50826 | L53: 16407
A54: Lolland | B54: 103758 | C54: 59154 | D54: 28653 | E54: 249544 | F54: 198385 | G54: 19491 | H54: 25265 | I54: 48445 | J54: 79941 | K54: 87585 | L54: 61631
A55: Lyngby-Taarbæk | B55: 50188 | C55: 71937 | D55: 9587 | E55: 71226 | F55: 86703 | G55: 10019 | H55: 17059 | I55: 24246 | J55: 55584 | K55: 38918 | L55: 20253
A56: Læsø | B56: 1449 | C56: 4411 | D56: 195 | E56: 4699 | F56: 5180 | G56: 150 | H56: 491 | I56: 692 | J56: 2460 | K56: 2918 | L56: 2731
A57: Mariagerfjord | B57: 78502 | C57: 63241 | D57: 9664 | E57: 132445 | F57: 103816 | G57: 19566 | H57: 25055 | I57: 31480 | J57: 76284 | K57: 80629 | L57: 35136
A58: Middelfart | B58: 35947 | C58: 48364 | D58: 13331 | E58: 121340 | F58: 75824 | G58: 15196 | H58: 14479 | I58: 4764 | J58: 73687 | K58: 75472 | L58: 32557
A59: Morsø | B59: 28054 | C59: 25342 | D59: 12904 | E59: 85157 | F59: 62989 | G59: 9070 | H59: 11467 | I59: 15816 | J59: 35673 | K59: 58440 | L59: 17778
A60: Norddjurs | B60: 53190 | C60: 53973 | D60: 21959 | E60: 117748 | F60: 165715 | G60: 5914 | H60: 21918 | I60: 26992 | J60: 78222 | K60: 88033 | L60: 47294
A61: Nordfyns | B61: 36210 | C61: 47770 | D61: 14131 | E61: 98232 | F61: 84796 | G61: 17492 | H61: 21282 | I61: 11823 | J61: 50348 | K61: 54848 | L61: 31466
A62: Nyborg | B62: 44333 | C62: 52195 | D62: 19770 | E62: 147157 | F62: 104725 | G62: 11675 | H62: 20551 | I62: 4612 | J62: 63223 | K62: 66736 | L62: 31000
A63: Næstved | B63: 146904 | C63: 130735 | D63: 30683 | E63: 254024 | F63: 225967 | G63: 25418 | H63: 38133 | I63: 59184 | J63: 145057 | K63: 145433 | L63: 77490
A64: Odder | B64: 21248 | C64: 30548 | D64: 15021 | E64: 62542 | F64: 50883 | G64: 5397 | H64: 18766 | I64: 15149 | J64: 33141 | K64: 55619 | L64: 18004
A65: Odense | B65: 379929 | C65: 435708 | D65: 97290 | E65: 638290 | F65: 785437 | G65: 73085 | H65: 128113 | I65: 150693 | J65: 316764 | K65: 342514 | L65: 142109
A66: Odsherred | B66: 35897 | C66: 33988 | D66: 17850 | E66: 131991 | F66: 132269 | G66: 15548 | H66: 13637 | I66: 23029 | J66: 77435 | K66: 72844 | L66: 35774
A67: Randers | B67: 222148 | C67: 174337 | D67: 44918 | E67: 346110 | F67: 328643 | G67: 62393 | H67: 81028 | I67: 76431 | J67: 181041 | K67: 224557 | L67: 73722
A68: Rebild | B68: 23675 | C68: 42569 | D68: 10765 | E68: 58485 | F68: 67816 | G68: 7232 | H68: 17212 | I68: 15118 | J68: 43429 | K68: 51442 | L68: 22607
A69: Ringkøbing-Skjern | B69: 44811 | C69: 60675 | D69: 27724 | E69: 178154 | F69: 161847 | G69: 18398 | H69: 38618 | I69: 18683 | J69: 68134 | K69: 144441 | L69: 48529
A70: Ringsted | B70: 48197 | C70: 57974 | D70: 15864 | E70: 101980 | F70: 96095 | G70: 11385 | H70: 21603 | I70: 15881 | J70: 66060 | K70: 50602 | L70: 24229
A71: Roskilde | B71: 72580 | C71: 118297 | D71: 19438 | E71: 153669 | F71: 256723 | G71: 38262 | H71: 11118 | I71: 57541 | J71: 142437 | K71: 99990 | L71: 51161
A72: Rudersdal | B72: 24112 | C72: 57865 | D72: 11108 | E72: 59205 | F72: 103614 | G72: 5316 | H72: 11097 | I72: 20648 | J72: 53040 | K72: 47900 | L72: 21315
A73: Rødovre | B73: 69390 | C73: 82175 | D73: 10693 | E73: 84814 | F73: 98215 | G73: 19556 | H73: 22480 | I73: 49904 | J73: 58703 | K73: 48806 | L73: 32671
A74: Samsø | B74: 1311 | C74: 5811 | D74: 548 | E74: 12246 | F74: 10170 | G74: 2090 | H74: 2077 | I74: 213 | J74: 7164 | K74: 12740 | L74: 4254
A75: Silkeborg | B75: 90041 | C75: 139548 | D75: 48181 | E75: 204220 | F75: 344341 | G75: 21423 | H75: 52773 | I75: 59921 | J75: 148636 | K75: 219569 | L75: 64908
A76: Skanderborg | B76: 28991 | C76: 78883 | D76: 32079 | E76: 122472 | F76: 135234 | G76: 21194 | H76: 31415 | I76: 38841 | J76: 94063 | K76: 124585 | L76: 38774
A77: Skive | B77: 54232 | C77: 48403 | D77: 28917 | E77: 156147 | F77: 184905 | G77: 11398 | H77: 33703 | I77: 37893 | J77: 83450 | K77: 106940 | L77: 42154
A78: Slagelse | B78: 172711 | C78: 130119 | D78: 37327 | E78: 232915 | F78: 308760 | G78: 21894 | H78: 46592 | I78: 91597 | J78: 134244 | K78: 132436 | L78: 60109
A79: Solrød | B79: 10617 | C79: 26788 | D79: 4533 | E79: 32713 | F79: 56500 | G79: 5994 | H79: 12424 | I79: 3464 | J79: 27299 | K79: 25153 | L79: 13127
A80: Sorø | B80: 35634 | C80: 40583 | D80: 11674 | E80: 88933 | F80: 83645 | G80: 16899 | H80: 17959 | I80: 18902 | J80: 52025 | K80: 58906 | L80: 33337
A81: Stevns | B81: 23592 | C81: 34289 | D81: 8426 | E81: 52506 | F81: 76839 | G81: 8949 | H81: 13897 | I81: 10575 | J81: 34756 | K81: 44969 | L81: 27636
A82: Struer | B82: 25998 | C82: 28335 | D82: 4219 | E82: 72490 | F82: 62199 | G82: 9026 | H82: 8206 | I82: 9340 | J82: 33986 | K82: 46748 | L82: 21554
A83: Svendborg | B83: 104236 | C83: 97835 | D83: 28770 | E83: 187508 | F83: 191987 | G83: 21348 | H83: 40508 | I83: 31184 | J83: 117100 | K83: 93346 | L83: 51903
A84: Syddjurs | B84: 39160 | C84: 67752 | D84: 22175 | E84: 122223 | F84: 104677 | G84: 6907 | H84: 35319 | I84: 24210 | J84: 86497 | K84: 89456 | L84: 37046
A85: Sønderborg | B85: 89227 | C85: 100452 | D85: 36815 | E85: 265626 | F85: 265083 | G85: 21722 | H85: 24746 | I85: 56632 | J85: 131149 | K85: 177307 | L85: 62835
A86: Thisted | B86: 51100 | C86: 54128 | D86: 21152 | E86: 158628 | F86: 118930 | G86: 12052 | H86: 22551 | I86: 20061 | J86: 78876 | K86: 107299 | L86: 49750
A87: Tønder | B87: 49416 | C87: 40143 | D87: 15278 | E87: 130222 | F87: 94457 | G87: 26442 | H87: 24850 | I87: 16847 | J87: 60284 | K87: 84729 | L87: 44580
A88: Tårnby | B88: 45539 | C88: 69908 | D88: 17939 | E88: 65502 | F88: 125339 | G88: 26421 | H88: 13528 | I88: 22867 | J88: 75772 | K88: 57247 | L88: 45615
A89: Vallensbæk | B89: 9985 | C89: 31779 | D89: 2570 | E89: 17434 | F89: 26328 | G89: 3053 | H89: 3813 | I89: 5940 | J89: 25458 | K89: 15683 | L89: 5904
A90: Varde | B90: 54253 | C90: 53632 | D90: 19141 | E90: 153401 | F90: 154009 | G90: 12108 | H90: 25300 | I90: 39968 | J90: 88825 | K90: 107887 | L90: 39433
A91: Vejen | B91: 45979 | C91: 43226 | D91: 15326 | E91: 124210 | F91: 120472 | G91: 15182 | H91: 24381 | I91: 31302 | J91: 78085 | K91: 88381 | L91: 38081
A92: Vejle | B92: 153927 | C92: 176231 | D92: 48338 | E92: 307405 | F92: 299372 | G92: 45600 | H92: 74949 | I92: 101172 | J92: 180413 | K92: 205824 | L92: 66536
A93: Vesthimmerlands | B93: 47629 | C93: 55000 | D93: 14305 | E93: 130765 | F93: 113280 | G93: 10504 | H93: 28297 | I93: 30846 | J93: 73601 | K93: 67856 | L93: 40302
A94: Viborg | B94: 120575 | C94: 142619 | D94: 29145 | E94: 298671 | F94: 358831 | G94: 25353 | H94: 60211 | I94: 74344 | J94: 145121 | K94: 221083 | L94: 63273
A95: Vordingborg | B95: 78453 | C95: 70889 | D95: 20312 | E95: 170670 | F95: 141918 | G95: 17835 | H95: 20966 | I95: 41738 | J95: 83888 | K95: 69747 | L95: 53871
A96: Ærø | B96: 4597 | C96: 5081 | D96: 1645 | E96: 19951 | F96: 16231 | G96: 1781 | H96: 1440 | I96: 1169 | J96: 11162 | K96: 12220 | L96: 6083
A97: Aabenraa | B97: 48051 | C97: 71728 | D97: 20508 | E97: 192240 | F97: 228522 | G97: 24571 | H97: 30687 | I97: 27701 | J97: 82819 | K97: 145399 | L97: 52864
A98: Aalborg | B98: 445045 | C98: 495171 | D98: 86570 | E98: 511075 | F98: 595460 | G98: 72191 | H98: 71705 | I98: 157408 | J98: 333795 | K98: 337939 | L98: 118182
A99: Aarhus | B99: 547334 | C99: 785019 | D99: 152747 | E99: 1183005 | F99: 926436 | G99: 89252 | H99: 204410 | I99: 201750 | J99: 447153 | K99: 633307 | L99: 137094
A100: Hele landet | B100: =SUM(B2:B99) -> 7692464 | C100: =SUM(C2:C99) -> 9759452 | D100: 2257677 | E100: 15427725 | F100: 17003217 | G100: 2242772 | H100: 2882039 | I100: 4028543 | J100: 9260895 | K100: 9739093 | L100: =SUM(L2:L99) -> 4109194

Sheet Midtvejsvurdering 2024 (hidden)
A1: Kommune | B1: Kontanthjælp- og Uddannelseshjælp | C1: Arbejdsløsheds-dagpenge | D1: Ledighedsydelse | E1: Gammel Førtidspension | F1: Ny Førtidspension | G1: Ressourceforløb | H1: Jobafklaringsforløb | I1: Driftsudgifter til aktivering | J1: Sygedagpenge | K1: Fleksjob | L1: Seniorpension
A2: Albertslund | B2: 44672.26612 | C2: 58091.56571 | D2: 13806.65473 | E2: 69175.57955 | F2: 153772.0519 | G2: 10651.999 | H2: 7272.947623 | I2: 21343.13015 | J2: 51665.28841 | K2: 46113.40173 | L2: 19966.6959
A3: Allerød | B3: 8661.092544 | C3: 22474.35954 | D3: 8176.745909 | E3: 28463.77437 | F3: 36016.82792 | G3: 4973.326067 | H3: 3169.744492 | I3: 7258.160994 | J3: 28721.4906 | K3: 30706.15792 | L3: 12563.54202
A4: Assens | B4: 57784.09309 | C4: 74608.49277 | D4: 31291.45736 | E4: 131882.2512 | F4: 175223.8676 | G4: 17275.6621 | H4: 9041.500439 | I4: 27291.64159 | J4: 98170.99655 | K4: 94223.4684 | L4: 50307.82277
A5: Ballerup | B5: 70532.6608 | C5: 81373.86833 | D5: 22580.69722 | E5: 152244.4333 | F5: 195958.4346 | G5: 17576.42899 | H5: 18959.24754 | I5: 27470.41915 | J5: 72835.64255 | K5: 71971.27482 | L5: 35097.31641
A6: Billund | B6: 24695.16244 | C6: 33977.21946 | D6: 11296.4548 | E6: 83656.23373 | F6: 112789.1882 | G6: 9298.547995 | H6: 18033.81865 | I6: 21113.42178 | J6: 43491.89101 | K6: 71077.02382 | L6: 30187.31678
A7: Bornholm | B7: 31002.07625 | C7: 51732.45699 | D7: 10582.58547 | E7: 153341.9064 | F7: 275149.9898 | G7: 9580.880786 | H7: 28071.0083 | I7: 33298.35967 | J7: 63057.84904 | K7: 122856.4934 | L7: 63561.72171
A8: Brøndby | B8: 101681.3343 | C8: 98750.38254 | D8: 9618.917387 | E8: 111136.5332 | F8: 125705.7439 | G8: 14728.84569 | H8: 26640.70878 | I8: 106625.2226 | J8: 64231.84801 | K8: 47967.75119 | L8: 35024.5845
A9: Brønderslev | B9: 46590.96491 | C9: 72503.70927 | D9: 18329.67752 | E9: 104320.8006 | F9: 149829.6151 | G9: 19044.36546 | H9: 28533.72275 | I9: 35678.59577 | J9: 65344.65798 | K9: 78704.70873 | L9: 33132.3627
A10: Dragør | B10: 6931.029876 | C10: 19380.30484 | D10: 3204.085362 | E10: 10892.61297 | F10: 23531.83711 | G10: 3191.039686 | H10: 2147.958586 | I10: 4601.443322 | J10: 20214.1465 | K10: 15630.27553 | L10: 12771.0068
A11: Egedal | B11: 27318.82134 | C11: 52757.30523 | D11: 12118.01515 | E11: 58364.11775 | F11: 75525.07684 | G11: 4340.745381 | H11: 18527.64838 | I11: 23431.29361 | J11: 57808.04095 | K11: 50712.10344 | L11: 24336.57172
A12: Esbjerg | B12: 183093.4483 | C12: 181782.5999 | D12: 60996.41507 | E12: 388209.8282 | F12: 446644.164 | G12: 45963.97238 | H12: 40291.2867 | I12: 92764.76477 | J12: 222830.604 | K12: 245985.9351 | L12: 117365.4451
A13: Fanø | B13: 887.1287074 | C13: 6112.364752 | D13: 1242.332474 | E13: 6527.839101 | F13: 7839.893451 | G13: 514.2143611 | H13: 836.0978981 | I13: 600.7757489 | J13: 6479.810546 | K13: 4823.857543 | L13: 5484.700893
A14: Favrskov | B14: 33751.85186 | C14: 71015.21188 | D14: 10835.71488 | E14: 99082.68552 | F14: 102877.7831 | G14: 13496.67166 | H14: 29413.98428 | I14: 45233.84051 | J14: 71412.73921 | K14: 98467.44346 | L14: 29625.7311
A15: Faxe | B15: 48343.66391 | C15: 64536.74792 | D15: 15531.93147 | E15: 82477.60953 | F15: 147987.8662 | G15: 15155.74063 | H15: 16268.27699 | I15: 14199.30364 | J15: 75995.691 | K15: 83635.83391 | L15: 47901.70834
A16: Fredensborg | B16: 32703.03506 | C16: 54570.58655 | D16: 10903.43809 | E16: 81046.83704 | F16: 120937.8633 | G16: 12689.45213 | H16: 18502.55541 | I16: 16504.70262 | J16: 58597.27523 | K16: 34791.88667 | L16: 26384.98827
A17: Fredericia | B17: 109170.727 | C17: 93607.779 | D17: 21111.88054 | E17: 160554.7 | F17: 241104.9881 | G17: 21616.40748 | H17: 29369.82064 | I17: 13925.94028 | J17: 110009.5109 | K17: 95768.75962 | L17: 58340.52493
A18: Frederiksberg | B18: 103249.7088 | C18: 244577.2206 | D18: 18073.21747 | E18: 163797.8487 | F18: 249983.0687 | G18: 18028.54955 | H18: 34063.21053 | I18: 118344.5073 | J18: 112352.3233 | K18: 66961.55751 | L18: 41234.21978
A19: Frederikshavn | B19: 83492.50095 | C19: 143990.6038 | D19: 31585.66478 | E19: 218598.0774 | F19: 282236.1642 | G19: 24093.36836 | H19: 28827.8124 | I19: 37122.3285 | J19: 127477.4124 | K19: 135036.1495 | L19: 60540.36692
A20: Frederikssund | B20: 50805.63471 | C20: 59213.9639 | D20: 19485.41309 | E20: 83805.01088 | F20: 164073.6889 | G20: 9273.322385 | H20: 29358.77973 | I20: 20168.60317 | J20: 81608.48464 | K20: 55727.13103 | L20: 52696.05232
A21: Furesø | B21: 25968.18674 | C21: 55888.08462 | D21: 13298.17549 | E21: 63286.3229 | F21: 83873.12279 | G21: 4762.789243 | H21: 16477.05053 | I21: 6638.675965 | J21: 48527.01909 | K21: 43809.80265 | L21: 21938.80357
A22: Faaborg-Midtfyn | B22: 56163.97833 | C22: 80145.88667 | D22: 29464.04069 | E22: 176540.5153 | F22: 197301.7564 | G22: 24955.89018 | H22: 37406.5984 | I22: 36646.28128 | J22: 87276.24467 | K22: 121492.8137 | L22: 53415.02506
A23: Gentofte | B23: 45530.29097 | C23: 113396.646 | D23: 7146.464822 | E23: 75813.55239 | F23: 127411.3371 | G23: 8863.891327 | H23: 15817.60717 | I23: 32473.07257 | J23: 79353.82585 | K23: 47813.7531 | L23: 25211.73921
A24: Gladsaxe | B24: 91846.38611 | C24: 114059.9856 | D24: 17925.55865 | E24: 122013.6888 | F24: 197479.2451 | G24: 10077.63126 | H24: 33096.62916 | I24: 41241.48817 | J24: 93392.03257 | K24: 70247.55822 | L24: 44765.89022
A25: Glostrup | B25: 35011.94112 | C25: 50206.08727 | D25: 9987.509327 | E25: 36181.8307 | F25: 79153.8692 | G25: 15419.63932 | H25: 11341.02059 | I25: 20449.24236 | J25: 36723.76623 | K25: 33634.24582 | L25: 17193.34497
A26: Greve | B26: 35023.79825 | C26: 87429.99841 | D26: 15917.17666 | E26: 103009.8227 | F26: 169605.0139 | G26: 19123.92316 | H26: 14162.4746 | I26: 31191.48693 | J26: 86725.54374 | K26: 71279.87648 | L26: 32527.85327
A27: Gribskov | B27: 29256.92269 | C27: 49534.71412 | D27: 13451.38539 | E27: 71305.79787 | F27: 153516.7599 | G27: 16740.10299 | H27: 19051.58968 | I27: 18425.52197 | J27: 66585.03145 | K27: 55689.95907 | L27: 45407.36176
A28: Guldborgsund | B28: 140095.193 | C28: 97436.32741 | D28: 36813.67516 | E28: 250520.4376 | F28: 270057.5237 | G28: 14947.14424 | H28: 39377.90245 | I28: 39842.44984 | J28: 135813.6348 | K28: 119421.8048 | L28: 85092.7497
A29: Haderslev | B29: 97132.50905 | C29: 85641.96531 | D29: 42987.59017 | E29: 173482.855 | F29: 232201.3783 | G29: 18092.58379 | H29: 36304.51497 | I29: 11402.26638 | J29: 93827.61522 | K29: 152718.3169 | L29: 79742.78167
A30: Halsnæs | B30: 33433.86527 | C30: 43818.28738 | D30: 20683.3369 | E30: 78427.7795 | F30: 139870.7987 | G30: 19480.96256 | H30: 14296.97294 | I30: 16273.95484 | J30: 61342.48306 | K30: 61793.59388 | L30: 40967.13869
A31: Hedensted | B31: 42418.33401 | C31: 63795.36835 | D31: 28948.90015 | E31: 97262.58061 | F31: 95039.10532 | G31: 12705.9458 | H31: 28808.74174 | I31: 41984.66232 | J31: 83756.32197 | K31: 128780.6407 | L31: 46268.22133
A32: Helsingør | B32: 82100.90538 | C32: 98096.22409 | D32: 16011.54508 | E32: 135108.9765 | F32: 276650.1338 | G32: 25634.07101 | H32: 26186.02409 | I32: 30126.09741 | J32: 86437.2295 | K32: 70678.75289 | L32: 63958.76637
A33: Herlev | B33: 40459.75216 | C33: 43134.29012 | D33: 9064.919259 | E33: 59698.2817 | F33: 102581.1582 | G33: 15331.34969 | H33: 15706.19437 | I33: 12365.79426 | J33: 45915.59736 | K33: 37828.30426 | L33: 24168.45372
A34: Herning | B34: 127020.0153 | C34: 125751.0595 | D34: 45829.74489 | E34: 292675.5743 | F34: 275329.9098 | G34: 21336.01512 | H34: 71317.24364 | I34: 98090.67296 | J34: 142922.966 | K34: 209541.4895 | L34: 80186.32705
A35: Hillerød | B35: 53076.81355 | C35: 67276.17989 | D35: 17524.77042 | E35: 90562.77831 | F35: 170031.7161 | G35: 8877.474348 | H35: 21592.00238 | I35: 26496.49721 | J35: 72575.33006 | K35: 74247.26045 | L35: 37900.47549
A36: Hjørring | B36: 52254.36008 | C36: 128850.8524 | D36: 45819.75294 | E36: 210054.9842 | F36: 305375.338 | G36: 40821.82876 | H36: 22686.05605 | I36: 59596.33064 | J36: 131776.1984 | K36: 179116.7764 | L36: 74022.00018
A37: Holbæk | B37: 96947.1067 | C37: 105188.6789 | D37: 35530.26467 | E37: 206041.8654 | F37: 297850.3046 | G37: 30014.59524 | H37: 32498.41266 | I37: 57601.71358 | J37: 139921.594 | K37: 133398.4594 | L37: 64311.69495
A38: Holstebro | B38: 68509.40371 | C38: 66216.90226 | D38: 40586.19147 | E38: 154795.8649 | F38: 170227.4399 | G38: 27032.15194 | H38: 34684.51256 | I38: 67199.5739 | J38: 102788.1727 | K38: 137194.2469 | L38: 61019.68208
A39: Horsens | B39: 116993.1973 | C39: 179861.4398 | D39: 66771.76228 | E39: 266718.7916 | F39: 446134.7958 | G39: 34965.60634 | H39: 55841.90463 | I39: 85380.83584 | J39: 178036.1135 | K39: 254956.0585 | L39: 64056.53712
A40: Hvidovre | B40: 78084.57298 | C40: 104912.0961 | D40: 11652.83436 | E40: 133307.2272 | F40: 201495.8381 | G40: 26024.09775 | H40: 35006.70635 | I40: 61878.86273 | J40: 76938.41632 | K40: 71520.96315 | L40: 48642.14296
A41: Høje-Taastrup | B41: 95380.88797 | C41: 140621.114 | D41: 17815.6472 | E41: 120632.1866 | F41: 174921.1643 | G41: 15832.95124 | H41: 41972.51597 | I41: 36606.78391 | J41: 90066.04786 | K41: 75928.49481 | L41: 33443.55986
A42: Hørsholm | B42: 13666.95611 | C42: 32943.19005 | D42: 5992.949683 | E42: 27645.50003 | F42: 40798.08097 | G42: 5152.815985 | H42: 3149.670113 | I42: 9605.136151 | J42: 23521.46338 | K42: 21210.31682 | L42: 11753.95248
A43: Ikast-Brande | B43: 57473.65194 | C43: 66557.75324 | D43: 19829.58027 | E43: 119904.7243 | F43: 109116.6315 | G43: 17428.9562 | H43: 35881.94929 | I43: 24729.50972 | J43: 79821.55865 | K43: 104100.5875 | L43: 43616.48769
A44: Ishøj | B44: 39547.83128 | C44: 81081.21849 | D44: 9922.006543 | E44: 66913.00752 | F44: 113033.539 | G44: 8991.95981 | H44: 21142.33628 | I44: 27176.2677 | J44: 50903.01876 | K44: 32183.47757 | L44: 16076.13525
A45: Jammerbugt | B45: 54276.53925 | C45: 69631.15031 | D45: 19437.67378 | E45: 131857.133 | F45: 118203.8083 | G45: 10098.97601 | H45: 29818.48302 | I45: 23076.85671 | J45: 72663.48369 | K45: 90303.42036 | L45: 42337.12159
A46: Kalundborg | B46: 85926.44582 | C46: 62156.52928 | D46: 16839.76673 | E46: 195608.143 | F46: 256431.0133 | G46: 22984.41173 | H46: 25505.50263 | I46: 54662.27791 | J46: 106641.005 | K46: 105165.8295 | L46: 59307.50154
A47: Kerteminde | B47: 28539.02753 | C47: 37155.05235 | D47: 17351.57662 | E47: 64862.97429 | F47: 98489.19333 | G47: 10014.56724 | H47: 13038.30936 | I47: 10670.52567 | J47: 46533.70989 | K47: 59519.73237 | L47: 30267.20264
A48: Kolding | B48: 129681.4015 | C48: 165333.384 | D48: 60505.69929 | E48: 244005.1576 | F48: 282232.5172 | G48: 40825.70963 | H48: 44294.11794 | I48: 19868.21529 | J48: 143226.8367 | K48: 208880.8908 | L48: 79054.80941
A49: København | B49: 1062170.088 | C49: 1898736.218 | D49: 147632.1743 | E49: 819142.8513 | F49: 1755495.472 | G49: 410415.8264 | H49: 159038.2663 | I49: 571418.8107 | J49: 906725.4485 | K49: 436192.6984 | L49: 259831.7432
A50: Køge | B50: 63756.8515 | C50: 97866.69481 | D50: 17463.70851 | E50: 133937.1149 | F50: 283942.9731 | G50: 35041.28317 | H50: 34667.44934 | I50: 27479.77379 | J50: 112862.5772 | K50: 99492.32733 | L50: 48801.91468
A51: Langeland | B51: 21966.94523 | C51: 17120.58907 | D51: 10308.36195 | E51: 55632.9943 | F51: 54966.78282 | G51: 4671.58896 | H51: 2956.956072 | I51: 6414.164613 | J51: 30187.9522 | K51: 42316.55216 | L51: 26215.67794
A52: Lejre | B52: 12781.98325 | C52: 43064.28369 | D52: 9053.817092 | E52: 47231.91559 | F52: 73406.15386 | G52: 9457.663382 | H52: 12357.7879 | I52: 8003.413955 | J52: 42613.46599 | K52: 45373.14882 | L52: 21622.83711
A53: Lemvig | B53: 12100.73739 | C53: 26829.67765 | D53: 10110.74338 | E53: 57795.09344 | F53: 92777.94827 | G53: 4652.184645 | H53: 8337.893445 | I53: 6283.199657 | J53: 35646.21771 | K53: 53980.0492 | L53: 19562.49729
A54: Lolland | B54: 111842.8924 | C54: 67887.87543 | D54: 31811.03877 | E54: 241080.817 | F54: 241171.8502 | G54: 18910.47569 | H54: 25358.95966 | I54: 50353.94663 | J54: 82906.9358 | K54: 93020.15915 | L54: 73484.26103
A55: Lyngby-Taarbæk | B55: 54098.68234 | C55: 82558.23942 | D55: 10643.64739 | E55: 68810.39926 | F55: 105402.7418 | G55: 9720.591857 | H55: 17122.44183 | I55: 25201.39932 | J55: 57646.2531 | K55: 41333.08847 | L55: 24148.18417
A56: Læsø | B56: 1561.907044 | C56: 5062.268291 | D56: 216.4922542 | E56: 4539.635332 | F56: 6297.200818 | G56: 145.5323664 | H56: 492.826012 | I56: 719.2678516 | J56: 2551.269837 | K56: 3099.078888 | L56: 3256.243073
A57: Mariagerfjord | B57: 84618.92805 | C57: 72578.30628 | D57: 10729.13407 | E57: 127953.1819 | F57: 126206.6023 | G57: 18983.24187 | H57: 25148.17868 | I57: 32720.45082 | J57: 79114.25539 | K57: 85632.49886 | L57: 41893.57621
A58: Middelfart | B58: 38748.01415 | C58: 55504.77072 | D58: 14800.29867 | E58: 117224.8034 | F58: 92177.40441 | G58: 14743.39893 | H58: 14532.8469 | I58: 4951.722608 | J58: 76420.90264 | K58: 80155.47698 | L58: 38818.56673
A59: Morsø | B59: 30239.98634 | C59: 29083.65519 | D59: 14326.23614 | E59: 82268.93508 | F59: 76574.20508 | G59: 8799.857086 | H59: 11509.64538 | I59: 16439.22015 | J59: 36996.52394 | K59: 62066.54223 | L59: 21197.17662
A60: Norddjurs | B60: 57334.60018 | C60: 61941.9194 | D60: 24379.24826 | E60: 113754.6246 | F60: 201455.7208 | G60: 5737.856098 | H60: 21999.51228 | I60: 28055.60383 | J60: 81124.15821 | K60: 93495.96016 | L60: 56389.87913
A61: Nordfyns | B61: 39031.50728 | C61: 54823.06875 | D61: 15688.47202 | E61: 94900.50179 | F61: 103084.448 | G61: 16971.01435 | H61: 21361.14702 | I61: 12288.87834 | J61: 52215.98933 | K61: 58251.63771 | L61: 37517.73876
A62: Nyborg | B62: 47787.45684 | C62: 59901.4041 | D62: 21948.98393 | E62: 142166.2304 | F62: 127311.6517 | G62: 11327.26918 | H62: 20627.42846 | I62: 4793.733138 | J62: 65568.67192 | K62: 70877.35732 | L62: 36962.11471
A63: Næstved | B63: 158350.8574 | C63: 150037.5527 | D63: 34064.77864 | E63: 245408.8797 | F63: 274702.6211 | G63: 24660.94459 | H63: 38274.8153 | I63: 61516.11059 | J63: 150438.841 | K63: 154457.9643 | L63: 92393.36352
A64: Odder | B64: 22903.65829 | C64: 35058.30237 | D64: 16676.56487 | E64: 60420.91358 | F64: 61857.23344 | G64: 5236.254542 | H64: 18835.7901 | I64: 15745.9374 | J64: 34370.58279 | K64: 59070.48275 | L64: 21466.64236
A65: Odense | B65: 409533.3204 | C65: 500038.7197 | D65: 108012.9816 | E65: 616642.655 | F65: 954836.7797 | G65: 70908.21997 | H65: 128589.4478 | I65: 156630.9687 | J65: 328516.4385 | K65: 363768.9878 | L65: 169440.2955
A66: Odsherred | B66: 38694.11811 | C66: 39006.206 | D66: 19817.36788 | E66: 127514.5791 | F66: 160796.2268 | G66: 15084.91488 | H66: 13687.71553 | I66: 23936.44415 | J66: 80307.95929 | K66: 77364.39428 | L66: 42654.28038
A67: Randers | B67: 239457.9199 | C67: 200077.2313 | D67: 49868.7132 | E67: 334371.8205 | F67: 399523.353 | G67: 60534.6729 | H67: 81329.34032 | I67: 79442.71844 | J67: 187757.9035 | K67: 238492.0692 | L67: 87900.67809
A68: Rebild | B68: 25519.77175 | C68: 48854.1598 | D68: 11951.48265 | E68: 56501.50508 | F68: 82442.27233 | G68: 7016.60049 | H68: 17276.01083 | I68: 15713.71587 | J68: 45040.28364 | K68: 54634.27559 | L68: 26954.92023
A69: Ringkøbing-Skjern | B69: 48302.70292 | C69: 69633.44561 | D69: 30779.64746 | E69: 172111.9798 | F69: 196753.4866 | G69: 17850.02984 | H69: 38761.619 | I69: 19419.19259 | J69: 70661.87768 | K69: 153404.405 | L69: 57862.40209
A70: Ringsted | B70: 51952.54229 | C70: 66533.65267 | D70: 17612.47754 | E70: 98521.3899 | F70: 116820.3692 | G70: 11045.90661 | H70: 21683.34081 | I70: 16506.78143 | J70: 68510.92904 | K70: 53742.1487 | L70: 28888.87346
A71: Roskilde | B71: 78235.48187 | C71: 135763.1267 | D71: 21580.39199 | E71: 148457.3786 | F71: 312091.947 | G71: 37122.39601 | H71: 11159.34746 | I71: 59808.36914 | J71: 147721.6349 | K71: 106194.9616 | L71: 61000.60486
A72: Rudersdal | B72: 25990.82308 | C72: 66408.55921 | D72: 12332.28697 | E72: 57197.08658 | F72: 125961.0358 | G72: 5157.667064 | H72: 11138.26936 | I72: 21461.62225 | J72: 55007.86673 | K72: 50872.47386 | L72: 25414.43468
A73: Rødovre | B73: 74796.91495 | C73: 94307.84331 | D73: 11871.54705 | E73: 81937.56779 | F73: 119397.602 | G73: 18973.53971 | H73: 22563.60234 | I73: 51870.43767 | J73: 60880.97287 | K73: 51834.69644 | L73: 38954.49193
A74: Samsø | B74: 1413.153992 | C74: 6668.973258 | D74: 608.3987451 | E74: 11830.68191 | F74: 12363.42323 | G74: 2027.750971 | H74: 2084.724291 | I74: 221.3931393 | J74: 7429.795575 | K74: 13530.59117 | L74: 5072.155999
A75: Silkeborg | B75: 97057.0546 | C75: 160151.7605 | D75: 53491.35025 | E75: 197293.962 | F75: 418607.0322 | G75: 20784.93256 | H75: 52969.26096 | I75: 62282.15164 | J75: 154150.6274 | K75: 233194.5347 | L75: 77391.51425
A76: Skanderborg | B76: 31249.998 | C76: 90529.79134 | D76: 35614.64114 | E76: 118318.4121 | F76: 164400.7057 | G76: 20562.75315 | H76: 31531.83129 | I76: 40371.50668 | J76: 97552.88402 | K76: 132316.2246 | L76: 46231.25922
A77: Skive | B77: 58457.79351 | C77: 55549.52893 | D77: 32104.13597 | E77: 150851.3382 | F77: 224784.54 | G77: 11058.51941 | H77: 33828.34029 | I77: 39386.1513 | J77: 86546.12517 | K77: 113576.2496 | L77: 50261.32205
A78: Slagelse | B78: 186168.756 | C78: 149330.6025 | D78: 41441.05832 | E78: 225015.7828 | F78: 375352.0704 | G78: 21241.90419 | H78: 46765.27403 | I78: 95206.32572 | J78: 139224.6618 | K78: 140654.4248 | L78: 71669.54043
A79: Solrød | B79: 11444.2837 | C79: 30743.15189 | D79: 5032.612248 | E79: 31603.55195 | F79: 68685.6846 | G79: 5815.47336 | H79: 12470.20442 | I79: 3600.496876 | J79: 28311.83548 | K79: 26713.89009 | L79: 15651.66709
A80: Sorø | B80: 38410.62498 | C80: 46574.93404 | D80: 12960.66962 | E80: 85916.87358 | F80: 101685.2051 | G80: 16395.67639 | H80: 18025.7889 | I80: 19646.82215 | J80: 53955.20865 | K80: 62561.46024 | L80: 39748.58123
A81: Stevns | B81: 25430.30433 | C81: 39351.64757 | D81: 9354.685815 | E81: 50725.28043 | F81: 93411.31538 | G81: 8682.460977 | H81: 13948.68246 | I81: 10991.70163 | J81: 36045.50181 | K81: 47759.58825 | L81: 32951.1291
A82: Struer | B82: 28023.78145 | C82: 32518.56088 | D82: 4684.004208 | E82: 70031.53122 | F82: 75613.82117 | G82: 8757.167592 | H82: 8236.517829 | I82: 9708.037187 | J82: 35246.93361 | K82: 49648.98556 | L82: 25699.40066
A83: Svendborg | B83: 112358.1384 | C83: 112279.986 | D83: 31940.93412 | E83: 181148.7427 | F83: 233393.9563 | G83: 20712.16638 | H83: 40658.64785 | I83: 32412.78711 | J83: 121444.5927 | K83: 99138.66274 | L83: 61885.31096
A84: Syddjurs | B84: 42211.37324 | C84: 77755.33921 | D84: 24619.05506 | E84: 118077.8568 | F84: 127253.2992 | G84: 6701.280363 | H84: 35450.35014 | I84: 25163.98076 | J84: 89706.17362 | K84: 95007.2656 | L84: 44170.91941
A85: Sønderborg | B85: 96179.62718 | C85: 115283.3766 | D85: 40872.62738 | E85: 256617.4026 | F85: 322254.997 | G85: 21075.02708 | H85: 24838.02952 | I85: 58863.55054 | J85: 136014.8325 | K85: 188309.9316 | L85: 74919.82187
A86: Thisted | B86: 55081.74599 | C86: 62119.8046 | D86: 23483.30339 | E86: 153248.1961 | F86: 144580.3269 | G86: 11693.04053 | H86: 22634.86639 | I86: 20851.49186 | J86: 81802.42263 | K86: 113957.5276 | L86: 59318.23248
A87: Tønder | B87: 53266.52759 | C87: 46069.96963 | D87: 16961.89056 | E87: 125805.574 | F87: 114829.0922 | G87: 25654.44554 | H87: 24942.41629 | I87: 17510.84609 | J87: 62520.63043 | K87: 89986.92773 | L87: 53153.90561
A88: Tårnby | B88: 49087.42917 | C88: 80229.66486 | D88: 19916.17717 | E88: 63280.52639 | F88: 152371.5933 | G88: 25634.07101 | H88: 13578.31016 | I88: 23768.06064 | J88: 78583.25939 | K88: 60799.50963 | L88: 54387.96331
A89: Vallensbæk | B89: 10763.03784 | C89: 36471.0551 | D89: 2853.256889 | E89: 16842.733 | F89: 32006.31335 | G89: 2962.068763 | H89: 3827.180415 | I89: 6174.062194 | J89: 26402.53151 | K89: 16656.22145 | L89: 7039.494363
A90: Varde | B90: 58480.42984 | C90: 61550.57198 | D90: 21250.65763 | E90: 148198.4677 | F90: 187225.0195 | G90: 11747.37261 | H90: 25394.08982 | I90: 41542.91545 | J90: 92120.54605 | K90: 114582.0164 | L90: 47017.00224
A91: Vejen | B91: 49561.71426 | C91: 49608.16349 | D91: 17015.18096 | E91: 119997.4685 | F91: 146454.899 | G91: 14729.81591 | H91: 24471.67209 | I91: 32535.43684 | J91: 80982.0753 | K91: 93865.55559 | L91: 45404.97711
A92: Vejle | B92: 165921.0942 | C92: 202250.8736 | D92: 53665.65427 | E92: 296979.4848 | F92: 363939.3057 | G92: 44241.83937 | H92: 75227.73273 | I92: 105158.6229 | J92: 187106.6037 | K92: 218596.5775 | L92: 79332.62143
A93: Vesthimmerlands | B93: 51340.28336 | C93: 63120.55226 | D93: 15881.64972 | E93: 126330.1584 | F93: 137711.7584 | G93: 10191.14651 | H93: 28402.23556 | I93: 32061.46842 | J93: 76331.71191 | K93: 72066.85984 | L93: 48053.13378
A94: Viborg | B94: 129970.2842 | C94: 163676.1826 | D94: 32357.26538 | E94: 288541.6949 | F94: 436222.175 | G94: 24597.88056 | H94: 60434.92262 | I94: 77273.48144 | J94: 150505.2155 | K94: 234802.4873 | L94: 75442.06078
A95: Vordingborg | B95: 84566.10994 | C95: 81355.50599 | D95: 22550.72137 | E95: 164881.7966 | F95: 172526.2829 | G95: 17303.79836 | H95: 21043.97183 | I95: 43382.66126 | J95: 87000.37565 | K95: 74075.2074 | L95: 64231.80908
A96: Ærø | B96: 4955.201297 | C96: 5831.191382 | D96: 1826.306452 | E96: 19274.36997 | F96: 19731.63445 | G96: 1727.954297 | H96: 1445.35531 | I96: 1215.063755 | J96: 11576.12761 | K96: 12978.32214 | L96: 7252.920767
A97: Aabenraa | B97: 51795.16588 | C97: 82318.38132 | D97: 22768.32384 | E97: 185720.2588 | F97: 277808.6728 | G97: 23839.17183 | H97: 30801.12389 | I97: 28792.54156 | J97: 85891.71408 | K97: 154421.8544 | L97: 63031.13652
A98: Aalborg | B98: 479723.2024 | C98: 568281.2179 | D98: 96111.4587 | E98: 493742.0999 | F98: 723886.3319 | G98: 70040.84707 | H98: 71971.66841 | I98: 163610.5693 | J98: 346179.3152 | K98: 358910.0824 | L98: 140911.5045
A99: Aarhus | B99: 589982.6293 | C99: 900924.233 | D99: 169582.2685 | E99: 1142883.868 | F99: 1126245.857 | G99: 86593.69842 | H99: 205170.1937 | I99: 209699.8397 | J99: 463743.0738 | K99: 672607.3863 | L99: 163460.7792
A100: Hele landet | B100: =SUM(B2:B99) -> 8291865.911 | C100: =SUM(C2:C99) -> 11200400 | D100: 2506510.682 | E100: 14904500 | F100: 20670400 | G100: 2175972.776 | H100: =SUM(H2:H99) -> 2892757.203 | I100: 4187285.359 | J100: 9604488.65 | K100: 10343460.42 | L100: =SUM(L2:L99) -> 4899500
A103: Skal opdateres med tabel 9 - midtvejsvurdering 2024 tal

Sheet Overførselsskøn 2024 (hidden)
A1: Kommune | B1: Kontant- og uddannelseshjælp | C1: Arbejdsløsheds-dagpenge | D1: Ledighedsydelse | E1: Gammel Førtidspension | F1: Ny Førtidspension | G1: Ressourceforløb | H1: Jobafklaringsforløb | I1: Driftsudgifter til aktivering mv. | J1: Sygedagpenge | K1: Fleksjob | L1: Seniorpension
A2: Albertslund | B2: 58919.21698 | C2: 72360.99141 | D2: 12434.24078 | E2: 66569.9792 | F2: 146008.4617 | G2: 11188.94929 | H2: 7909.019884 | I2: 23531.85483 | J2: 57218.18685 | K2: 43092.30876 | L2: 21344.31201
A3: Allerød | B3: 9607.904869 | C3: 24625.82101 | D3: 7611.080073 | E3: 27391.64428 | F3: 34198.42278 | G3: 4466.150571 | H3: 5108.502292 | I3: 8829.296562 | J3: 30005.40255 | K3: 31111.22267 | L3: 13247.57501
A4: Assens | B4: 70928.22936 | C4: 60975.37851 | D4: 34276.35459 | E4: 126914.7115 | F4: 166377.2257 | G4: 15288.81386 | H4: 7108.145122 | I4: 27684.31238 | J4: 99073.92466 | K4: 93155.34704 | L4: 52272.66325
A5: Ballerup | B5: 81265.84852 | C5: 87933.74386 | D5: 23570.26253 | E5: 146509.922 | F5: 186064.953 | G5: 15024.0725 | H5: 17779.01266 | I5: 30242.80172 | J5: 74751.31732 | K5: 72105.36501 | L5: 36886.53063
A6: Billund | B6: 26667.00347 | C6: 28415.09331 | D6: 14526.08352 | E6: 80505.19816 | F6: 107094.7267 | G6: 13830.92305 | H6: 16574.13881 | I6: 17518.50566 | J6: 45258.09803 | K6: 70046.56816 | L6: 29514.60678
A7: Bornholm | B7: 36757.90971 | C7: 60958.85367 | D7: 13371.17437 | E7: 147566.057 | F7: 261258.3124 | G7: 12174.47622 | H7: 28707.34057 | I7: 32708.53044 | J7: 73227.97862 | K7: 121079.9505 | L7: 72922.66167
A8: Brøndby | B8: 129640.1148 | C8: 112484.5675 | D8: 8157.825382 | E8: 106950.4115 | F8: 119359.1558 | G8: 10684.85272 | H8: 21276.60676 | I8: 100773.0552 | J8: 68038.05818 | K8: 44198.13047 | L8: 38452.77291
A9: Brønderslev | B9: 49101.66404 | C9: 74711.33173 | D9: 16707.04333 | E9: 100391.4036 | F9: 142265.0694 | G9: 18503.78949 | H9: 24756.90115 | I9: 34482.34067 | J9: 67772.82042 | K9: 80473.71421 | L9: 32191.39198
A10: Dragør | B10: 7284.401895 | C10: 22555.13178 | D10: 4183.68547 | E10: 10482.32662 | F10: 22343.76986 | G10: 3657.420098 | H10: 3137.353101 | I10: 11003.49191 | J10: 19268.86262 | K10: 13356.70513 | L10: 16213.20901
A11: Egedal | B11: 27205.60212 | C11: 61825.77206 | D11: 14263.54943 | E11: 56165.74708 | F11: 71711.9929 | G11: 3311.080367 | H11: 20769.82705 | I11: 20556.88923 | J11: 54700.96873 | K11: 49174.90712 | L11: 20723.55619
A12: Esbjerg | B12: 222806.0977 | C12: 183908.7278 | D12: 58205.494 | E12: 373587.3318 | F12: 424094.148 | G12: 39539.84827 | H12: 37492.53983 | I12: 75883.86635 | J12: 220234.7361 | K12: 246852.9852 | L12: 126264.6037
A13: Fanø | B13: 1594.946957 | C13: 7201.01564 | D13: 1363.250418 | E13: 6281.958403 | F13: 7444.075624 | G13: 430.6580433 | H13: 361.2586282 | I13: 1434.949999 | J13: 5891.123707 | K13: 4776.455022 | L13: 5186.719847
A14: Favrskov | B14: 38106.14373 | C14: 69127.20787 | D14: 14831.97186 | E14: 95350.58987 | F14: 97683.72519 | G14: 12173.56957 | H14: 26621.1992 | I14: 37710.97816 | J14: 72182.27113 | K14: 99919.96528 | L14: 30937.3217
A15: Faxe | B15: 57308.05415 | C15: 68668.32585 | D15: 14865.69184 | E15: 79370.96858 | F15: 140516.3061 | G15: 15182.73599 | H15: 13857.06688 | I15: 15004.50355 | J15: 76271.60731 | K15: 83853.70748 | L15: 52249.34005
A16: Fredensborg | B16: 35416.62534 | C16: 62676.16561 | D16: 9204.348892 | E16: 77994.08825 | F16: 114831.9943 | G16: 13772.89755 | H16: 16672.84892 | I16: 15220.31397 | J16: 58722.21705 | K16: 36378.63938 | L16: 28603.20806
A17: Fredericia | B17: 123637.9252 | C17: 97148.24737 | D17: 21335.1099 | E17: 154507.1702 | F17: 228932.1629 | G17: 28139.64987 | H17: 30918.65043 | I17: 11242.96575 | J17: 96930.68162 | K17: 87625.08057 | L17: 65396.44591
A18: Frederiksberg | B18: 117866.2326 | C18: 269080.2815 | D18: 15357.04005 | E18: 157628.1609 | F18: 237362.01 | G18: 26563.89476 | H18: 30288.7375 | I18: 113637.4387 | J18: 115643.6628 | K18: 64786.09903 | L18: 43492.37721
A19: Frederikshavn | B19: 90270.29125 | C19: 138654.8253 | D19: 30567.15734 | E19: 210364.2581 | F19: 267986.7225 | G19: 29152.37626 | H19: 26681.23936 | I19: 39817.96939 | J19: 121690.2707 | K19: 141253.3807 | L19: 61370.50356
A20: Frederikssund | B20: 56067.53985 | C20: 60079.22387 | D20: 20423.46629 | E20: 80648.3714 | F20: 155789.9933 | G20: 13447.41073 | H20: 28430.54523 | I20: 16893.79128 | J20: 80246.10874 | K20: 62744.6711 | L20: 54472.21999
A21: Furesø | B21: 30292.40941 | C21: 63682.90954 | D21: 12991.82466 | E21: 60902.5501 | F21: 79638.5656 | G21: 4957.554065 | H21: 15272.59012 | I21: 7853.416978 | J21: 45929.83044 | K21: 44081.17969 | L21: 24494.73748
A22: Faaborg-Midtfyn | B22: 71978.78629 | C22: 78173.92072 | D22: 28425.93893 | E22: 169890.8561 | F22: 187340.4537 | G22: 25061.57818 | H22: 40675.68628 | I22: 37657.02556 | J22: 86807.94862 | K22: 122003.9774 | L22: 58119.60893
A23: Gentofte | B23: 55859.05005 | C23: 124307.453 | D23: 7998.859785 | E23: 72957.92299 | F23: 120978.6376 | G23: 11082.87141 | H23: 11474.79519 | I23: 25906.716 | J23: 91280.406 | K23: 45521.64274 | L23: 27266.60956
A24: Gladsaxe | B24: 101151.1422 | C24: 107035.1846 | D24: 17185.1444 | E24: 117417.863 | F24: 187508.9813 | G24: 13339.51956 | H24: 33427.10823 | I24: 43990.30421 | J24: 85326.27562 | K24: 71484.71534 | L24: 47466.2909
A25: Glostrup | B25: 39426.57912 | C25: 60269.89507 | D25: 11333.52446 | E25: 34818.98862 | F25: 75157.57605 | G25: 13985.95995 | H25: 9994.143628 | I25: 18431.9138 | J25: 42196.17708 | K25: 36144.73782 | L25: 21643.92536
A26: Greve | B26: 38825.43354 | C26: 90244.6788 | D26: 16044.68668 | E26: 99129.80563 | F26: 161042.0547 | G26: 21758.65765 | H26: 14601.97199 | I26: 31905.86712 | J26: 87582.32093 | K26: 76885.29382 | L26: 37153.85033
A27: Gribskov | B27: 33013.20127 | C27: 49697.81262 | D27: 13654.18131 | E27: 68619.95971 | F27: 145766.0589 | G27: 18250.83455 | H27: 19260.68185 | I27: 20576.7665 | J27: 66648.86272 | K27: 58214.85485 | L27: 45867.75496
A28: Guldborgsund | B28: 147421.9781 | C28: 96472.00018 | D28: 34198.07608 | E28: 241084.2154 | F28: 256422.953 | G28: 14247.07472 | H28: 28904.76078 | I28: 42095.33726 | J28: 136512.0819 | K28: 129522.4071 | L28: 99767.65962
A29: Haderslev | B29: 110427.7799 | C29: 80716.20338 | D29: 37031.75826 | E29: 166948.3671 | F29: 220478.0755 | G29: 22106.81067 | H29: 34785.6442 | I29: 8959.918659 | J29: 102077.9201 | K29: 148257.6901 | L29: 88220.88378
A30: Halsnæs | B30: 34847.9115 | C30: 53456.57754 | D30: 19820.11959 | E30: 75473.68138 | F30: 132809.0502 | G30: 16888.14184 | H30: 12327.56908 | I30: 17401.13508 | J30: 64838.94529 | K30: 60998.51494 | L30: 42536.1262
A31: Hedensted | B31: 44042.3116 | C31: 50615.57666 | D31: 28199.53338 | E31: 93599.0419 | F31: 90240.80387 | G31: 16835.55622 | H31: 18961.49865 | I31: 38194.65854 | J31: 92350.50316 | K31: 129709.9915 | L31: 49680.20037
A32: Helsingør | B32: 92282.21781 | C32: 104355.6187 | D32: 19651.51972 | E32: 130019.8974 | F32: 262682.7176 | G32: 25380.71845 | H32: 23960.09691 | I32: 34517.36253 | J32: 90002.99656 | K32: 73252.87215 | L32: 71821.08921
A33: Herlev | B33: 45213.3293 | C33: 49257.99772 | D33: 9549.978635 | E33: 57449.65777 | F33: 97402.07618 | G33: 14276.08747 | H33: 15229.84966 | I33: 10540.63535 | J33: 52065.86717 | K33: 37225.0851 | L33: 26457.47408
A34: Herning | B34: 134047.3575 | C34: 109198.6672 | D34: 42302.91293 | E34: 281651.5167 | F34: 261429.1486 | G34: 25766.95072 | H34: 62878.33628 | I34: 90593.99691 | J34: 140073.9912 | K34: 207815.742 | L34: 76110.76308
A35: Hillerød | B35: 56519.26775 | C35: 75481.64338 | D35: 19098.75299 | E35: 87151.59754 | F35: 161447.2137 | G35: 9955.907313 | H35: 19930.28235 | I35: 29064.36323 | J35: 75521.62468 | K35: 75627.78348 | L35: 43239.41025
A36: Hjørring | B36: 60376.32902 | C36: 138157.809 | D36: 35490.27369 | E36: 202142.953 | F36: 289957.6537 | G36: 33260.40067 | H36: 11394.40242 | I36: 40517.46019 | J36: 153355.1877 | K36: 182550.9003 | L36: 74969.72059
A37: Holbæk | B37: 100317.183 | C37: 106019.5427 | D37: 36796.92272 | E37: 198280.9943 | F37: 282812.5416 | G37: 38585.14738 | H37: 30103.52885 | I37: 41997.84396 | J37: 135540.5597 | K37: 133176.8294 | L37: 68884.16067
A38: Holstebro | B38: 81891.31792 | C38: 57830.57486 | D38: 41895.86466 | E38: 148965.2501 | F38: 161633.0559 | G38: 31820.64283 | H38: 34120.11422 | I38: 63066.80967 | J38: 100072.8853 | K38: 133480.2067 | L38: 62263.96135
A39: Horsens | B39: 124479.9923 | C39: 166356.8083 | D39: 60146.80113 | E39: 256672.4345 | F39: 423610.4966 | G39: 40661.37248 | H39: 52475.10542 | I39: 85480.80437 | J39: 183026.2484 | K39: 254894.7985 | L39: 68148.58297
A40: Hvidovre | B40: 92903.0541 | C40: 123370.6219 | D40: 14010.64961 | E40: 128286.0136 | F40: 191322.7859 | G40: 29253.9209 | H40: 35197.78432 | I40: 68770.64126 | J40: 84261.25964 | K40: 68921.06167 | L40: 51237.47219
A41: Høje-Taastrup | B41: 112918.0747 | C41: 147109.1862 | D41: 20176.5879 | E41: 116088.3972 | F41: 166089.8051 | G41: 19033.27222 | H41: 43214.67298 | I41: 39063.57945 | J41: 93878.92304 | K41: 70469.21206 | L41: 37290.20132
A42: Hørsholm | B42: 14903.54574 | C42: 34132.68702 | D42: 7120.93615 | E42: 26604.19145 | F42: 38738.28159 | G42: 6090.864705 | H42: 1852.086488 | I42: 10331.45068 | J42: 23329.74417 | K42: 22466.12857 | L42: 13595.62885
A43: Ikast-Brande | B43: 61648.11679 | C43: 56020.4696 | D43: 19109.59155 | E43: 115388.3358 | F43: 103607.5888 | G43: 19834.7495 | H43: 35129.60311 | I43: 23878.28735 | J43: 77037.84972 | K43: 105388.8615 | L43: 45860.5786
A44: Ishøj | B44: 44951.55878 | C44: 90481.11109 | D44: 13166.44595 | E44: 64392.63029 | F44: 107326.7408 | G44: 5315.680227 | H44: 19881.43611 | I44: 22155.59012 | J44: 47672.67625 | K44: 35041.23197 | L44: 17948.09593
A45: Jammerbugt | B45: 55692.25822 | C45: 69003.90716 | D45: 15761.67975 | E45: 126890.5394 | F45: 112235.9754 | G45: 11833.57638 | H45: 27777.22681 | I45: 26131.04526 | J45: 75579.55016 | K45: 96072.1689 | L45: 40733.06378
A46: Kalundborg | B46: 99793.64193 | C46: 76071.45296 | D46: 23907.46228 | E46: 188240.2734 | F46: 243484.4131 | G46: 27237.53461 | H46: 23464.51113 | I46: 53734.902 | J46: 100128.7783 | K46: 102876.1567 | L46: 61560.67731
A47: Kerteminde | B47: 29814.04115 | C47: 38207.96613 | D47: 21327.88419 | E47: 62419.81459 | F47: 93516.70503 | G47: 9727.431888 | H47: 14842.13266 | I47: 12313.49903 | J47: 45945.07399 | K47: 58856.34723 | L47: 33657.16511
A48: Kolding | B48: 150547.0085 | C48: 157517.2915 | D48: 50128.3557 | E48: 234814.343 | F48: 267983.2596 | G48: 49275.43999 | H48: 44494.85144 | I48: 55419.73775 | J48: 153094.0149 | K48: 209515.581 | L48: 81006.84003
A49: København | B49: 1295164.109 | C49: 2079929.155 | D49: 146643.3542 | E49: 788288.6263 | F49: 1666864.624 | G49: 388690.1903 | H49: 154284.9103 | I49: 535977.4879 | J49: 897753.5956 | K49: 406347.2134 | L49: 314317.7344
A50: Køge | B50: 69991.18355 | C50: 112535.4132 | D50: 16717.88189 | E50: 128892.1757 | F50: 269607.3586 | G50: 39560.70118 | H50: 31369.46049 | I50: 43255.79155 | J50: 113532.9393 | K50: 99894.49085 | L50: 55403.35371
A51: Langeland | B51: 25625.71276 | C51: 19500.57916 | D51: 8186.728217 | E51: 53537.49542 | F51: 52191.63891 | G51: 5081.764911 | H51: 2846.310939 | I51: 6355.049005 | J51: 28568.44396 | K51: 44552.45659 | L51: 30304.00724
A52: Lejre | B52: 13698.93802 | C52: 46049.637 | D52: 8334.85525 | E52: 45452.85575 | F52: 69700.04937 | G52: 12887.10195 | H52: 13197.64268 | I52: 9971.766646 | J52: 45037.57468 | K52: 46759.46829 | L52: 21145.1678
A53: Lemvig | B53: 12939.10853 | C53: 30450.19059 | D53: 11440.70581 | E53: 55618.15591 | F53: 88093.80733 | G53: 5867.829171 | H53: 9900.521674 | I53: 5250.440398 | J53: 33152.68737 | K53: 59864.90294 | L53: 20066.91853
A54: Lolland | B54: 130001.4971 | C54: 69188.22265 | D54: 30964.57133 | E54: 232000.1521 | F54: 228995.6494 | G54: 18456.64376 | H54: 23564.23886 | I54: 40494.7433 | J54: 86475.63924 | K54: 94459.17452 | L54: 89514.42408
A55: Lyngby-Taarbæk | B55: 64189.37577 | C55: 92631.88222 | D55: 10215.94814 | E55: 66218.55397 | F55: 100081.2047 | G55: 8220.582061 | H55: 18850.57699 | I55: 26694.23474 | J55: 59523.01151 | K55: 43218.52297 | L55: 26586.64871
A56: Læsø | B56: 1711.932899 | C56: 5336.251308 | D56: 492.552492 | E56: 4368.643264 | F56: 5979.269923 | G56: 476.8971174 | H56: 721.4996266 | I56: 184.574703 | J56: 1975.563996 | K56: 4313.283626 | L56: 3281.394189
A57: Mariagerfjord | B57: 92700.35568 | C57: 67867.50681 | D57: 12092.22389 | E57: 123133.6363 | F57: 119834.7271 | G57: 18579.04131 | H57: 20159.24909 | I57: 31806.48074 | J57: 75970.80126 | K57: 90173.68117 | L57: 42950.56144
A58: Middelfart | B58: 43967.02362 | C58: 49490.61658 | D58: 14586.29776 | E58: 112809.3581 | F58: 87523.58352 | G58: 14592.5078 | H58: 12491.4075 | I58: 5555.225292 | J58: 71269.69064 | K58: 80779.40733 | L58: 39290.61385
A59: Morsø | B59: 31040.65613 | C59: 23673.73615 | D59: 12046.46107 | E59: 79170.15417 | F59: 72708.15312 | G59: 11932.40107 | H59: 10899.83427 | I59: 15254.3893 | J59: 36422.93682 | K59: 65585.06969 | L59: 21425.04615
A60: Norddjurs | B60: 66873.10279 | C60: 63595.20079 | D60: 21371.23844 | E60: 109469.8887 | F60: 191284.6941 | G60: 10150.83674 | H60: 20199.95428 | I60: 23359.5851 | J60: 72981.03312 | K60: 97191.88575 | L60: 66544.66476
A61: Nordfyns | B61: 45827.21593 | C61: 58782.65971 | D61: 13348.29296 | E61: 91325.93426 | F61: 97879.95606 | G61: 13631.46038 | H61: 24981.79737 | I61: 12128.92433 | J61: 52532.31978 | K61: 61459.37047 | L61: 42100.16185
A62: Nyborg | B62: 49756.09035 | C62: 52148.57311 | D62: 23950.81653 | E62: 136811.3294 | F62: 120883.9851 | G62: 13380.31874 | H62: 20392.28634 | I62: 4683.464771 | J62: 58075.89056 | K62: 76842.45047 | L62: 39145.2924
A63: Næstved | B63: 171350.8155 | C63: 161043.4375 | D63: 35481.8437 | E63: 236165.1918 | F63: 260833.5302 | G63: 22023.39901 | H63: 32275.15114 | I63: 69438.89634 | J63: 159615.2053 | K63: 154862.5142 | L63: 100191.0653
A64: Odder | B64: 27405.98398 | C64: 30098.08444 | D64: 14711.54338 | E64: 58145.07066 | F64: 58734.20685 | G64: 7685.659438 | H64: 16555.82147 | I64: 14492.42706 | J64: 32628.30927 | K64: 63388.47934 | L64: 22035.03741
A65: Odense | B65: 477574.8398 | C65: 492065.165 | D65: 109244.289 | E65: 593415.8989 | F65: 906629.3109 | G65: 80310.92522 | H65: 116711.9777 | I65: 153092.8844 | J65: 340731.945 | K65: 376514.3437 | L65: 184850.6766
A66: Odsherred | B66: 45949.99326 | C66: 48875.38418 | D66: 19457.62986 | E66: 122711.5542 | F66: 152678.0026 | G66: 17257.14778 | H66: 15633.84875 | I66: 26351.58837 | J66: 70716.85792 | K66: 78612.92313 | L66: 45214.70549
A67: Randers | B67: 245951.9402 | C67: 197907.8073 | D67: 50699.18671 | E67: 321777.2122 | F67: 379352.3562 | G67: 66580.64015 | H67: 77748.96258 | I67: 72256.73681 | J67: 186583.0766 | K67: 241971.1587 | L67: 92506.96947
A68: Rebild | B68: 27216.02661 | C68: 51300.72184 | D68: 10473.66509 | E68: 54373.29247 | F68: 78279.95542 | G68: 10627.73386 | H68: 13945.60068 | I68: 17938.76806 | J68: 49133.00827 | K68: 55845.73315 | L68: 30635.91425
A69: Ringkøbing-Skjern | B69: 52598.50127 | C69: 63727.39949 | D69: 31317.42679 | E69: 165629.1279 | F69: 186819.8647 | G69: 20574.57469 | H69: 42542.01959 | I69: 20667.63405 | J69: 71045.10235 | K69: 154965.5698 | L69: 62066.61124
A70: Ringsted | B70: 61761.6279 | C70: 68129.36192 | D70: 18960.26023 | E70: 94810.43628 | F70: 110922.3829 | G70: 13896.20175 | H70: 19169.09516 | I70: 17162.60777 | J70: 69971.95648 | K70: 52478.4771 | L70: 31288.96372
A71: Roskilde | B71: 101741.8633 | C71: 158122.3547 | D71: 28929.32999 | E71: 142865.5122 | F71: 296335.1568 | G71: 37687.56536 | H71: 13743.09232 | I71: 68557.67045 | J71: 141166.4456 | K71: 102430.3542 | L71: 72414.93364
A72: Rudersdal | B72: 31389.2974 | C72: 69850.48728 | D72: 13466.31288 | E72: 55042.67386 | F72: 119601.5586 | G72: 6726.425312 | H72: 9222.780135 | I72: 21595.24025 | J72: 64236.31697 | K72: 50450.94432 | L72: 31046.76131
A73: Rødovre | B73: 81756.95783 | C73: 102799.7417 | D73: 14542.94351 | E73: 78851.26831 | F73: 113369.4972 | G73: 27102.44398 | H73: 20063.59187 | I73: 50053.81984 | J73: 63644.86726 | K73: 52273.52376 | L73: 41515.28788
A74: Samsø | B74: 1971.38687 | C74: 8404.786481 | D74: 1009.190681 | E74: 11385.0618 | F74: 11739.223 | G74: 2123.370816 | H74: 1660.77206 | I74: 53.00606855 | J74: 5982.585003 | K74: 12621.42054 | L74: 5341.011755
A75: Silkeborg | B75: 116119.5514 | C75: 147630.3542 | D75: 54779.30368 | E75: 189862.5936 | F75: 397472.5453 | G75: 21958.12032 | H75: 51117.58708 | I75: 64536.78154 | J75: 152597.0752 | K75: 235776.2412 | L75: 83981.44449
A76: Skanderborg | B76: 32436.3795 | C76: 87303.25776 | D76: 37614.63212 | E76: 113861.7744 | F76: 156100.4998 | G76: 18971.62012 | H76: 34396.90956 | I76: 42103.8561 | J76: 91508.043 | K76: 133680.5283 | L76: 42963.12009
A77: Skive | B77: 63582.4388 | C77: 44164.53441 | D77: 26453.32039 | E77: 145169.2998 | F77: 213435.696 | G77: 11111.88417 | H77: 33014.9681 | I77: 33468.59961 | J77: 80006.2769 | K77: 121449.3297 | L77: 51659.0838
A78: Slagelse | B78: 209992.0831 | C78: 162057.8083 | D78: 43978.07312 | E78: 216540.2311 | F78: 356401.425 | G78: 22604.56071 | H78: 41327.98707 | I78: 85149.51644 | J78: 134652.3689 | K78: 139184.1625 | L78: 78068.1174
A79: Solrød | B79: 13232.15253 | C79: 32350.54688 | D79: 5113.393353 | E79: 30413.1575 | F79: 65217.90553 | G79: 5603.087806 | H79: 10337.08492 | I79: 6197.923873 | J79: 31792.96277 | K79: 30974.58711 | L79: 16414.14731
A80: Sorø | B80: 38423.51154 | C80: 50553.29074 | D80: 12800.34337 | E80: 82680.68768 | F80: 96551.35766 | G80: 17621.62048 | H80: 15356.03578 | I80: 19695.54061 | J80: 51717.29801 | K80: 64497.77483 | L80: 42972.09054
A81: Stevns | B81: 28824.87288 | C81: 44914.50779 | D81: 9824.555575 | E81: 48814.63784 | F81: 88695.19722 | G81: 8121.757373 | H81: 13323.82879 | I81: 11444.57812 | J81: 36953.41234 | K81: 47691.60073 | L81: 38569.38888
A82: Struer | B82: 32238.31419 | C82: 30277.31536 | D82: 5408.443134 | E82: 67393.69019 | F82: 71796.25674 | G82: 11199.82907 | H82: 10555.87535 | I82: 9909.295208 | J82: 37727.78465 | K82: 51024.11892 | L82: 26023.30383
A83: Svendborg | B83: 124492.7334 | C83: 115384.0409 | D83: 31305.38394 | E83: 174325.5078 | F83: 221610.443 | G83: 25745.19115 | H83: 41496.91364 | I83: 32454.85855 | J83: 102477.3011 | K83: 98650.87565 | L83: 67779.00003
A84: Syddjurs | B84: 44828.78145 | C84: 76363.81546 | D84: 20041.708 | E84: 113630.28 | F84: 120828.5787 | G84: 9762.79118 | H84: 35081.77451 | I84: 23143.77468 | J84: 78022.58301 | K84: 98882.46135 | L84: 44019.84025
A85: Sønderborg | B85: 103112.1045 | C85: 98782.93512 | D85: 39740.19483 | E85: 246951.5292 | F85: 305985.0983 | G85: 26969.16665 | H85: 23549.99204 | I85: 44297.92872 | J85: 137731.5658 | K85: 193297.6346 | L85: 83568.80334
A86: Thisted | B86: 64440.72181 | C86: 49931.70263 | D86: 26002.91787 | E86: 147475.8765 | F86: 137280.8054 | G86: 16363.19235 | H86: 19826.4841 | I86: 25998.53009 | J86: 79335.56073 | K86: 119244.6338 | L86: 63855.32092
A87: Tønder | B87: 58212.66822 | C87: 42911.18905 | D87: 14721.17766 | E87: 121066.9213 | F87: 109031.6408 | G87: 28504.12258 | H87: 22143.62747 | I87: 17675.63079 | J87: 66187.49129 | K87: 88126.4636 | L87: 54273.07578
A88: Tårnby | B88: 57916.1494 | C88: 98842.67876 | D88: 21824.04954 | E88: 60896.97193 | F88: 144678.709 | G88: 27994.58611 | H88: 13165.07852 | I88: 51183.98495 | J88: 76733.99497 | K88: 59254.67463 | L88: 56661.01217
A89: Vallensbæk | B89: 12119.04866 | C89: 36409.30115 | D89: 3009.507769 | E89: 16208.32659 | F89: 30390.38968 | G89: 3536.835846 | H89: 4574.246575 | I89: 9240.093593 | J89: 22313.50754 | K89: 15422.44956 | L89: 7054.369573
A90: Varde | B90: 62460.06872 | C90: 56200.97167 | D90: 21327.88419 | E90: 142616.3536 | F90: 177772.4675 | G90: 13568.90163 | H90: 27285.71155 | I90: 35067.3005 | J90: 85380.13616 | K90: 117968.5967 | L90: 45568.14161
A91: Vejen | B91: 58192.97752 | C91: 40792.19646 | D91: 12222.28665 | E91: 115477.5867 | F91: 139060.7348 | G91: 18127.53035 | H91: 20639.57042 | I91: 26867.451 | J91: 76128.31794 | K91: 98032.54184 | L91: 47534.46639
A92: Vejle | B92: 175094.3657 | C92: 187338.2671 | D92: 49021.61795 | E92: 285793.314 | F92: 345564.864 | G92: 54699.91804 | H92: 62447.87882 | I92: 87521.53801 | J92: 179460.2741 | K92: 217302.6501 | L92: 88881.10962
A93: Vesthimmerlands | B93: 53801.95071 | C93: 59147.47728 | D93: 14427.33216 | E93: 121571.7464 | F93: 130759.0148 | G93: 11382.97207 | H93: 25779.61924 | I93: 28284.41679 | J93: 81801.96701 | K93: 72860.33439 | L93: 48537.36379
A94: Viborg | B94: 143261.4483 | C94: 154842.8101 | D94: 29320.72255 | E94: 277673.3459 | F94: 414198.3409 | G94: 25801.40336 | H94: 54808.53087 | I94: 70497.12464 | J94: 158419.0948 | K94: 254332.0453 | L94: 78604.5509
A95: Vordingborg | B95: 98883.23648 | C95: 81748.37014 | D95: 21156.87575 | E95: 158671.2802 | F95: 163815.8357 | G95: 15204.49555 | H95: 17015.79021 | I95: 45419.57499 | J95: 91162.52255 | K95: 78586.29077 | L95: 70558.04847
A96: Ærø | B96: 7053.90484 | C96: 5815.47159 | D96: 2005.134228 | E96: 18548.37237 | F96: 18735.43052 | G96: 1191.336145 | H96: 1036.964908 | I96: 1999.086014 | J96: 11684.6887 | K96: 12813.63667 | L96: 7777.388632
A97: Aabenraa | B97: 57355.5435 | C97: 84055.49166 | D97: 16875.64321 | E97: 178724.831 | F97: 263782.7647 | G97: 24779.61049 | H97: 31480.38215 | I97: 35531.1036 | J97: 87966.45837 | K97: 165210.9211 | L97: 68193.43527
A98: Aalborg | B98: 538222.2055 | C98: 600493.5205 | D98: 103413.1419 | E98: 475144.5746 | F98: 687339.0093 | G98: 75319.82516 | H98: 67094.37712 | I98: 141686.1678 | J98: 328554.3816 | K98: 320448.6042 | L98: 145021.8351
A99: Aarhus | B99: 660496.8391 | C99: 915219.2161 | D99: 178202.8422 | E99: 1099835.46 | F99: 1069384.346 | G99: 96503.66764 | H99: 188029.519 | I99: 201676.7324 | J99: 452544.3958 | K99: 659424.0642 | L99: 182972.2623
A100: Hele landet | B100: =SUM(B2:B99) -> 9430986.217 | C100: 11543671.7 | D100: 2491057.132 | E100: 14343100 | F100: 19626800 | G100: 2329110.216 | H100: 2708102.546 | I100: 4078413.75 | J100: 9590854.067 | K100: 10398435.22 | L100: =SUM(L2:L99) -> 5291439.2
